{"text_format":"1","workbook":"xlsx","n_sheets":5,"sheets":["Estandares","1ºEVALUACION","2ºEVALUACION","3ºEVALUACION","RESUMEN"],"not_rendered":{"charts":0,"images":0,"macros":1,"external_links":0,"defined_names":0,"comments":4,"pivot_tables":0},"unopened":[],"bounds":{"document_bytes":16777216,"sheet_cells":100000,"rows_first":2000,"rows_last":500,"rows_between":2000,"halvings":0,"cell_chars":16384,"cell_head_chars":4096},"cells_cut":0,"cells_raw":0,"read":"whole","date_system":"1900"}

{"sheet":"Estandares","index":0,"n_rows":112,"n_cols":21,"rows_kept":112,"cut":false,"hidden":false,"merged":[[18,18,19,18],[22,8,22,9],[10,18,10,19],[9,18,9,19],[12,18,12,19],[13,8,14,9],[13,10,14,10],[10,8,11,8],[10,9,11,11],[8,8,9,8],[8,10,9,10],[8,9,9,9],[8,11,9,11],[15,8,17,8],[15,9,17,9],[18,8,19,8],[1,8,2,11],[18,9,19,9],[18,16,19,17],[4,8,5,8],[6,8,7,8],[4,9,5,11],[6,9,7,11]]}
["Nº Estandar","Estándar","1º","2º","3º","COEFICIENTE MANUAL","Coeficiente","cont"]
[1,null,null,null,null,null,{"$f":"IF(F2>0,F2,U18)","v":{"$error":"#DIV/0!"}},{"$f":"COUNTA(C2:E2)","v":0},"PTI EDUCACIÓN PRIMARIA"]
[2,null,null,null,null,null,{"$f":"IF(F3>0,F3,U18)","v":{"$error":"#DIV/0!"}},{"$f":"COUNTA(C3:E3)","v":0}]
[3,null,null,null,null,null,{"$f":"IF(F4>0,F4,U18)","v":{"$error":"#DIV/0!"}},0]
[4,null,null,null,null,null,{"$f":"IF(F5>0,F5,U18)","v":{"$error":"#DIV/0!"}},0,"Nombre Profesor",null,null,null,4]
[5,null,null,null,null,null,{"$f":"IF(F6>0,F6,U18)","v":{"$error":"#DIV/0!"}},0,null,null,null,null,5,1]
[6,null,null,null,null,null,{"$f":"IF(F7>0,F7,U18)","v":{"$error":"#DIV/0!"}},0,"Materia",null,null,null,10,2]
[7,null,null,null,null,null,{"$f":"IF(F8>0,F8,U18)","v":{"$error":"#DIV/0!"}},0,null,null,null,null,null,3]
[8,null,null,null,null,null,{"$f":"IF(F9>0,F9,U18)","v":{"$error":"#DIV/0!"}},0,"Curso",null,"Grupo"]
[9,null,null,null,null,null,{"$f":"IF(F10>0,F10,U18)","v":{"$error":"#DIV/0!"}},0,null,null,null,null,null,null,null,null,null,null,"Escala de Evaluación",null,{"$f":"K14","v":5}]
[10,null,null,null,null,null,{"$f":"IF(F11>0,F11,U18)","v":{"$error":"#DIV/0!"}},0,"Alumno",null,null,null,null,null,null,null,null,null,"Conntador de estandares",null,{"$f":"COUNTA(B2:B111)","v":0}]
[11,null,null,null,null,null,{"$f":"IF(F12>0,F12,U18)","v":{"$error":"#DIV/0!"}},0]
[12,null,null,null,null,null,{"$f":"IF(F13>0,F13,U18)","v":{"$error":"#DIV/0!"}},0,null,null,null,null,null,null,null,null,null,null,"Coeficiente por Estandar",null,{"$f":"U10/U11","v":{"$error":"#DIV/0!"}}]
[13,null,null,null,null,null,{"$f":"IF(F14>0,F14,U18)","v":{"$error":"#DIV/0!"}},0,"ESCALA DE EVALUACIÓN",null,5]
[14,null,null,null,null,null,{"$f":"IF(F15>0,F15,U18)","v":{"$error":"#DIV/0!"}},0]
[15,null,null,null,null,null,{"$f":"IF(F16>0,F16,U18)","v":{"$error":"#DIV/0!"}},0,"BÁSICOS","NO BÁSICOS",null,null,null,null,null,null,null,null,"SumaCOE",{"$f":"SUM(F2:F111)","v":0}]
[16,null,null,null,null,null,{"$f":"IF(F17>0,F17,U18)","v":{"$error":"#DIV/0!"}},0,null,null,null,null,null,null,null,null,null,null,"Contador COEF",{"$f":"COUNTA(F2:F111)","v":0}]
[17,null,null,null,null,null,{"$f":"IF(F18>0,F18,U18)","v":{"$error":"#DIV/0!"}},0,null,null,null,null,null,null,null,null,null,null,"NuevoCoeficiento global",null,{"$f":" (U10-T16)/(U11-T17)","v":{"$error":"#DIV/0!"}}]
[18,null,null,null,null,null,{"$f":"IF(F19>0,F19,U18)","v":{"$error":"#DIV/0!"}},0,{"$f":"((T16*100)/K14)/100","v":0},{"$f":"100%-I19","v":1},null,null,null,null,null,null,"EVALUACIÓN FINAL",null,{"$f":"'1ºEVALUACION'!P117+'2ºEVALUACION'!P117+'3ºEVALUACION'!P117","v":{"$error":"#DIV/0!"}}]
[19,null,null,null,null,null,{"$f":"IF(F20>0,F20,U18)","v":{"$error":"#DIV/0!"}},0]
[20,null,null,null,null,null,{"$f":"IF(F21>0,F21,U18)","v":{"$error":"#DIV/0!"}},0]
[21,null,null,null,null,null,{"$f":"IF(F22>0,F22,U18)","v":{"$error":"#DIV/0!"}},0]
[22,null,null,null,null,null,{"$f":"IF(F23>0,F23,U18)","v":{"$error":"#DIV/0!"}},0,"CALCULADORA"]
[23,null,null,null,null,null,{"$f":"IF(F24>0,F24,U18)","v":{"$error":"#DIV/0!"}},0,"COEFIC.GRUPO","COEF.MÁXIMO",null,null,null,null,null,"Ciencias de la Naturaleza"]
[24,null,null,null,null,null,{"$f":"IF(F25>0,F25,U18)","v":{"$error":"#DIV/0!"}},0,null,{"$f":"0.2*I25+I25","v":0},null,null,null,null,null,"Ciencias Sociales"]
[25,null,null,null,null,null,{"$f":"IF(F26>0,F26,U18)","v":{"$error":"#DIV/0!"}},0,null,null,null,null,null,null,null,"Educación Artística"]
[26,null,null,null,null,null,{"$f":"IF(F27>0,F27,U18)","v":{"$error":"#DIV/0!"}},0,null,null,null,null,null,null,null,"Educación Física"]
[27,null,null,null,null,null,{"$f":"IF(F28>0,F28,U18)","v":{"$error":"#DIV/0!"}},0,null,null,null,null,null,null,null,"Inglés"]
[28,null,null,null,null,null,{"$f":"IF(F29>0,F29,U18)","v":{"$error":"#DIV/0!"}},0,null,null,null,null,null,null,null,"Francés"]
[29,null,null,null,null,null,{"$f":"IF(F30>0,F30,U18)","v":{"$error":"#DIV/0!"}},0,null,null,null,null,null,null,null,"Lengua Castellana y Literatura"]
[30,null,null,null,null,null,{"$f":"IF(F31>0,F31,U18)","v":{"$error":"#DIV/0!"}},0,null,null,null,null,null,null,null,"Matematicas"]
[31,null,null,null,null,null,{"$f":"IF(F32>0,F32,U18)","v":{"$error":"#DIV/0!"}},0,null,null,null,null,null,null,null,"Religión"]
[32,null,null,null,null,null,{"$f":"IF(F33>0,F33,U18)","v":{"$error":"#DIV/0!"}},0]
[33,null,null,null,null,null,{"$f":"IF(F34>0,F34,U18)","v":{"$error":"#DIV/0!"}},0]
[34,null,null,null,null,null,{"$f":"IF(F35>0,F35,U18)","v":{"$error":"#DIV/0!"}},0]
[35,null,null,null,null,null,{"$f":"IF(F36>0,F36,U18)","v":{"$error":"#DIV/0!"}},0]
[36,null,null,null,null,null,{"$f":"IF(F37>0,F37,U18)","v":{"$error":"#DIV/0!"}},0]
[37,null,null,null,null,null,{"$f":"IF(F38>0,F38,U18)","v":{"$error":"#DIV/0!"}},0]
[38,null,null,null,null,null,{"$f":"IF(F39>0,F39,U18)","v":{"$error":"#DIV/0!"}},0]
[39,null,null,null,null,null,{"$f":"IF(F40>0,F40,U18)","v":{"$error":"#DIV/0!"}},0]
[40,null,null,null,null,null,{"$f":"IF(F41>0,F41,U18)","v":{"$error":"#DIV/0!"}},0,{"$f":"SUM(G2:G40)","v":{"$error":"#DIV/0!"}}]
[41,null,null,null,null,null,{"$f":"IF(F42>0,F42,U18)","v":{"$error":"#DIV/0!"}},0]
[42,null,null,null,null,null,{"$f":"IF(F43>0,F43,U18)","v":{"$error":"#DIV/0!"}},0]
[43,null,null,null,null,null,{"$f":"IF(F44>0,F44,U18)","v":{"$error":"#DIV/0!"}},0]
[44,null,null,null,null,null,{"$f":"IF(F45>0,F45,U18)","v":{"$error":"#DIV/0!"}},0]
[45,null,null,null,null,null,{"$f":"IF(F46>0,F46,U18)","v":{"$error":"#DIV/0!"}},0]
[46,null,null,null,null,null,{"$f":"IF(F47>0,F47,U18)","v":{"$error":"#DIV/0!"}},0]
[47,null,null,null,null,null,{"$f":"IF(F48>0,F48,U18)","v":{"$error":"#DIV/0!"}},0]
[48,null,null,null,null,null,{"$f":"IF(F49>0,F49,U18)","v":{"$error":"#DIV/0!"}},0]
[49,null,null,null,null,null,{"$f":"IF(F50>0,F50,U18)","v":{"$error":"#DIV/0!"}},0]
[50,null,null,null,null,null,{"$f":"IF(F51>0,F51,U18)","v":{"$error":"#DIV/0!"}},0]
[51,null,null,null,null,null,{"$f":"IF(F52>0,F52,U18)","v":{"$error":"#DIV/0!"}},0]
[52,null,null,null,null,null,{"$f":"IF(F53>0,F53,U18)","v":{"$error":"#DIV/0!"}},0]
[53,null,null,null,null,null,{"$f":"IF(F54>0,F54,U18)","v":{"$error":"#DIV/0!"}},0]
[54,null,null,null,null,null,{"$f":"IF(F55>0,F55,U18)","v":{"$error":"#DIV/0!"}},0]
[55,null,null,null,null,null,{"$f":"IF(F56>0,F56,U18)","v":{"$error":"#DIV/0!"}},0]
[56,null,null,null,null,null,{"$f":"IF(F57>0,F57,U18)","v":{"$error":"#DIV/0!"}},0]
[57,null,null,null,null,null,{"$f":"IF(F58>0,F58,U18)","v":{"$error":"#DIV/0!"}},0]
[58,null,null,null,null,null,{"$f":"IF(F59>0,F59,U18)","v":{"$error":"#DIV/0!"}},0]
[59,null,null,null,null,null,{"$f":"IF(F60>0,F60,U18)","v":{"$error":"#DIV/0!"}},0]
[60,null,null,null,null,null,{"$f":"IF(F61>0,F61,U18)","v":{"$error":"#DIV/0!"}},0]
[61,null,null,null,null,null,{"$f":"IF(F62>0,F62,U18)","v":{"$error":"#DIV/0!"}},0]
[62,null,null,null,null,null,{"$f":"IF(F63>0,F63,U18)","v":{"$error":"#DIV/0!"}},0]
[63,null,null,null,null,null,{"$f":"IF(F64>0,F64,U18)","v":{"$error":"#DIV/0!"}},0]
[64,null,null,null,null,null,{"$f":"IF(F65>0,F65,U18)","v":{"$error":"#DIV/0!"}},0]
[65,null,null,null,null,null,{"$f":"IF(F66>0,F66,U18)","v":{"$error":"#DIV/0!"}},0]
[66,null,null,null,null,null,{"$f":"IF(F67>0,F67,U18)","v":{"$error":"#DIV/0!"}},{"$f":"COUNTA(C67:E67)","v":0}]
[67,null,null,null,null,null,{"$f":"IF(F68>0,F68,U18)","v":{"$error":"#DIV/0!"}},0]
[68,null,null,null,null,null,{"$f":"IF(F69>0,F69,U18)","v":{"$error":"#DIV/0!"}},0]
[69,null,null,null,null,null,{"$f":"IF(F70>0,F70,U18)","v":{"$error":"#DIV/0!"}},0]
[70,null,null,null,null,null,{"$f":"IF(F71>0,F71,U18)","v":{"$error":"#DIV/0!"}},0]
[71,null,null,null,null,null,{"$f":"IF(F72>0,F72,U18)","v":{"$error":"#DIV/0!"}},0]
[72,null,null,null,null,null,{"$f":"IF(F73>0,F73,U18)","v":{"$error":"#DIV/0!"}},0]
[73,null,null,null,null,null,{"$f":"IF(F74>0,F74,U18)","v":{"$error":"#DIV/0!"}},0]
[74,null,null,null,null,null,{"$f":"IF(F75>0,F75,U18)","v":{"$error":"#DIV/0!"}},0]
[75,null,null,null,null,null,{"$f":"IF(F76>0,F76,U18)","v":{"$error":"#DIV/0!"}},0]
[76,null,null,null,null,null,{"$f":"IF(F77>0,F77,U18)","v":{"$error":"#DIV/0!"}},0]
[77,null,null,null,null,null,{"$f":"IF(F78>0,F78,U18)","v":{"$error":"#DIV/0!"}},0]
[78,null,null,null,null,null,{"$f":"IF(F79>0,F79,U18)","v":{"$error":"#DIV/0!"}},0]
[79,null,null,null,null,null,{"$f":"IF(F80>0,F80,U18)","v":{"$error":"#DIV/0!"}},0]
[80,null,null,null,null,null,{"$f":"IF(F81>0,F81,U18)","v":{"$error":"#DIV/0!"}},0]
[81,null,null,null,null,null,{"$f":"IF(F82>0,F82,U18)","v":{"$error":"#DIV/0!"}},0]
[82,null,null,null,null,null,{"$f":"IF(F83>0,F83,U18)","v":{"$error":"#DIV/0!"}},0]
[83,null,null,null,null,null,{"$f":"IF(F84>0,F84,U18)","v":{"$error":"#DIV/0!"}},0]
[84,null,null,null,null,null,{"$f":"IF(F85>0,F85,U18)","v":{"$error":"#DIV/0!"}},0]
[85,null,null,null,null,null,{"$f":"IF(F86>0,F86,U18)","v":{"$error":"#DIV/0!"}},0]
[86,null,null,null,null,null,{"$f":"IF(F87>0,F87,U18)","v":{"$error":"#DIV/0!"}},0]
[87,null,null,null,null,null,{"$f":"IF(F88>0,F88,U18)","v":{"$error":"#DIV/0!"}},0]
[88,null,null,null,null,null,{"$f":"IF(F89>0,F89,U18)","v":{"$error":"#DIV/0!"}},0]
[89,null,null,null,null,null,{"$f":"IF(F90>0,F90,U18)","v":{"$error":"#DIV/0!"}},0]
[90,null,null,null,null,null,{"$f":"IF(F91>0,F91,U18)","v":{"$error":"#DIV/0!"}},0]
[91,null,null,null,null,null,{"$f":"IF(F92>0,F92,U18)","v":{"$error":"#DIV/0!"}},0]
[92,null,null,null,null,null,{"$f":"IF(F93>0,F93,U18)","v":{"$error":"#DIV/0!"}},0]
[93,null,null,null,null,null,{"$f":"IF(F94>0,F94,U18)","v":{"$error":"#DIV/0!"}},0]
[94,null,null,null,null,null,{"$f":"IF(F95>0,F95,U18)","v":{"$error":"#DIV/0!"}},0]
[95,null,null,null,null,null,{"$f":"IF(F96>0,F96,U18)","v":{"$error":"#DIV/0!"}},0]
[96,null,null,null,null,null,{"$f":"IF(F97>0,F97,U18)","v":{"$error":"#DIV/0!"}},0]
[97,null,null,null,null,null,{"$f":"IF(F98>0,F98,U18)","v":{"$error":"#DIV/0!"}},0]
[98,null,null,null,null,null,{"$f":"IF(F99>0,F99,U18)","v":{"$error":"#DIV/0!"}},0]
[99,null,null,null,null,null,{"$f":"IF(F100>0,F100,U18)","v":{"$error":"#DIV/0!"}},0]
[100,null,null,null,null,null,{"$f":"IF(F101>0,F101,U18)","v":{"$error":"#DIV/0!"}},0]
[101,null,null,null,null,null,{"$f":"IF(F102>0,F102,U18)","v":{"$error":"#DIV/0!"}},0]
[102,null,null,null,null,null,{"$f":"IF(F103>0,F103,U18)","v":{"$error":"#DIV/0!"}},0]
[103,null,null,null,null,null,{"$f":"IF(F104>0,F104,U18)","v":{"$error":"#DIV/0!"}},0]
[104,null,null,null,null,null,{"$f":"IF(F105>0,F105,U18)","v":{"$error":"#DIV/0!"}},0]
[105,null,null,null,null,null,{"$f":"IF(F106>0,F106,U18)","v":{"$error":"#DIV/0!"}},0]
[106,null,null,null,null,null,{"$f":"IF(F107>0,F107,U18)","v":{"$error":"#DIV/0!"}},0]
[107,null,null,null,null,null,{"$f":"IF(F108>0,F108,U18)","v":{"$error":"#DIV/0!"}},0]
[108,null,null,null,null,null,{"$f":"IF(F109>0,F109,U18)","v":{"$error":"#DIV/0!"}},0]
[109,null,null,null,null,null,{"$f":"IF(F110>0,F110,U18)","v":{"$error":"#DIV/0!"}},0]
[110,null,null,null,null,null,{"$f":"IF(F111>0,F111,U18)","v":{"$error":"#DIV/0!"}},0]
[null,null,null,null,null,"SUMA\n COEFICIENTES",{"$f":"SUM(G2:G111)","v":{"$error":"#DIV/0!"}}]

{"sheet":"1ºEVALUACION","index":1,"n_rows":130,"n_cols":18,"rows_kept":130,"cut":false,"hidden":false,"merged":[[125,15,127,15],[2,2,2,13],[131,8,132,8],[125,8,126,8],[125,9,126,12],[127,9,127,12],[125,13,127,14],[129,8,129,13],[4,2,4,4],[4,5,4,7],[123,9,123,13],[4,8,4,10],[4,11,4,13]]}
[]
[]
[null,null,"EVALUACIÓN"]
[]
[null,null,"INSTRUMENTO 1",null,null,"INSTRUMENTO 2",null,null,"INSTRUMENTO 3",null,null,"INSTRUMENTO 4",null,null,"Calificación","Valor Global","Estandar","Valor Global"]
["Estandar","Coeficiente","Instrumento 1","%","Nota","Instrumento 2","%","Nota","Instrumento 3","%","Nota","Instrumento 4","%","Nota",null,"Estandar","Repetido",1]
[{"$f":"IF(Estandares!C2=\"x\",Estandares!B2,\"BORRAR FILA\")","v":"BORRAR FILA"},{"$f":"Estandares!G2","v":{"$error":"#DIV/0!"}},"Instrumento 1",null,null,"Instrumento 2",null,null,"Instrumento 3",null,null,"Instrumento 4",null,null,{"$f":"(D7*E7)+(G7*H7)+(J7*K7)+(M7*N7)","v":0},{"$f":"IF(Q7=\"SI\",(O7*B7)/Estandares!K14/Estandares!H2,(O7*B7)/Estandares!K14)","v":{"$error":"#DIV/0!"}},{"$f":"IF(Estandares!H2>1,\"SI\",\"\")","v":""},{"$f":"(O7*B7)/Estandares!K14","v":{"$error":"#DIV/0!"}}]
[{"$f":"IF(Estandares!C3=\"x\",Estandares!B3,\"BORRAR FILA\")","v":"BORRAR FILA"},{"$f":"Estandares!G3","v":{"$error":"#DIV/0!"}},"Instrumento 1",null,null,"Instrumento 2",null,null,"Instrumento 3",null,null,"Instrumento 4",null,null,{"$f":"(D8*E8)+(G8*H8)+(J8*K8)+(M8*N8)","v":0},{"$f":"IF(Q8=\"SI\",(O8*B8)/Estandares!K14/Estandares!H3,(O8*B8)/Estandares!K14)","v":{"$error":"#DIV/0!"}},{"$f":"IF(Estandares!H3>1,\"SI\",\"\")","v":""},{"$f":"(O8*B8)/Estandares!K14","v":{"$error":"#DIV/0!"}}]
[{"$f":"IF(Estandares!C4=\"x\",Estandares!B4,\"BORRAR FILA\")","v":"BORRAR FILA"},{"$f":"Estandares!G4","v":{"$error":"#DIV/0!"}},"Instrumento 1",null,null,"Instrumento 2",null,null,"Instrumento 3",null,null,"Instrumento 4",null,null,0,{"$f":"IF(Q9=\"SI\",(O9*B9)/Estandares!K14/Estandares!H4,(O9*B9)/Estandares!K14)","v":{"$error":"#DIV/0!"}},{"$f":"IF(Estandares!H4>1,\"SI\",\"\")","v":""},{"$f":"(O9*B9)/Estandares!K14","v":{"$error":"#DIV/0!"}}]
[{"$f":"IF(Estandares!C5=\"x\",Estandares!B5,\"BORRAR FILA\")","v":"BORRAR FILA"},{"$f":"Estandares!G5","v":{"$error":"#DIV/0!"}},"Instrumento 1",null,null,"Instrumento 2",null,null,"Instrumento 3",null,null,"Instrumento 4",null,null,0,{"$f":"IF(Q10=\"SI\",(O10*B10)/Estandares!K14/Estandares!H5,(O10*B10)/Estandares!K14)","v":{"$error":"#DIV/0!"}},{"$f":"IF(Estandares!H5>1,\"SI\",\"\")","v":""},{"$f":"(O10*B10)/Estandares!K14","v":{"$error":"#DIV/0!"}}]
[{"$f":"IF(Estandares!C6=\"x\",Estandares!B6,\"BORRAR FILA\")","v":"BORRAR FILA"},{"$f":"Estandares!G6","v":{"$error":"#DIV/0!"}},"Instrumento 1",null,null,"Instrumento 2",null,null,"Instrumento 3",null,null,"Instrumento 4",null,null,0,{"$f":"IF(Q11=\"SI\",(O11*B11)/Estandares!K14/Estandares!H6,(O11*B11)/Estandares!K14)","v":{"$error":"#DIV/0!"}},{"$f":"IF(Estandares!H6>1,\"SI\",\"\")","v":""},{"$f":"(O11*B11)/Estandares!K14","v":{"$error":"#DIV/0!"}}]
[{"$f":"IF(Estandares!C7=\"x\",Estandares!B7,\"BORRAR FILA\")","v":"BORRAR FILA"},{"$f":"Estandares!G7","v":{"$error":"#DIV/0!"}},"Instrumento 1",null,null,"Instrumento 2",null,null,"Instrumento 3",null,null,"Instrumento 4",null,null,0,{"$f":"IF(Q12=\"SI\",(O12*B12)/Estandares!K14/Estandares!H7,(O12*B12)/Estandares!K14)","v":{"$error":"#DIV/0!"}},{"$f":"IF(Estandares!H7>1,\"SI\",\"\")","v":""},{"$f":"(O12*B12)/Estandares!K14","v":{"$error":"#DIV/0!"}}]
[{"$f":"IF(Estandares!C8=\"x\",Estandares!B8,\"BORRAR FILA\")","v":"BORRAR FILA"},{"$f":"Estandares!G8","v":{"$error":"#DIV/0!"}},"Instrumento 1",null,null,"Instrumento 2",null,null,"Instrumento 3",null,null,"Instrumento 4",null,null,0,{"$f":"IF(Q13=\"SI\",(O13*B13)/Estandares!K14/Estandares!H8,(O13*B13)/Estandares!K14)","v":{"$error":"#DIV/0!"}},{"$f":"IF(Estandares!H8>1,\"SI\",\"\")","v":""},{"$f":"(O13*B13)/Estandares!K14","v":{"$error":"#DIV/0!"}}]
[{"$f":"IF(Estandares!C9=\"x\",Estandares!B9,\"BORRAR FILA\")","v":"BORRAR FILA"},{"$f":"Estandares!G9","v":{"$error":"#DIV/0!"}},"Instrumento 1",null,null,"Instrumento 2",null,null,"Instrumento 3",null,null,"Instrumento 4",null,null,0,{"$f":"IF(Q14=\"SI\",(O14*B14)/Estandares!K14/Estandares!H10,(O14*B14)/Estandares!K14)","v":{"$error":"#DIV/0!"}},{"$f":"IF(Estandares!H10>1,\"SI\",\"\")","v":""},{"$f":"(O14*B14)/Estandares!K14","v":{"$error":"#DIV/0!"}}]
[{"$f":"IF(Estandares!C10=\"x\",Estandares!B10,\"BORRAR FILA\")","v":"BORRAR FILA"},{"$f":"Estandares!G10","v":{"$error":"#DIV/0!"}},"Instrumento 1",null,null,"Instrumento 2",null,null,"Instrumento 3",null,null,"Instrumento 4",null,null,0,{"$f":"IF(Q15=\"SI\",(O15*B15)/Estandares!K14/Estandares!H11,(O15*B15)/Estandares!K14)","v":{"$error":"#DIV/0!"}},{"$f":"IF(Estandares!H11>1,\"SI\",\"\")","v":""},{"$f":"(O15*B15)/Estandares!K14","v":{"$error":"#DIV/0!"}}]
[{"$f":"IF(Estandares!C11=\"x\",Estandares!B11,\"BORRAR FILA\")","v":"BORRAR FILA"},{"$f":"Estandares!G11","v":{"$error":"#DIV/0!"}},"Instrumento 1",null,null,"Instrumento 2",null,null,"Instrumento 3",null,null,"Instrumento 4",null,null,0,{"$f":"IF(Q16=\"SI\",(O16*B16)/Estandares!K14/Estandares!H12,(O16*B16)/Estandares!K14)","v":{"$error":"#DIV/0!"}},{"$f":"IF(Estandares!H12>1,\"SI\",\"\")","v":""},{"$f":"(O16*B16)/Estandares!K14","v":{"$error":"#DIV/0!"}}]
[{"$f":"IF(Estandares!C12=\"x\",Estandares!B12,\"BORRAR FILA\")","v":"BORRAR FILA"},{"$f":"Estandares!G12","v":{"$error":"#DIV/0!"}},"Instrumento 1",null,null,"Instrumento 2",null,null,"Instrumento 3",null,null,"Instrumento 4",null,null,0,{"$f":"IF(Q17=\"SI\",(O17*B17)/Estandares!K14/Estandares!H13,(O17*B17)/Estandares!K14)","v":{"$error":"#DIV/0!"}},{"$f":"IF(Estandares!H13>1,\"SI\",\"\")","v":""},{"$f":"(O17*B17)/Estandares!K14","v":{"$error":"#DIV/0!"}}]
[{"$f":"IF(Estandares!C13=\"x\",Estandares!B13,\"BORRAR FILA\")","v":"BORRAR FILA"},{"$f":"Estandares!G13","v":{"$error":"#DIV/0!"}},"Instrumento 1",null,null,"Instrumento 2",null,null,"Instrumento 3",null,null,"Instrumento 4",null,null,0,{"$f":"IF(Q18=\"SI\",(O18*B18)/Estandares!K14/Estandares!H20,(O18*B18)/Estandares!K14)","v":{"$error":"#DIV/0!"}},{"$f":"IF(Estandares!H20>1,\"SI\",\"\")","v":""},{"$f":"(O18*B18)/Estandares!K14","v":{"$error":"#DIV/0!"}}]
[{"$f":"IF(Estandares!C14=\"x\",Estandares!B14,\"BORRAR FILA\")","v":"BORRAR FILA"},{"$f":"Estandares!G14","v":{"$error":"#DIV/0!"}},"Instrumento 1",null,null,"Instrumento 2",null,null,"Instrumento 3",null,null,"Instrumento 4",null,null,0,{"$f":"IF(Q19=\"SI\",(O19*B19)/Estandares!K14/Estandares!H21,(O19*B19)/Estandares!K14)","v":{"$error":"#DIV/0!"}},{"$f":"IF(Estandares!H21>1,\"SI\",\"\")","v":""},{"$f":"(O19*B19)/Estandares!K14","v":{"$error":"#DIV/0!"}}]
[{"$f":"IF(Estandares!C15=\"x\",Estandares!B15,\"BORRAR FILA\")","v":"BORRAR FILA"},{"$f":"Estandares!G15","v":{"$error":"#DIV/0!"}},"Instrumento 1",null,null,"Instrumento 2",null,null,"Instrumento 3",null,null,"Instrumento 4",null,null,0,{"$f":"IF(Q20=\"SI\",(O20*B20)/Estandares!K14/Estandares!H22,(O20*B20)/Estandares!K14)","v":{"$error":"#DIV/0!"}},{"$f":"IF(Estandares!H22>1,\"SI\",\"\")","v":""},{"$f":"(O20*B20)/Estandares!K14","v":{"$error":"#DIV/0!"}}]
[{"$f":"IF(Estandares!C16=\"x\",Estandares!B16,\"BORRAR FILA\")","v":"BORRAR FILA"},{"$f":"Estandares!G16","v":{"$error":"#DIV/0!"}},"Instrumento 1",null,null,"Instrumento 2",null,null,"Instrumento 3",null,null,"Instrumento 4",null,null,0,{"$f":"IF(Q21=\"SI\",(O21*B21)/Estandares!K14/Estandares!H23,(O21*B21)/Estandares!K14)","v":{"$error":"#DIV/0!"}},{"$f":"IF(Estandares!H23>1,\"SI\",\"\")","v":""},{"$f":"(O21*B21)/Estandares!K14","v":{"$error":"#DIV/0!"}}]
[{"$f":"IF(Estandares!C17=\"x\",Estandares!B17,\"BORRAR FILA\")","v":"BORRAR FILA"},{"$f":"Estandares!G17","v":{"$error":"#DIV/0!"}},"Instrumento 1",null,null,"Instrumento 2",null,null,"Instrumento 3",null,null,"Instrumento 4",null,null,0,{"$f":"IF(Q22=\"SI\",(O22*B22)/Estandares!K14/Estandares!H28,(O22*B22)/Estandares!K14)","v":{"$error":"#DIV/0!"}},{"$f":"IF(Estandares!H28>1,\"SI\",\"\")","v":""},{"$f":"(O22*B22)/Estandares!K14","v":{"$error":"#DIV/0!"}}]
[{"$f":"IF(Estandares!C18=\"x\",Estandares!B18,\"BORRAR FILA\")","v":"BORRAR FILA"},{"$f":"Estandares!G18","v":{"$error":"#DIV/0!"}},"Instrumento 1",null,null,"Instrumento 2",null,null,"Instrumento 3",null,null,"Instrumento 4",null,null,0,{"$f":"IF(Q23=\"SI\",(O23*B23)/Estandares!K14/Estandares!H29,(O23*B23)/Estandares!K14)","v":{"$error":"#DIV/0!"}},{"$f":"IF(Estandares!H29>1,\"SI\",\"\")","v":""},{"$f":"(O23*B23)/Estandares!K14","v":{"$error":"#DIV/0!"}}]
[{"$f":"IF(Estandares!C19=\"x\",Estandares!B19,\"BORRAR FILA\")","v":"BORRAR FILA"},{"$f":"Estandares!G19","v":{"$error":"#DIV/0!"}},"Instrumento 1",null,null,"Instrumento 2",null,null,"Instrumento 3",null,null,"Instrumento 4",null,null,0,{"$f":"IF(Q24=\"SI\",(O24*B24)/Estandares!K14/Estandares!H30,(O24*B24)/Estandares!K14)","v":{"$error":"#DIV/0!"}},{"$f":"IF(Estandares!H30>1,\"SI\",\"\")","v":""},{"$f":"(O24*B24)/Estandares!K14","v":{"$error":"#DIV/0!"}}]
[{"$f":"IF(Estandares!C20=\"x\",Estandares!B20,\"BORRAR FILA\")","v":"BORRAR FILA"},{"$f":"Estandares!G20","v":{"$error":"#DIV/0!"}},"Instrumento 1",null,null,"Instrumento 2",null,null,"Instrumento 3",null,null,"Instrumento 4",null,null,0,{"$f":"IF(Q25=\"SI\",(O25*B25)/Estandares!K14/Estandares!H31,(O25*B25)/Estandares!K14)","v":{"$error":"#DIV/0!"}},{"$f":"IF(Estandares!H31>1,\"SI\",\"\")","v":""},{"$f":"(O25*B25)/Estandares!K14","v":{"$error":"#DIV/0!"}}]
[{"$f":"IF(Estandares!C21=\"x\",Estandares!B21,\"BORRAR FILA\")","v":"BORRAR FILA"},{"$f":"Estandares!G21","v":{"$error":"#DIV/0!"}},"Instrumento 1",null,null,"Instrumento 2",null,null,"Instrumento 3",null,null,"Instrumento 4",null,null,0,{"$f":"IF(Q26=\"SI\",(O26*B26)/Estandares!K14/Estandares!H32,(O26*B26)/Estandares!K14)","v":{"$error":"#DIV/0!"}},{"$f":"IF(Estandares!H32>1,\"SI\",\"\")","v":""},{"$f":"(O26*B26)/Estandares!K14","v":{"$error":"#DIV/0!"}}]
[{"$f":"IF(Estandares!C22=\"x\",Estandares!B22,\"BORRAR FILA\")","v":"BORRAR FILA"},{"$f":"Estandares!G22","v":{"$error":"#DIV/0!"}},"Instrumento 1",null,null,"Instrumento 2",null,null,"Instrumento 3",null,null,"Instrumento 4",null,null,0,{"$f":"IF(Q27=\"SI\",(O27*B27)/Estandares!K14/Estandares!H33,(O27*B27)/Estandares!K14)","v":{"$error":"#DIV/0!"}},{"$f":"IF(Estandares!H33>1,\"SI\",\"\")","v":""},{"$f":"(O27*B27)/Estandares!K14","v":{"$error":"#DIV/0!"}}]
[{"$f":"IF(Estandares!C23=\"x\",Estandares!B23,\"BORRAR FILA\")","v":"BORRAR FILA"},{"$f":"Estandares!G23","v":{"$error":"#DIV/0!"}},"Instrumento 1",null,null,"Instrumento 2",null,null,"Instrumento 3",null,null,"Instrumento 4",null,null,0,{"$f":"IF(Q28=\"SI\",(O28*B28)/Estandares!K14/Estandares!H34,(O28*B28)/Estandares!K14)","v":{"$error":"#DIV/0!"}},{"$f":"IF(Estandares!H34>1,\"SI\",\"\")","v":""},{"$f":"(O28*B28)/Estandares!K14","v":{"$error":"#DIV/0!"}}]
[{"$f":"IF(Estandares!C24=\"x\",Estandares!B24,\"BORRAR FILA\")","v":"BORRAR FILA"},{"$f":"Estandares!G24","v":{"$error":"#DIV/0!"}},"Instrumento 1",null,null,"Instrumento 2",null,null,"Instrumento 3",null,null,"Instrumento 4",null,null,0,{"$f":"IF(Q29=\"SI\",(O29*B29)/Estandares!K14/Estandares!H35,(O29*B29)/Estandares!K14)","v":{"$error":"#DIV/0!"}},{"$f":"IF(Estandares!H35>1,\"SI\",\"\")","v":""},{"$f":"(O29*B29)/Estandares!K14","v":{"$error":"#DIV/0!"}}]
[{"$f":"IF(Estandares!C25=\"x\",Estandares!B25,\"BORRAR FILA\")","v":"BORRAR FILA"},{"$f":"Estandares!G25","v":{"$error":"#DIV/0!"}},"Instrumento 1",null,null,"Instrumento 2",null,null,"Instrumento 3",null,null,"Instrumento 4",null,null,0,{"$f":"IF(Q30=\"SI\",(O30*B30)/Estandares!K14/Estandares!H36,(O30*B30)/Estandares!K14)","v":{"$error":"#DIV/0!"}},{"$f":"IF(Estandares!H36>1,\"SI\",\"\")","v":""},{"$f":"(O30*B30)/Estandares!K14","v":{"$error":"#DIV/0!"}}]
[{"$f":"IF(Estandares!C26=\"x\",Estandares!B26,\"BORRAR FILA\")","v":"BORRAR FILA"},{"$f":"Estandares!G26","v":{"$error":"#DIV/0!"}},"Instrumento 1",null,null,"Instrumento 2",null,null,"Instrumento 3",null,null,"Instrumento 4",null,null,0,{"$f":"IF(Q31=\"SI\",(O31*B31)/Estandares!K14/Estandares!H37,(O31*B31)/Estandares!K14)","v":{"$error":"#DIV/0!"}},{"$f":"IF(Estandares!H37>1,\"SI\",\"\")","v":""},{"$f":"(O31*B31)/Estandares!K14","v":{"$error":"#DIV/0!"}}]
[{"$f":"IF(Estandares!C27=\"x\",Estandares!B27,\"BORRAR FILA\")","v":"BORRAR FILA"},{"$f":"Estandares!G27","v":{"$error":"#DIV/0!"}},"Instrumento 1",null,null,"Instrumento 2",null,null,"Instrumento 3",null,null,"Instrumento 4",null,null,0,{"$f":"IF(Q32=\"SI\",(O32*B32)/Estandares!K14/Estandares!H38,(O32*B32)/Estandares!K14)","v":{"$error":"#DIV/0!"}},{"$f":"IF(Estandares!H38>1,\"SI\",\"\")","v":""},{"$f":"(O32*B32)/Estandares!K14","v":{"$error":"#DIV/0!"}}]
[{"$f":"IF(Estandares!C28=\"x\",Estandares!B28,\"BORRAR FILA\")","v":"BORRAR FILA"},{"$f":"Estandares!G28","v":{"$error":"#DIV/0!"}},"Instrumento 1",null,null,"Instrumento 2",null,null,"Instrumento 3",null,null,"Instrumento 4",null,null,0,{"$f":"IF(Q33=\"SI\",(O33*B33)/Estandares!K14/Estandares!H39,(O33*B33)/Estandares!K14)","v":{"$error":"#DIV/0!"}},{"$f":"IF(Estandares!H39>1,\"SI\",\"\")","v":""},{"$f":"(O33*B33)/Estandares!K14","v":{"$error":"#DIV/0!"}}]
[{"$f":"IF(Estandares!C29=\"x\",Estandares!B29,\"BORRAR FILA\")","v":"BORRAR FILA"},{"$f":"Estandares!G29","v":{"$error":"#DIV/0!"}},"Instrumento 1",null,null,"Instrumento 2",null,null,"Instrumento 3",null,null,"Instrumento 4",null,null,0,{"$f":"IF(Q34=\"SI\",(O34*B34)/Estandares!K14/Estandares!H40,(O34*B34)/Estandares!K14)","v":{"$error":"#DIV/0!"}},{"$f":"IF(Estandares!H40>1,\"SI\",\"\")","v":""},{"$f":"(O34*B34)/Estandares!K14","v":{"$error":"#DIV/0!"}}]
[{"$f":"IF(Estandares!C30=\"x\",Estandares!B30,\"BORRAR FILA\")","v":"BORRAR FILA"},{"$f":"Estandares!G30","v":{"$error":"#DIV/0!"}},"Instrumento 1",null,null,"Instrumento 2",null,null,"Instrumento 3",null,null,"Instrumento 4",null,null,0,{"$f":"IF(Q35=\"SI\",(O35*B35)/Estandares!K14/Estandares!H41,(O35*B35)/Estandares!K14)","v":{"$error":"#DIV/0!"}},{"$f":"IF(Estandares!H41>1,\"SI\",\"\")","v":""},{"$f":"(O35*B35)/Estandares!K14","v":{"$error":"#DIV/0!"}}]
[{"$f":"IF(Estandares!C31=\"x\",Estandares!B31,\"BORRAR FILA\")","v":"BORRAR FILA"},{"$f":"Estandares!G31","v":{"$error":"#DIV/0!"}},"Instrumento 1",null,null,"Instrumento 2",null,null,"Instrumento 3",null,null,"Instrumento 4",null,null,0,{"$f":"IF(Q36=\"SI\",(O36*B36)/Estandares!K14/Estandares!H42,(O36*B36)/Estandares!K14)","v":{"$error":"#DIV/0!"}},{"$f":"IF(Estandares!H42>1,\"SI\",\"\")","v":""},{"$f":"(O36*B36)/Estandares!K14","v":{"$error":"#DIV/0!"}}]
[{"$f":"IF(Estandares!C32=\"x\",Estandares!B32,\"BORRAR FILA\")","v":"BORRAR FILA"},{"$f":"Estandares!G32","v":{"$error":"#DIV/0!"}},"Instrumento 1",null,null,"Instrumento 2",null,null,"Instrumento 3",null,null,"Instrumento 4",null,null,0,{"$f":"IF(Q37=\"SI\",(O37*B37)/Estandares!K14/Estandares!H43,(O37*B37)/Estandares!K14)","v":{"$error":"#DIV/0!"}},{"$f":"IF(Estandares!H43>1,\"SI\",\"\")","v":""},{"$f":"(O37*B37)/Estandares!K14","v":{"$error":"#DIV/0!"}}]
[{"$f":"IF(Estandares!C33=\"x\",Estandares!B33,\"BORRAR FILA\")","v":"BORRAR FILA"},{"$f":"Estandares!G33","v":{"$error":"#DIV/0!"}},"Instrumento 1",null,null,"Instrumento 2",null,null,"Instrumento 3",null,null,"Instrumento 4",null,null,0,{"$f":"IF(Q38=\"SI\",(O38*B38)/Estandares!K14/Estandares!H44,(O38*B38)/Estandares!K14)","v":{"$error":"#DIV/0!"}},{"$f":"IF(Estandares!H44>1,\"SI\",\"\")","v":""},{"$f":"(O38*B38)/Estandares!K14","v":{"$error":"#DIV/0!"}}]
[{"$f":"IF(Estandares!C34=\"x\",Estandares!B34,\"BORRAR FILA\")","v":"BORRAR FILA"},{"$f":"Estandares!G34","v":{"$error":"#DIV/0!"}},"Instrumento 1",null,null,"Instrumento 2",null,null,"Instrumento 3",null,null,"Instrumento 4",null,null,0,{"$f":"IF(Q39=\"SI\",(O39*B39)/Estandares!K14/Estandares!H45,(O39*B39)/Estandares!K14)","v":{"$error":"#DIV/0!"}},{"$f":"IF(Estandares!H45>1,\"SI\",\"\")","v":""},{"$f":"(O39*B39)/Estandares!K14","v":{"$error":"#DIV/0!"}}]
[{"$f":"IF(Estandares!C35=\"x\",Estandares!B35,\"BORRAR FILA\")","v":"BORRAR FILA"},{"$f":"Estandares!G35","v":{"$error":"#DIV/0!"}},"Instrumento 1",null,null,"Instrumento 2",null,null,"Instrumento 3",null,null,"Instrumento 4",null,null,0,{"$f":"IF(Q40=\"SI\",(O40*B40)/Estandares!K14/Estandares!H46,(O40*B40)/Estandares!K14)","v":{"$error":"#DIV/0!"}},{"$f":"IF(Estandares!H46>1,\"SI\",\"\")","v":""},{"$f":"(O40*B40)/Estandares!K14","v":{"$error":"#DIV/0!"}}]
[{"$f":"IF(Estandares!C36=\"x\",Estandares!B36,\"BORRAR FILA\")","v":"BORRAR FILA"},{"$f":"Estandares!G36","v":{"$error":"#DIV/0!"}},"Instrumento 1",null,null,"Instrumento 2",null,null,"Instrumento 3",null,null,"Instrumento 4",null,null,0,{"$f":"IF(Q41=\"SI\",(O41*B41)/Estandares!K14/Estandares!H47,(O41*B41)/Estandares!K14)","v":{"$error":"#DIV/0!"}},{"$f":"IF(Estandares!H47>1,\"SI\",\"\")","v":""},{"$f":"(O41*B41)/Estandares!K14","v":{"$error":"#DIV/0!"}}]
[{"$f":"IF(Estandares!C37=\"x\",Estandares!B37,\"BORRAR FILA\")","v":"BORRAR FILA"},{"$f":"Estandares!G37","v":{"$error":"#DIV/0!"}},"Instrumento 1",null,null,"Instrumento 2",null,null,"Instrumento 3",null,null,"Instrumento 4",null,null,0,{"$f":"IF(Q42=\"SI\",(O42*B42)/Estandares!K14/Estandares!H48,(O42*B42)/Estandares!K14)","v":{"$error":"#DIV/0!"}},{"$f":"IF(Estandares!H48>1,\"SI\",\"\")","v":""},{"$f":"(O42*B42)/Estandares!K14","v":{"$error":"#DIV/0!"}}]
[{"$f":"IF(Estandares!C38=\"x\",Estandares!B38,\"BORRAR FILA\")","v":"BORRAR FILA"},{"$f":"Estandares!G38","v":{"$error":"#DIV/0!"}},"Instrumento 1",null,null,"Instrumento 2",null,null,"Instrumento 3",null,null,"Instrumento 4",null,null,0,{"$f":"IF(Q43=\"SI\",(O43*B43)/Estandares!K14/Estandares!H49,(O43*B43)/Estandares!K14)","v":{"$error":"#DIV/0!"}},{"$f":"IF(Estandares!H49>1,\"SI\",\"\")","v":""},{"$f":"(O43*B43)/Estandares!K14","v":{"$error":"#DIV/0!"}}]
[{"$f":"IF(Estandares!C39=\"x\",Estandares!B39,\"BORRAR FILA\")","v":"BORRAR FILA"},{"$f":"Estandares!G39","v":{"$error":"#DIV/0!"}},"Instrumento 1",null,null,"Instrumento 2",null,null,"Instrumento 3",null,null,"Instrumento 4",null,null,0,{"$f":"IF(Q44=\"SI\",(O44*B44)/Estandares!K14/Estandares!H50,(O44*B44)/Estandares!K14)","v":{"$error":"#DIV/0!"}},{"$f":"IF(Estandares!H50>1,\"SI\",\"\")","v":""},{"$f":"(O44*B44)/Estandares!K14","v":{"$error":"#DIV/0!"}}]
[{"$f":"IF(Estandares!C40=\"x\",Estandares!B40,\"BORRAR FILA\")","v":"BORRAR FILA"},{"$f":"Estandares!G40","v":{"$error":"#DIV/0!"}},"Instrumento 1",null,null,"Instrumento 2",null,null,"Instrumento 3",null,null,"Instrumento 4",null,null,0,{"$f":"IF(Q45=\"SI\",(O45*B45)/Estandares!K14/Estandares!H51,(O45*B45)/Estandares!K14)","v":{"$error":"#DIV/0!"}},{"$f":"IF(Estandares!H51>1,\"SI\",\"\")","v":""},{"$f":"(O45*B45)/Estandares!K14","v":{"$error":"#DIV/0!"}}]
[{"$f":"IF(Estandares!C41=\"x\",Estandares!B41,\"BORRAR FILA\")","v":"BORRAR FILA"},{"$f":"Estandares!G41","v":{"$error":"#DIV/0!"}},"Instrumento 1",null,null,"Instrumento 2",null,null,"Instrumento 3",null,null,"Instrumento 4",null,null,0,{"$f":"IF(Q46=\"SI\",(O46*B46)/Estandares!K14/Estandares!H52,(O46*B46)/Estandares!K14)","v":{"$error":"#DIV/0!"}},{"$f":"IF(Estandares!H52>1,\"SI\",\"\")","v":""},{"$f":"(O46*B46)/Estandares!K14","v":{"$error":"#DIV/0!"}}]
[{"$f":"IF(Estandares!C42=\"x\",Estandares!B42,\"BORRAR FILA\")","v":"BORRAR FILA"},{"$f":"Estandares!G42","v":{"$error":"#DIV/0!"}},"Instrumento 1",null,null,"Instrumento 2",null,null,"Instrumento 3",null,null,"Instrumento 4",null,null,0,{"$f":"IF(Q47=\"SI\",(O47*B47)/Estandares!K14/Estandares!H53,(O47*B47)/Estandares!K14)","v":{"$error":"#DIV/0!"}},{"$f":"IF(Estandares!H53>1,\"SI\",\"\")","v":""},{"$f":"(O47*B47)/Estandares!K14","v":{"$error":"#DIV/0!"}}]
[{"$f":"IF(Estandares!C43=\"x\",Estandares!B43,\"BORRAR FILA\")","v":"BORRAR FILA"},{"$f":"Estandares!G43","v":{"$error":"#DIV/0!"}},"Instrumento 1",null,null,"Instrumento 2",null,null,"Instrumento 3",null,null,"Instrumento 4",null,null,0,{"$f":"IF(Q48=\"SI\",(O48*B48)/Estandares!K14/Estandares!H54,(O48*B48)/Estandares!K14)","v":{"$error":"#DIV/0!"}},{"$f":"IF(Estandares!H54>1,\"SI\",\"\")","v":""},{"$f":"(O48*B48)/Estandares!K14","v":{"$error":"#DIV/0!"}}]
[{"$f":"IF(Estandares!C44=\"x\",Estandares!B44,\"BORRAR FILA\")","v":"BORRAR FILA"},{"$f":"Estandares!G44","v":{"$error":"#DIV/0!"}},"Instrumento 1",null,null,"Instrumento 2",null,null,"Instrumento 3",null,null,"Instrumento 4",null,null,0,{"$f":"IF(Q49=\"SI\",(O49*B49)/Estandares!K14/Estandares!H55,(O49*B49)/Estandares!K14)","v":{"$error":"#DIV/0!"}},{"$f":"IF(Estandares!H55>1,\"SI\",\"\")","v":""},{"$f":"(O49*B49)/Estandares!K14","v":{"$error":"#DIV/0!"}}]
[{"$f":"IF(Estandares!C45=\"x\",Estandares!B45,\"BORRAR FILA\")","v":"BORRAR FILA"},{"$f":"Estandares!G45","v":{"$error":"#DIV/0!"}},"Instrumento 1",null,null,"Instrumento 2",null,null,"Instrumento 3",null,null,"Instrumento 4",null,null,0,{"$f":"IF(Q50=\"SI\",(O50*B50)/Estandares!K14/Estandares!H56,(O50*B50)/Estandares!K14)","v":{"$error":"#DIV/0!"}},{"$f":"IF(Estandares!H56>1,\"SI\",\"\")","v":""},{"$f":"(O50*B50)/Estandares!K14","v":{"$error":"#DIV/0!"}}]
[{"$f":"IF(Estandares!C46=\"x\",Estandares!B46,\"BORRAR FILA\")","v":"BORRAR FILA"},{"$f":"Estandares!G46","v":{"$error":"#DIV/0!"}},"Instrumento 1",null,null,"Instrumento 2",null,null,"Instrumento 3",null,null,"Instrumento 4",null,null,0,{"$f":"IF(Q51=\"SI\",(O51*B51)/Estandares!K14/Estandares!H57,(O51*B51)/Estandares!K14)","v":{"$error":"#DIV/0!"}},{"$f":"IF(Estandares!H57>1,\"SI\",\"\")","v":""},{"$f":"(O51*B51)/Estandares!K14","v":{"$error":"#DIV/0!"}}]
[{"$f":"IF(Estandares!C47=\"x\",Estandares!B47,\"BORRAR FILA\")","v":"BORRAR FILA"},{"$f":"Estandares!G47","v":{"$error":"#DIV/0!"}},"Instrumento 1",null,null,"Instrumento 2",null,null,"Instrumento 3",null,null,"Instrumento 4",null,null,0,{"$f":"IF(Q52=\"SI\",(O52*B52)/Estandares!K14/Estandares!H58,(O52*B52)/Estandares!K14)","v":{"$error":"#DIV/0!"}},{"$f":"IF(Estandares!H58>1,\"SI\",\"\")","v":""},{"$f":"(O52*B52)/Estandares!K14","v":{"$error":"#DIV/0!"}}]
[{"$f":"IF(Estandares!C48=\"x\",Estandares!B48,\"BORRAR FILA\")","v":"BORRAR FILA"},{"$f":"Estandares!G48","v":{"$error":"#DIV/0!"}},"Instrumento 1",null,null,"Instrumento 2",null,null,"Instrumento 3",null,null,"Instrumento 4",null,null,0,{"$f":"IF(Q53=\"SI\",(O53*B53)/Estandares!K14/Estandares!H59,(O53*B53)/Estandares!K14)","v":{"$error":"#DIV/0!"}},{"$f":"IF(Estandares!H59>1,\"SI\",\"\")","v":""},{"$f":"(O53*B53)/Estandares!K14","v":{"$error":"#DIV/0!"}}]
[{"$f":"IF(Estandares!C49=\"x\",Estandares!B49,\"BORRAR FILA\")","v":"BORRAR FILA"},{"$f":"Estandares!G49","v":{"$error":"#DIV/0!"}},"Instrumento 1",null,null,"Instrumento 2",null,null,"Instrumento 3",null,null,"Instrumento 4",null,null,0,{"$f":"IF(Q54=\"SI\",(O54*B54)/Estandares!K14/Estandares!H60,(O54*B54)/Estandares!K14)","v":{"$error":"#DIV/0!"}},{"$f":"IF(Estandares!H60>1,\"SI\",\"\")","v":""},{"$f":"(O54*B54)/Estandares!K14","v":{"$error":"#DIV/0!"}}]
[{"$f":"IF(Estandares!C50=\"x\",Estandares!B50,\"BORRAR FILA\")","v":"BORRAR FILA"},{"$f":"Estandares!G50","v":{"$error":"#DIV/0!"}},"Instrumento 1",null,null,"Instrumento 2",null,null,"Instrumento 3",null,null,"Instrumento 4",null,null,0,{"$f":"IF(Q55=\"SI\",(O55*B55)/Estandares!K14/Estandares!H61,(O55*B55)/Estandares!K14)","v":{"$error":"#DIV/0!"}},{"$f":"IF(Estandares!H61>1,\"SI\",\"\")","v":""},{"$f":"(O55*B55)/Estandares!K14","v":{"$error":"#DIV/0!"}}]
[{"$f":"IF(Estandares!C51=\"x\",Estandares!B51,\"BORRAR FILA\")","v":"BORRAR FILA"},{"$f":"Estandares!G51","v":{"$error":"#DIV/0!"}},"Instrumento 1",null,null,"Instrumento 2",null,null,"Instrumento 3",null,null,"Instrumento 4",null,null,0,{"$f":"IF(Q56=\"SI\",(O56*B56)/Estandares!K14/Estandares!H62,(O56*B56)/Estandares!K14)","v":{"$error":"#DIV/0!"}},{"$f":"IF(Estandares!H62>1,\"SI\",\"\")","v":""},{"$f":"(O56*B56)/Estandares!K14","v":{"$error":"#DIV/0!"}}]
[{"$f":"IF(Estandares!C52=\"x\",Estandares!B52,\"BORRAR FILA\")","v":"BORRAR FILA"},{"$f":"Estandares!G52","v":{"$error":"#DIV/0!"}},"Instrumento 1",null,null,"Instrumento 2",null,null,"Instrumento 3",null,null,"Instrumento 4",null,null,0,{"$f":"IF(Q57=\"SI\",(O57*B57)/Estandares!K14/Estandares!H63,(O57*B57)/Estandares!K14)","v":{"$error":"#DIV/0!"}},{"$f":"IF(Estandares!H63>1,\"SI\",\"\")","v":""},{"$f":"(O57*B57)/Estandares!K14","v":{"$error":"#DIV/0!"}}]
[{"$f":"IF(Estandares!C53=\"x\",Estandares!B53,\"BORRAR FILA\")","v":"BORRAR FILA"},{"$f":"Estandares!G53","v":{"$error":"#DIV/0!"}},"Instrumento 1",null,null,"Instrumento 2",null,null,"Instrumento 3",null,null,"Instrumento 4",null,null,0,{"$f":"IF(Q58=\"SI\",(O58*B58)/Estandares!K14/Estandares!H64,(O58*B58)/Estandares!K14)","v":{"$error":"#DIV/0!"}},{"$f":"IF(Estandares!H64>1,\"SI\",\"\")","v":""},{"$f":"(O58*B58)/Estandares!K14","v":{"$error":"#DIV/0!"}}]
[{"$f":"IF(Estandares!C54=\"x\",Estandares!B54,\"BORRAR FILA\")","v":"BORRAR FILA"},{"$f":"Estandares!G54","v":{"$error":"#DIV/0!"}},"Instrumento 1",null,null,"Instrumento 2",null,null,"Instrumento 3",null,null,"Instrumento 4",null,null,0,{"$f":"IF(Q59=\"SI\",(O59*B59)/Estandares!K14/Estandares!H65,(O59*B59)/Estandares!K14)","v":{"$error":"#DIV/0!"}},{"$f":"IF(Estandares!H65>1,\"SI\",\"\")","v":""},{"$f":"(O59*B59)/Estandares!K14","v":{"$error":"#DIV/0!"}}]
[{"$f":"IF(Estandares!C55=\"x\",Estandares!B55,\"BORRAR FILA\")","v":"BORRAR FILA"},{"$f":"Estandares!G55","v":{"$error":"#DIV/0!"}},"Instrumento 1",null,null,"Instrumento 2",null,null,"Instrumento 3",null,null,"Instrumento 4",null,null,0,{"$f":"IF(Q60=\"SI\",(O60*B60)/Estandares!K14/Estandares!H66,(O60*B60)/Estandares!K14)","v":{"$error":"#DIV/0!"}},{"$f":"IF(Estandares!H66>1,\"SI\",\"\")","v":""},{"$f":"(O60*B60)/Estandares!K14","v":{"$error":"#DIV/0!"}}]
[{"$f":"IF(Estandares!C56=\"x\",Estandares!B56,\"BORRAR FILA\")","v":"BORRAR FILA"},{"$f":"Estandares!G56","v":{"$error":"#DIV/0!"}},"Instrumento 1",null,null,"Instrumento 2",null,null,"Instrumento 3",null,null,"Instrumento 4",null,null,0,{"$f":"IF(Q61=\"SI\",(O61*B61)/Estandares!K14/Estandares!H67,(O61*B61)/Estandares!K14)","v":{"$error":"#DIV/0!"}},{"$f":"IF(Estandares!H67>1,\"SI\",\"\")","v":""},{"$f":"(O61*B61)/Estandares!K14","v":{"$error":"#DIV/0!"}}]
[{"$f":"IF(Estandares!C57=\"x\",Estandares!B57,\"BORRAR FILA\")","v":"BORRAR FILA"},{"$f":"Estandares!G57","v":{"$error":"#DIV/0!"}},"Instrumento 1",null,null,"Instrumento 2",null,null,"Instrumento 3",null,null,"Instrumento 4",null,null,0,{"$f":"IF(Q62=\"SI\",(O62*B62)/Estandares!K14/Estandares!H68,(O62*B62)/Estandares!K14)","v":{"$error":"#DIV/0!"}},{"$f":"IF(Estandares!H68>1,\"SI\",\"\")","v":""},{"$f":"(O62*B62)/Estandares!K14","v":{"$error":"#DIV/0!"}}]
[{"$f":"IF(Estandares!C58=\"x\",Estandares!B58,\"BORRAR FILA\")","v":"BORRAR FILA"},{"$f":"Estandares!G58","v":{"$error":"#DIV/0!"}},"Instrumento 1",null,null,"Instrumento 2",null,null,"Instrumento 3",null,null,"Instrumento 4",null,null,0,{"$f":"IF(Q63=\"SI\",(O63*B63)/Estandares!K14/Estandares!H69,(O63*B63)/Estandares!K14)","v":{"$error":"#DIV/0!"}},{"$f":"IF(Estandares!H69>1,\"SI\",\"\")","v":""},{"$f":"(O63*B63)/Estandares!K14","v":{"$error":"#DIV/0!"}}]
[{"$f":"IF(Estandares!C59=\"x\",Estandares!B59,\"BORRAR FILA\")","v":"BORRAR FILA"},{"$f":"Estandares!G59","v":{"$error":"#DIV/0!"}},"Instrumento 1",null,null,"Instrumento 2",null,null,"Instrumento 3",null,null,"Instrumento 4",null,null,0,{"$f":"IF(Q64=\"SI\",(O64*B64)/Estandares!K14/Estandares!H70,(O64*B64)/Estandares!K14)","v":{"$error":"#DIV/0!"}},{"$f":"IF(Estandares!H70>1,\"SI\",\"\")","v":""},{"$f":"(O64*B64)/Estandares!K14","v":{"$error":"#DIV/0!"}}]
[{"$f":"IF(Estandares!C60=\"x\",Estandares!B60,\"BORRAR FILA\")","v":"BORRAR FILA"},{"$f":"Estandares!G60","v":{"$error":"#DIV/0!"}},"Instrumento 1",null,null,"Instrumento 2",null,null,"Instrumento 3",null,null,"Instrumento 4",null,null,0,{"$f":"IF(Q65=\"SI\",(O65*B65)/Estandares!K14/Estandares!H71,(O65*B65)/Estandares!K14)","v":{"$error":"#DIV/0!"}},{"$f":"IF(Estandares!H71>1,\"SI\",\"\")","v":""},{"$f":"(O65*B65)/Estandares!K14","v":{"$error":"#DIV/0!"}}]
[{"$f":"IF(Estandares!C61=\"x\",Estandares!B61,\"BORRAR FILA\")","v":"BORRAR FILA"},{"$f":"Estandares!G61","v":{"$error":"#DIV/0!"}},"Instrumento 1",null,null,"Instrumento 2",null,null,"Instrumento 3",null,null,"Instrumento 4",null,null,0,{"$f":"IF(Q66=\"SI\",(O66*B66)/Estandares!K14/Estandares!H72,(O66*B66)/Estandares!K14)","v":{"$error":"#DIV/0!"}},{"$f":"IF(Estandares!H72>1,\"SI\",\"\")","v":""},{"$f":"(O66*B66)/Estandares!K14","v":{"$error":"#DIV/0!"}}]
[{"$f":"IF(Estandares!C62=\"x\",Estandares!B62,\"BORRAR FILA\")","v":"BORRAR FILA"},{"$f":"Estandares!G62","v":{"$error":"#DIV/0!"}},"Instrumento 1",null,null,"Instrumento 2",null,null,"Instrumento 3",null,null,"Instrumento 4",null,null,0,{"$f":"IF(Q67=\"SI\",(O67*B67)/Estandares!K14/Estandares!H73,(O67*B67)/Estandares!K14)","v":{"$error":"#DIV/0!"}},{"$f":"IF(Estandares!H73>1,\"SI\",\"\")","v":""},{"$f":"(O67*B67)/Estandares!K14","v":{"$error":"#DIV/0!"}}]
[{"$f":"IF(Estandares!C63=\"x\",Estandares!B63,\"BORRAR FILA\")","v":"BORRAR FILA"},{"$f":"Estandares!G63","v":{"$error":"#DIV/0!"}},"Instrumento 1",null,null,"Instrumento 2",null,null,"Instrumento 3",null,null,"Instrumento 4",null,null,0,{"$f":"IF(Q68=\"SI\",(O68*B68)/Estandares!K14/Estandares!H74,(O68*B68)/Estandares!K14)","v":{"$error":"#DIV/0!"}},{"$f":"IF(Estandares!H74>1,\"SI\",\"\")","v":""},{"$f":"(O68*B68)/Estandares!K14","v":{"$error":"#DIV/0!"}}]
[{"$f":"IF(Estandares!C64=\"x\",Estandares!B64,\"BORRAR FILA\")","v":"BORRAR FILA"},{"$f":"Estandares!G64","v":{"$error":"#DIV/0!"}},"Instrumento 1",null,null,"Instrumento 2",null,null,"Instrumento 3",null,null,"Instrumento 4",null,null,0,{"$f":"IF(Q69=\"SI\",(O69*B69)/Estandares!K14/Estandares!H75,(O69*B69)/Estandares!K14)","v":{"$error":"#DIV/0!"}},{"$f":"IF(Estandares!H75>1,\"SI\",\"\")","v":""},{"$f":"(O69*B69)/Estandares!K14","v":{"$error":"#DIV/0!"}}]
[{"$f":"IF(Estandares!C65=\"x\",Estandares!B65,\"BORRAR FILA\")","v":"BORRAR FILA"},{"$f":"Estandares!G65","v":{"$error":"#DIV/0!"}},"Instrumento 1",null,null,"Instrumento 2",null,null,"Instrumento 3",null,null,"Instrumento 4",null,null,0,{"$f":"IF(Q70=\"SI\",(O70*B70)/Estandares!K14/Estandares!H76,(O70*B70)/Estandares!K14)","v":{"$error":"#DIV/0!"}},{"$f":"IF(Estandares!H76>1,\"SI\",\"\")","v":""},{"$f":"(O70*B70)/Estandares!K14","v":{"$error":"#DIV/0!"}}]
[{"$f":"IF(Estandares!C66=\"x\",Estandares!B66,\"BORRAR FILA\")","v":"BORRAR FILA"},{"$f":"Estandares!G66","v":{"$error":"#DIV/0!"}},"Instrumento 1",null,null,"Instrumento 2",null,null,"Instrumento 3",null,null,"Instrumento 4",null,null,0,{"$f":"IF(Q71=\"SI\",(O71*B71)/Estandares!K14/Estandares!H77,(O71*B71)/Estandares!K14)","v":{"$error":"#DIV/0!"}},{"$f":"IF(Estandares!H77>1,\"SI\",\"\")","v":""},{"$f":"(O71*B71)/Estandares!K14","v":{"$error":"#DIV/0!"}}]
[{"$f":"IF(Estandares!C67=\"x\",Estandares!B67,\"BORRAR FILA\")","v":"BORRAR FILA"},{"$f":"Estandares!G67","v":{"$error":"#DIV/0!"}},"Instrumento 1",null,null,"Instrumento 2",null,null,"Instrumento 3",null,null,"Instrumento 4",null,null,{"$f":"(D72*E72)+(G72*H72)+(J72*K72)+(M72*N72)","v":0},{"$f":"IF(Q72=\"SI\",(O72*B72)/Estandares!K14/Estandares!H78,(O72*B72)/Estandares!K14)","v":{"$error":"#DIV/0!"}},{"$f":"IF(Estandares!H78>1,\"SI\",\"\")","v":""},{"$f":"(O72*B72)/Estandares!K14","v":{"$error":"#DIV/0!"}}]
[{"$f":"IF(Estandares!C68=\"x\",Estandares!B68,\"BORRAR FILA\")","v":"BORRAR FILA"},{"$f":"Estandares!G68","v":{"$error":"#DIV/0!"}},"Instrumento 1",null,null,"Instrumento 2",null,null,"Instrumento 3",null,null,"Instrumento 4",null,null,0,{"$f":"IF(Q73=\"SI\",(O73*B73)/Estandares!K14/Estandares!H79,(O73*B73)/Estandares!K14)","v":{"$error":"#DIV/0!"}},{"$f":"IF(Estandares!H79>1,\"SI\",\"\")","v":""},{"$f":"(O73*B73)/Estandares!K14","v":{"$error":"#DIV/0!"}}]
[{"$f":"IF(Estandares!C69=\"x\",Estandares!B69,\"BORRAR FILA\")","v":"BORRAR FILA"},{"$f":"Estandares!G69","v":{"$error":"#DIV/0!"}},"Instrumento 1",null,null,"Instrumento 2",null,null,"Instrumento 3",null,null,"Instrumento 4",null,null,0,{"$f":"IF(Q74=\"SI\",(O74*B74)/Estandares!K14/Estandares!H80,(O74*B74)/Estandares!K14)","v":{"$error":"#DIV/0!"}},{"$f":"IF(Estandares!H80>1,\"SI\",\"\")","v":""},{"$f":"(O74*B74)/Estandares!K14","v":{"$error":"#DIV/0!"}}]
[{"$f":"IF(Estandares!C70=\"x\",Estandares!B70,\"BORRAR FILA\")","v":"BORRAR FILA"},{"$f":"Estandares!G70","v":{"$error":"#DIV/0!"}},"Instrumento 1",null,null,"Instrumento 2",null,null,"Instrumento 3",null,null,"Instrumento 4",null,null,0,{"$f":"IF(Q75=\"SI\",(O75*B75)/Estandares!K14/Estandares!H81,(O75*B75)/Estandares!K14)","v":{"$error":"#DIV/0!"}},{"$f":"IF(Estandares!H81>1,\"SI\",\"\")","v":""},{"$f":"(O75*B75)/Estandares!K14","v":{"$error":"#DIV/0!"}}]
[{"$f":"IF(Estandares!C71=\"x\",Estandares!B71,\"BORRAR FILA\")","v":"BORRAR FILA"},{"$f":"Estandares!G71","v":{"$error":"#DIV/0!"}},"Instrumento 1",null,null,"Instrumento 2",null,null,"Instrumento 3",null,null,"Instrumento 4",null,null,0,{"$f":"IF(Q76=\"SI\",(O76*B76)/Estandares!K14/Estandares!H82,(O76*B76)/Estandares!K14)","v":{"$error":"#DIV/0!"}},{"$f":"IF(Estandares!H82>1,\"SI\",\"\")","v":""},{"$f":"(O76*B76)/Estandares!K14","v":{"$error":"#DIV/0!"}}]
[{"$f":"IF(Estandares!C72=\"x\",Estandares!B72,\"BORRAR FILA\")","v":"BORRAR FILA"},{"$f":"Estandares!G72","v":{"$error":"#DIV/0!"}},"Instrumento 1",null,null,"Instrumento 2",null,null,"Instrumento 3",null,null,"Instrumento 4",null,null,0,{"$f":"IF(Q77=\"SI\",(O77*B77)/Estandares!K14/Estandares!H83,(O77*B77)/Estandares!K14)","v":{"$error":"#DIV/0!"}},{"$f":"IF(Estandares!H83>1,\"SI\",\"\")","v":""},{"$f":"(O77*B77)/Estandares!K14","v":{"$error":"#DIV/0!"}}]
[{"$f":"IF(Estandares!C73=\"x\",Estandares!B73,\"BORRAR FILA\")","v":"BORRAR FILA"},{"$f":"Estandares!G73","v":{"$error":"#DIV/0!"}},"Instrumento 1",null,null,"Instrumento 2",null,null,"Instrumento 3",null,null,"Instrumento 4",null,null,0,{"$f":"IF(Q78=\"SI\",(O78*B78)/Estandares!K14/Estandares!H84,(O78*B78)/Estandares!K14)","v":{"$error":"#DIV/0!"}},{"$f":"IF(Estandares!H84>1,\"SI\",\"\")","v":""},{"$f":"(O78*B78)/Estandares!K14","v":{"$error":"#DIV/0!"}}]
[{"$f":"IF(Estandares!C74=\"x\",Estandares!B74,\"BORRAR FILA\")","v":"BORRAR FILA"},{"$f":"Estandares!G74","v":{"$error":"#DIV/0!"}},"Instrumento 1",null,null,"Instrumento 2",null,null,"Instrumento 3",null,null,"Instrumento 4",null,null,0,{"$f":"IF(Q79=\"SI\",(O79*B79)/Estandares!K14/Estandares!H85,(O79*B79)/Estandares!K14)","v":{"$error":"#DIV/0!"}},{"$f":"IF(Estandares!H85>1,\"SI\",\"\")","v":""},{"$f":"(O79*B79)/Estandares!K14","v":{"$error":"#DIV/0!"}}]
[{"$f":"IF(Estandares!C75=\"x\",Estandares!B75,\"BORRAR FILA\")","v":"BORRAR FILA"},{"$f":"Estandares!G75","v":{"$error":"#DIV/0!"}},"Instrumento 1",null,null,"Instrumento 2",null,null,"Instrumento 3",null,null,"Instrumento 4",null,null,0,{"$f":"IF(Q80=\"SI\",(O80*B80)/Estandares!K14/Estandares!H86,(O80*B80)/Estandares!K14)","v":{"$error":"#DIV/0!"}},{"$f":"IF(Estandares!H86>1,\"SI\",\"\")","v":""},{"$f":"(O80*B80)/Estandares!K14","v":{"$error":"#DIV/0!"}}]
[{"$f":"IF(Estandares!C76=\"x\",Estandares!B76,\"BORRAR FILA\")","v":"BORRAR FILA"},{"$f":"Estandares!G76","v":{"$error":"#DIV/0!"}},"Instrumento 1",null,null,"Instrumento 2",null,null,"Instrumento 3",null,null,"Instrumento 4",null,null,0,{"$f":"IF(Q81=\"SI\",(O81*B81)/Estandares!K14/Estandares!H87,(O81*B81)/Estandares!K14)","v":{"$error":"#DIV/0!"}},{"$f":"IF(Estandares!H87>1,\"SI\",\"\")","v":""},{"$f":"(O81*B81)/Estandares!K14","v":{"$error":"#DIV/0!"}}]
[{"$f":"IF(Estandares!C77=\"x\",Estandares!B77,\"BORRAR FILA\")","v":"BORRAR FILA"},{"$f":"Estandares!G77","v":{"$error":"#DIV/0!"}},"Instrumento 1",null,null,"Instrumento 2",null,null,"Instrumento 3",null,null,"Instrumento 4",null,null,0,{"$f":"IF(Q82=\"SI\",(O82*B82)/Estandares!K14/Estandares!H88,(O82*B82)/Estandares!K14)","v":{"$error":"#DIV/0!"}},{"$f":"IF(Estandares!H88>1,\"SI\",\"\")","v":""},{"$f":"(O82*B82)/Estandares!K14","v":{"$error":"#DIV/0!"}}]
[{"$f":"IF(Estandares!C78=\"x\",Estandares!B78,\"BORRAR FILA\")","v":"BORRAR FILA"},{"$f":"Estandares!G78","v":{"$error":"#DIV/0!"}},"Instrumento 1",null,null,"Instrumento 2",null,null,"Instrumento 3",null,null,"Instrumento 4",null,null,0,{"$f":"IF(Q83=\"SI\",(O83*B83)/Estandares!K14/Estandares!H89,(O83*B83)/Estandares!K14)","v":{"$error":"#DIV/0!"}},{"$f":"IF(Estandares!H89>1,\"SI\",\"\")","v":""},{"$f":"(O83*B83)/Estandares!K14","v":{"$error":"#DIV/0!"}}]
[{"$f":"IF(Estandares!C79=\"x\",Estandares!B79,\"BORRAR FILA\")","v":"BORRAR FILA"},{"$f":"Estandares!G79","v":{"$error":"#DIV/0!"}},"Instrumento 1",null,null,"Instrumento 2",null,null,"Instrumento 3",null,null,"Instrumento 4",null,null,0,{"$f":"IF(Q84=\"SI\",(O84*B84)/Estandares!K14/Estandares!H90,(O84*B84)/Estandares!K14)","v":{"$error":"#DIV/0!"}},{"$f":"IF(Estandares!H90>1,\"SI\",\"\")","v":""},{"$f":"(O84*B84)/Estandares!K14","v":{"$error":"#DIV/0!"}}]
[{"$f":"IF(Estandares!C80=\"x\",Estandares!B80,\"BORRAR FILA\")","v":"BORRAR FILA"},{"$f":"Estandares!G80","v":{"$error":"#DIV/0!"}},"Instrumento 1",null,null,"Instrumento 2",null,null,"Instrumento 3",null,null,"Instrumento 4",null,null,0,{"$f":"IF(Q85=\"SI\",(O85*B85)/Estandares!K14/Estandares!H91,(O85*B85)/Estandares!K14)","v":{"$error":"#DIV/0!"}},{"$f":"IF(Estandares!H91>1,\"SI\",\"\")","v":""},{"$f":"(O85*B85)/Estandares!K14","v":{"$error":"#DIV/0!"}}]
[{"$f":"IF(Estandares!C81=\"x\",Estandares!B81,\"BORRAR FILA\")","v":"BORRAR FILA"},{"$f":"Estandares!G81","v":{"$error":"#DIV/0!"}},"Instrumento 1",null,null,"Instrumento 2",null,null,"Instrumento 3",null,null,"Instrumento 4",null,null,0,{"$f":"IF(Q86=\"SI\",(O86*B86)/Estandares!K14/Estandares!H92,(O86*B86)/Estandares!K14)","v":{"$error":"#DIV/0!"}},{"$f":"IF(Estandares!H92>1,\"SI\",\"\")","v":""},{"$f":"(O86*B86)/Estandares!K14","v":{"$error":"#DIV/0!"}}]
[{"$f":"IF(Estandares!C82=\"x\",Estandares!B82,\"BORRAR FILA\")","v":"BORRAR FILA"},{"$f":"Estandares!G82","v":{"$error":"#DIV/0!"}},"Instrumento 1",null,null,"Instrumento 2",null,null,"Instrumento 3",null,null,"Instrumento 4",null,null,0,{"$f":"IF(Q87=\"SI\",(O87*B87)/Estandares!K14/Estandares!H93,(O87*B87)/Estandares!K14)","v":{"$error":"#DIV/0!"}},{"$f":"IF(Estandares!H93>1,\"SI\",\"\")","v":""},{"$f":"(O87*B87)/Estandares!K14","v":{"$error":"#DIV/0!"}}]
[{"$f":"IF(Estandares!C83=\"x\",Estandares!B83,\"BORRAR FILA\")","v":"BORRAR FILA"},{"$f":"Estandares!G83","v":{"$error":"#DIV/0!"}},"Instrumento 1",null,null,"Instrumento 2",null,null,"Instrumento 3",null,null,"Instrumento 4",null,null,0,{"$f":"IF(Q88=\"SI\",(O88*B88)/Estandares!K14/Estandares!H94,(O88*B88)/Estandares!K14)","v":{"$error":"#DIV/0!"}},{"$f":"IF(Estandares!H94>1,\"SI\",\"\")","v":""},{"$f":"(O88*B88)/Estandares!K14","v":{"$error":"#DIV/0!"}}]
[{"$f":"IF(Estandares!C84=\"x\",Estandares!B84,\"BORRAR FILA\")","v":"BORRAR FILA"},{"$f":"Estandares!G84","v":{"$error":"#DIV/0!"}},"Instrumento 1",null,null,"Instrumento 2",null,null,"Instrumento 3",null,null,"Instrumento 4",null,null,0,{"$f":"IF(Q89=\"SI\",(O89*B89)/Estandares!K14/Estandares!H95,(O89*B89)/Estandares!K14)","v":{"$error":"#DIV/0!"}},{"$f":"IF(Estandares!H95>1,\"SI\",\"\")","v":""},{"$f":"(O89*B89)/Estandares!K14","v":{"$error":"#DIV/0!"}}]
[{"$f":"IF(Estandares!C85=\"x\",Estandares!B85,\"BORRAR FILA\")","v":"BORRAR FILA"},{"$f":"Estandares!G85","v":{"$error":"#DIV/0!"}},"Instrumento 1",null,null,"Instrumento 2",null,null,"Instrumento 3",null,null,"Instrumento 4",null,null,0,{"$f":"IF(Q90=\"SI\",(O90*B90)/Estandares!K14/Estandares!H96,(O90*B90)/Estandares!K14)","v":{"$error":"#DIV/0!"}},{"$f":"IF(Estandares!H96>1,\"SI\",\"\")","v":""},{"$f":"(O90*B90)/Estandares!K14","v":{"$error":"#DIV/0!"}}]
[{"$f":"IF(Estandares!C86=\"x\",Estandares!B86,\"BORRAR FILA\")","v":"BORRAR FILA"},{"$f":"Estandares!G86","v":{"$error":"#DIV/0!"}},"Instrumento 1",null,null,"Instrumento 2",null,null,"Instrumento 3",null,null,"Instrumento 4",null,null,0,{"$f":"IF(Q91=\"SI\",(O91*B91)/Estandares!K14/Estandares!H97,(O91*B91)/Estandares!K14)","v":{"$error":"#DIV/0!"}},{"$f":"IF(Estandares!H97>1,\"SI\",\"\")","v":""},{"$f":"(O91*B91)/Estandares!K14","v":{"$error":"#DIV/0!"}}]
[{"$f":"IF(Estandares!C87=\"x\",Estandares!B87,\"BORRAR FILA\")","v":"BORRAR FILA"},{"$f":"Estandares!G87","v":{"$error":"#DIV/0!"}},"Instrumento 1",null,null,"Instrumento 2",null,null,"Instrumento 3",null,null,"Instrumento 4",null,null,0,{"$f":"IF(Q92=\"SI\",(O92*B92)/Estandares!K14/Estandares!H98,(O92*B92)/Estandares!K14)","v":{"$error":"#DIV/0!"}},{"$f":"IF(Estandares!H98>1,\"SI\",\"\")","v":""},{"$f":"(O92*B92)/Estandares!K14","v":{"$error":"#DIV/0!"}}]
[{"$f":"IF(Estandares!C88=\"x\",Estandares!B88,\"BORRAR FILA\")","v":"BORRAR FILA"},{"$f":"Estandares!G88","v":{"$error":"#DIV/0!"}},"Instrumento 1",null,null,"Instrumento 2",null,null,"Instrumento 3",null,null,"Instrumento 4",null,null,0,{"$f":"IF(Q93=\"SI\",(O93*B93)/Estandares!K14/Estandares!H99,(O93*B93)/Estandares!K14)","v":{"$error":"#DIV/0!"}},{"$f":"IF(Estandares!H99>1,\"SI\",\"\")","v":""},{"$f":"(O93*B93)/Estandares!K14","v":{"$error":"#DIV/0!"}}]
[{"$f":"IF(Estandares!C89=\"x\",Estandares!B89,\"BORRAR FILA\")","v":"BORRAR FILA"},{"$f":"Estandares!G89","v":{"$error":"#DIV/0!"}},"Instrumento 1",null,null,"Instrumento 2",null,null,"Instrumento 3",null,null,"Instrumento 4",null,null,0,{"$f":"IF(Q94=\"SI\",(O94*B94)/Estandares!K14/Estandares!H100,(O94*B94)/Estandares!K14)","v":{"$error":"#DIV/0!"}},{"$f":"IF(Estandares!H100>1,\"SI\",\"\")","v":""},{"$f":"(O94*B94)/Estandares!K14","v":{"$error":"#DIV/0!"}}]
[{"$f":"IF(Estandares!C90=\"x\",Estandares!B90,\"BORRAR FILA\")","v":"BORRAR FILA"},{"$f":"Estandares!G90","v":{"$error":"#DIV/0!"}},"Instrumento 1",null,null,"Instrumento 2",null,null,"Instrumento 3",null,null,"Instrumento 4",null,null,0,{"$f":"IF(Q95=\"SI\",(O95*B95)/Estandares!K14/Estandares!H101,(O95*B95)/Estandares!K14)","v":{"$error":"#DIV/0!"}},{"$f":"IF(Estandares!H101>1,\"SI\",\"\")","v":""},{"$f":"(O95*B95)/Estandares!K14","v":{"$error":"#DIV/0!"}}]
[{"$f":"IF(Estandares!C91=\"x\",Estandares!B91,\"BORRAR FILA\")","v":"BORRAR FILA"},{"$f":"Estandares!G91","v":{"$error":"#DIV/0!"}},"Instrumento 1",null,null,"Instrumento 2",null,null,"Instrumento 3",null,null,"Instrumento 4",null,null,0,{"$f":"IF(Q96=\"SI\",(O96*B96)/Estandares!K14/Estandares!H102,(O96*B96)/Estandares!K14)","v":{"$error":"#DIV/0!"}},{"$f":"IF(Estandares!H102>1,\"SI\",\"\")","v":""},{"$f":"(O96*B96)/Estandares!K14","v":{"$error":"#DIV/0!"}}]
[{"$f":"IF(Estandares!C92=\"x\",Estandares!B92,\"BORRAR FILA\")","v":"BORRAR FILA"},{"$f":"Estandares!G92","v":{"$error":"#DIV/0!"}},"Instrumento 1",null,null,"Instrumento 2",null,null,"Instrumento 3",null,null,"Instrumento 4",null,null,0,{"$f":"IF(Q97=\"SI\",(O97*B97)/Estandares!K14/Estandares!H103,(O97*B97)/Estandares!K14)","v":{"$error":"#DIV/0!"}},{"$f":"IF(Estandares!H103>1,\"SI\",\"\")","v":""},{"$f":"(O97*B97)/Estandares!K14","v":{"$error":"#DIV/0!"}}]
[{"$f":"IF(Estandares!C93=\"x\",Estandares!B93,\"BORRAR FILA\")","v":"BORRAR FILA"},{"$f":"Estandares!G93","v":{"$error":"#DIV/0!"}},"Instrumento 1",null,null,"Instrumento 2",null,null,"Instrumento 3",null,null,"Instrumento 4",null,null,0,{"$f":"IF(Q98=\"SI\",(O98*B98)/Estandares!K14/Estandares!H104,(O98*B98)/Estandares!K14)","v":{"$error":"#DIV/0!"}},{"$f":"IF(Estandares!H104>1,\"SI\",\"\")","v":""},{"$f":"(O98*B98)/Estandares!K14","v":{"$error":"#DIV/0!"}}]
[{"$f":"IF(Estandares!C94=\"x\",Estandares!B94,\"BORRAR FILA\")","v":"BORRAR FILA"},{"$f":"Estandares!G94","v":{"$error":"#DIV/0!"}},"Instrumento 1",null,null,"Instrumento 2",null,null,"Instrumento 3",null,null,"Instrumento 4",null,null,0,{"$f":"IF(Q99=\"SI\",(O99*B99)/Estandares!K14/Estandares!H105,(O99*B99)/Estandares!K14)","v":{"$error":"#DIV/0!"}},{"$f":"IF(Estandares!H105>1,\"SI\",\"\")","v":""},{"$f":"(O99*B99)/Estandares!K14","v":{"$error":"#DIV/0!"}}]
[{"$f":"IF(Estandares!C95=\"x\",Estandares!B95,\"BORRAR FILA\")","v":"BORRAR FILA"},{"$f":"Estandares!G95","v":{"$error":"#DIV/0!"}},"Instrumento 1",null,null,"Instrumento 2",null,null,"Instrumento 3",null,null,"Instrumento 4",null,null,0,{"$f":"IF(Q100=\"SI\",(O100*B100)/Estandares!K14/Estandares!H106,(O100*B100)/Estandares!K14)","v":{"$error":"#DIV/0!"}},{"$f":"IF(Estandares!H106>1,\"SI\",\"\")","v":""},{"$f":"(O100*B100)/Estandares!K14","v":{"$error":"#DIV/0!"}}]
[{"$f":"IF(Estandares!C96=\"x\",Estandares!B96,\"BORRAR FILA\")","v":"BORRAR FILA"},{"$f":"Estandares!G96","v":{"$error":"#DIV/0!"}},"Instrumento 1",null,null,"Instrumento 2",null,null,"Instrumento 3",null,null,"Instrumento 4",null,null,0,{"$f":"IF(Q101=\"SI\",(O101*B101)/Estandares!K14/Estandares!H107,(O101*B101)/Estandares!K14)","v":{"$error":"#DIV/0!"}},{"$f":"IF(Estandares!H107>1,\"SI\",\"\")","v":""},{"$f":"(O101*B101)/Estandares!K14","v":{"$error":"#DIV/0!"}}]
[{"$f":"IF(Estandares!C97=\"x\",Estandares!B97,\"BORRAR FILA\")","v":"BORRAR FILA"},{"$f":"Estandares!G97","v":{"$error":"#DIV/0!"}},"Instrumento 1",null,null,"Instrumento 2",null,null,"Instrumento 3",null,null,"Instrumento 4",null,null,0,{"$f":"IF(Q102=\"SI\",(O102*B102)/Estandares!K14/Estandares!H108,(O102*B102)/Estandares!K14)","v":{"$error":"#DIV/0!"}},{"$f":"IF(Estandares!H108>1,\"SI\",\"\")","v":""},{"$f":"(O102*B102)/Estandares!K14","v":{"$error":"#DIV/0!"}}]
[{"$f":"IF(Estandares!C98=\"x\",Estandares!B98,\"BORRAR FILA\")","v":"BORRAR FILA"},{"$f":"Estandares!G98","v":{"$error":"#DIV/0!"}},"Instrumento 1",null,null,"Instrumento 2",null,null,"Instrumento 3",null,null,"Instrumento 4",null,null,0,{"$f":"IF(Q103=\"SI\",(O103*B103)/Estandares!K14/Estandares!H109,(O103*B103)/Estandares!K14)","v":{"$error":"#DIV/0!"}},{"$f":"IF(Estandares!H109>1,\"SI\",\"\")","v":""},{"$f":"(O103*B103)/Estandares!K14","v":{"$error":"#DIV/0!"}}]
[{"$f":"IF(Estandares!C99=\"x\",Estandares!B99,\"BORRAR FILA\")","v":"BORRAR FILA"},{"$f":"Estandares!G99","v":{"$error":"#DIV/0!"}},"Instrumento 1",null,null,"Instrumento 2",null,null,"Instrumento 3",null,null,"Instrumento 4",null,null,0,{"$f":"IF(Q104=\"SI\",(O104*B104)/Estandares!K14/Estandares!H110,(O104*B104)/Estandares!K14)","v":{"$error":"#DIV/0!"}},{"$f":"IF(Estandares!H110>1,\"SI\",\"\")","v":""},{"$f":"(O104*B104)/Estandares!K14","v":{"$error":"#DIV/0!"}}]
[{"$f":"IF(Estandares!C100=\"x\",Estandares!B100,\"BORRAR FILA\")","v":"BORRAR FILA"},{"$f":"Estandares!G100","v":{"$error":"#DIV/0!"}},"Instrumento 1",null,null,"Instrumento 2",null,null,"Instrumento 3",null,null,"Instrumento 4",null,null,0,{"$f":"IF(Q105=\"SI\",(O105*B105)/Estandares!K14/Estandares!H111,(O105*B105)/Estandares!K14)","v":{"$error":"#DIV/0!"}},{"$f":"IF(Estandares!H111>1,\"SI\",\"\")","v":""},{"$f":"(O105*B105)/Estandares!K14","v":{"$error":"#DIV/0!"}}]
[{"$f":"IF(Estandares!C101=\"x\",Estandares!B101,\"BORRAR FILA\")","v":"BORRAR FILA"},{"$f":"Estandares!G101","v":{"$error":"#DIV/0!"}},"Instrumento 1",null,null,"Instrumento 2",null,null,"Instrumento 3",null,null,"Instrumento 4",null,null,0,{"$f":"IF(Q106=\"SI\",(O106*B106)/Estandares!K14/Estandares!H112,(O106*B106)/Estandares!K14)","v":{"$error":"#DIV/0!"}},{"$f":"IF(Estandares!H112>1,\"SI\",\"\")","v":""},{"$f":"(O106*B106)/Estandares!K14","v":{"$error":"#DIV/0!"}}]
[{"$f":"IF(Estandares!C102=\"x\",Estandares!B102,\"BORRAR FILA\")","v":"BORRAR FILA"},{"$f":"Estandares!G102","v":{"$error":"#DIV/0!"}},"Instrumento 1",null,null,"Instrumento 2",null,null,"Instrumento 3",null,null,"Instrumento 4",null,null,0,{"$f":"IF(Q107=\"SI\",(O107*B107)/Estandares!K14/Estandares!H113,(O107*B107)/Estandares!K14)","v":{"$error":"#DIV/0!"}},{"$f":"IF(Estandares!H113>1,\"SI\",\"\")","v":""},{"$f":"(O107*B107)/Estandares!K14","v":{"$error":"#DIV/0!"}}]
[{"$f":"IF(Estandares!C103=\"x\",Estandares!B103,\"BORRAR FILA\")","v":"BORRAR FILA"},{"$f":"Estandares!G103","v":{"$error":"#DIV/0!"}},"Instrumento 1",null,null,"Instrumento 2",null,null,"Instrumento 3",null,null,"Instrumento 4",null,null,0,{"$f":"IF(Q108=\"SI\",(O108*B108)/Estandares!K14/Estandares!H114,(O108*B108)/Estandares!K14)","v":{"$error":"#DIV/0!"}},{"$f":"IF(Estandares!H114>1,\"SI\",\"\")","v":""},{"$f":"(O108*B108)/Estandares!K14","v":{"$error":"#DIV/0!"}}]
[{"$f":"IF(Estandares!C104=\"x\",Estandares!B104,\"BORRAR FILA\")","v":"BORRAR FILA"},{"$f":"Estandares!G104","v":{"$error":"#DIV/0!"}},"Instrumento 1",null,null,"Instrumento 2",null,null,"Instrumento 3",null,null,"Instrumento 4",null,null,0,{"$f":"IF(Q109=\"SI\",(O109*B109)/Estandares!K14/Estandares!H115,(O109*B109)/Estandares!K14)","v":{"$error":"#DIV/0!"}},{"$f":"IF(Estandares!H115>1,\"SI\",\"\")","v":""},{"$f":"(O109*B109)/Estandares!K14","v":{"$error":"#DIV/0!"}}]
[{"$f":"IF(Estandares!C105=\"x\",Estandares!B105,\"BORRAR FILA\")","v":"BORRAR FILA"},{"$f":"Estandares!G105","v":{"$error":"#DIV/0!"}},"Instrumento 1",null,null,"Instrumento 2",null,null,"Instrumento 3",null,null,"Instrumento 4",null,null,0,{"$f":"IF(Q110=\"SI\",(O110*B110)/Estandares!K14/Estandares!H116,(O110*B110)/Estandares!K14)","v":{"$error":"#DIV/0!"}},{"$f":"IF(Estandares!H116>1,\"SI\",\"\")","v":""},{"$f":"(O110*B110)/Estandares!K14","v":{"$error":"#DIV/0!"}}]
[{"$f":"IF(Estandares!C106=\"x\",Estandares!B106,\"BORRAR FILA\")","v":"BORRAR FILA"},{"$f":"Estandares!G106","v":{"$error":"#DIV/0!"}},"Instrumento 1",null,null,"Instrumento 2",null,null,"Instrumento 3",null,null,"Instrumento 4",null,null,0,{"$f":"IF(Q111=\"SI\",(O111*B111)/Estandares!K14/Estandares!H117,(O111*B111)/Estandares!K14)","v":{"$error":"#DIV/0!"}},{"$f":"IF(Estandares!H117>1,\"SI\",\"\")","v":""},{"$f":"(O111*B111)/Estandares!K14","v":{"$error":"#DIV/0!"}}]
[{"$f":"IF(Estandares!C107=\"x\",Estandares!B107,\"BORRAR FILA\")","v":"BORRAR FILA"},{"$f":"Estandares!G107","v":{"$error":"#DIV/0!"}},"Instrumento 1",null,null,"Instrumento 2",null,null,"Instrumento 3",null,null,"Instrumento 4",null,null,0,{"$f":"IF(Q112=\"SI\",(O112*B112)/Estandares!K14/Estandares!H118,(O112*B112)/Estandares!K14)","v":{"$error":"#DIV/0!"}},{"$f":"IF(Estandares!H118>1,\"SI\",\"\")","v":""},{"$f":"(O112*B112)/Estandares!K14","v":{"$error":"#DIV/0!"}}]
[{"$f":"IF(Estandares!C108=\"x\",Estandares!B108,\"BORRAR FILA\")","v":"BORRAR FILA"},{"$f":"Estandares!G108","v":{"$error":"#DIV/0!"}},"Instrumento 1",null,null,"Instrumento 2",null,null,"Instrumento 3",null,null,"Instrumento 4",null,null,0,{"$f":"IF(Q113=\"SI\",(O113*B113)/Estandares!K14/Estandares!H119,(O113*B113)/Estandares!K14)","v":{"$error":"#DIV/0!"}},{"$f":"IF(Estandares!H119>1,\"SI\",\"\")","v":""},{"$f":"(O113*B113)/Estandares!K14","v":{"$error":"#DIV/0!"}}]
[{"$f":"IF(Estandares!C109=\"x\",Estandares!B109,\"BORRAR FILA\")","v":"BORRAR FILA"},{"$f":"Estandares!G109","v":{"$error":"#DIV/0!"}},"Instrumento 1",null,null,"Instrumento 2",null,null,"Instrumento 3",null,null,"Instrumento 4",null,null,0,{"$f":"IF(Q114=\"SI\",(O114*B114)/Estandares!K14/Estandares!H120,(O114*B114)/Estandares!K14)","v":{"$error":"#DIV/0!"}},{"$f":"IF(Estandares!H120>1,\"SI\",\"\")","v":""},{"$f":"(O114*B114)/Estandares!K14","v":{"$error":"#DIV/0!"}}]
[{"$f":"IF(Estandares!C110=\"x\",Estandares!B110,\"BORRAR FILA\")","v":"BORRAR FILA"},{"$f":"Estandares!G110","v":{"$error":"#DIV/0!"}},"Instrumento 1",null,null,"Instrumento 2",null,null,"Instrumento 3",null,null,"Instrumento 4",null,null,0,{"$f":"IF(Q115=\"SI\",(O115*B115)/Estandares!K14/Estandares!H121,(O115*B115)/Estandares!K14)","v":{"$error":"#DIV/0!"}},{"$f":"IF(Estandares!H121>1,\"SI\",\"\")","v":""},{"$f":"(O115*B115)/Estandares!K14","v":{"$error":"#DIV/0!"}}]
[{"$f":"IF(Estandares!C111=\"x\",Estandares!B111,\"BORRAR FILA\")","v":"BORRAR FILA"},{"$f":"Estandares!G111","v":{"$error":"#DIV/0!"}},"Instrumento 1",null,null,"Instrumento 2",null,null,"Instrumento 3",null,null,"Instrumento 4",null,null,0,{"$f":"IF(Q116=\"SI\",(O116*B116)/Estandares!K14/Estandares!H122,(O116*B116)/Estandares!K14)","v":{"$error":"#DIV/0!"}},{"$f":"IF(Estandares!H122>1,\"SI\",\"\")","v":""},{"$f":"(O116*B116)/Estandares!K14","v":{"$error":"#DIV/0!"}}]
["TOTAL",{"$f":"SUM(B7:B116)","v":{"$error":"#DIV/0!"}},null,null,{"$f":"SUM(E7:E116)/C120","v":0},null,null,null,null,null,null,null,null,null,{"$f":"SUM(O7:O116)/C120","v":0},{"$f":"SUM(P7:P116)","v":{"$error":"#DIV/0!"}},null,{"$f":"SUM(R7:R116)","v":{"$error":"#DIV/0!"}}]
[]
[]
[null,"contador estandar",{"$f":"COUNTA(A7:A116)","v":110}]
[null,"escala",{"$f":"Estandares!K14","v":5}]
[]
[null,null,null,null,null,null,null,null,null,null,null,null,null,null,null,"Sobre 10"]
[null,null,null,null,null,null,null,null,null,"NOTA EVALUACIÓN ACUMULADA",null,null,null,null,{"$f":"Estandares!S19","v":{"$error":"#DIV/0!"}},{"$f":"IF(C121=5,(O124*10)/5)","v":{"$error":"#DIV/0!"}}]
[]
[null,null,null,null,null,null,null,null,"PROFESOR:",{"$f":"Estandares!J5","v":0},null,null,null,{"$f":"Estandares!J7","v":0},null,{"$f":"CONCATENATE(Estandares!J9,Estandares!L9)","v":""}]
[]
[null,null,null,null,null,null,null,null,"Alumno:",{"$f":"Estandares!J11","v":0}]
[null,null,null,null,null,null,null,null,null,null,null,null,null,null,null,"Sobre 10"]
[null,null,null,null,null,null,null,null,"NOTA 1º EVALUACIÓN",null,null,null,null,null,{"$f":"(R117*C121)/B117","v":{"$error":"#DIV/0!"}},{"$f":"IF(C121=5,(O130*10)/5)","v":{"$error":"#DIV/0!"}}]

{"sheet":"2ºEVALUACION","index":2,"n_rows":130,"n_cols":18,"rows_kept":130,"cut":false,"hidden":false,"merged":[[2,2,2,13],[4,8,4,10],[4,11,4,13],[131,8,132,8],[125,15,127,15],[127,9,127,12],[123,9,123,13],[125,8,126,8],[125,9,126,12],[125,13,127,14],[4,2,4,4],[4,5,4,7],[129,8,129,13]]}
[]
[]
[null,null,"EVALUACIÓN"]
[]
[null,null,"INSTRUMENTO 1",null,null,"INSTRUMENTO 2",null,null,"INSTRUMENTO 3",null,null,"INSTRUMENTO 4",null,null,"Calificación","Valor Global","Estandar","Valor Global"]
["Estandar","Coeficiente","Instrumento 1","%","Nota","Instrumento 2","%","Nota","Instrumento 3","%","Nota","Instrumento 4","%","Nota",null,"Estandar","Repetido",1]
[{"$f":"IF(Estandares!D2=\"x\",Estandares!B2,\"BORRAR FILA\")","v":"BORRAR FILA"},{"$f":"Estandares!G2","v":{"$error":"#DIV/0!"}},"Instrumento 1",null,null,"Instrumento 2",null,null,"Instrumento 3",null,null,"Instrumento 4",null,null,{"$f":"(D7*E7)+(G7*H7)+(J7*K7)+(M7*N7)","v":0},{"$f":"IF(Q7=\"SI\",(O7*B7)/Estandares!K14/Estandares!H2,(O7*B7)/Estandares!K14)","v":{"$error":"#DIV/0!"}},{"$f":"IF(Estandares!H2>1,\"SI\",\"\")","v":""},{"$f":"(O7*B7)/Estandares!K14","v":{"$error":"#DIV/0!"}}]
[{"$f":"IF(Estandares!D3=\"x\",Estandares!B3,\"BORRAR FILA\")","v":"BORRAR FILA"},{"$f":"Estandares!G3","v":{"$error":"#DIV/0!"}},"Instrumento 1",null,null,"Instrumento 2",null,null,"Instrumento 3",null,null,"Instrumento 4",null,null,{"$f":"(D8*E8)+(G8*H8)+(J8*K8)+(M8*N8)","v":0},{"$f":"IF(Q8=\"SI\",(O8*B8)/Estandares!K14/Estandares!H3,(O8*B8)/Estandares!K14)","v":{"$error":"#DIV/0!"}},{"$f":"IF(Estandares!H3>1,\"SI\",\"\")","v":""},{"$f":"(O8*B8)/Estandares!K14","v":{"$error":"#DIV/0!"}}]
[{"$f":"IF(Estandares!D4=\"x\",Estandares!B4,\"BORRAR FILA\")","v":"BORRAR FILA"},{"$f":"Estandares!G4","v":{"$error":"#DIV/0!"}},"Instrumento 1",null,null,"Instrumento 2",null,null,"Instrumento 3",null,null,"Instrumento 4",null,null,0,{"$f":"IF(Q9=\"SI\",(O9*B9)/Estandares!K14/Estandares!H4,(O9*B9)/Estandares!K14)","v":{"$error":"#DIV/0!"}},{"$f":"IF(Estandares!H4>1,\"SI\",\"\")","v":""},{"$f":"(O9*B9)/Estandares!K14","v":{"$error":"#DIV/0!"}}]
[{"$f":"IF(Estandares!D5=\"x\",Estandares!B5,\"BORRAR FILA\")","v":"BORRAR FILA"},{"$f":"Estandares!G5","v":{"$error":"#DIV/0!"}},"Instrumento 1",null,null,"Instrumento 2",null,null,"Instrumento 3",null,null,"Instrumento 4",null,null,0,{"$f":"IF(Q10=\"SI\",(O10*B10)/Estandares!K14/Estandares!H5,(O10*B10)/Estandares!K14)","v":{"$error":"#DIV/0!"}},{"$f":"IF(Estandares!H5>1,\"SI\",\"\")","v":""},{"$f":"(O10*B10)/Estandares!K14","v":{"$error":"#DIV/0!"}}]
[{"$f":"IF(Estandares!D6=\"x\",Estandares!B6,\"BORRAR FILA\")","v":"BORRAR FILA"},{"$f":"Estandares!G6","v":{"$error":"#DIV/0!"}},"Instrumento 1",null,null,"Instrumento 2",null,null,"Instrumento 3",null,null,"Instrumento 4",null,null,0,{"$f":"IF(Q11=\"SI\",(O11*B11)/Estandares!K14/Estandares!H6,(O11*B11)/Estandares!K14)","v":{"$error":"#DIV/0!"}},{"$f":"IF(Estandares!H6>1,\"SI\",\"\")","v":""},{"$f":"(O11*B11)/Estandares!K14","v":{"$error":"#DIV/0!"}}]
[{"$f":"IF(Estandares!D7=\"x\",Estandares!B7,\"BORRAR FILA\")","v":"BORRAR FILA"},{"$f":"Estandares!G7","v":{"$error":"#DIV/0!"}},"Instrumento 1",null,null,"Instrumento 2",null,null,"Instrumento 3",null,null,"Instrumento 4",null,null,0,{"$f":"IF(Q12=\"SI\",(O12*B12)/Estandares!K14/Estandares!H7,(O12*B12)/Estandares!K14)","v":{"$error":"#DIV/0!"}},{"$f":"IF(Estandares!H7>1,\"SI\",\"\")","v":""},{"$f":"(O12*B12)/Estandares!K14","v":{"$error":"#DIV/0!"}}]
[{"$f":"IF(Estandares!D8=\"x\",Estandares!B8,\"BORRAR FILA\")","v":"BORRAR FILA"},{"$f":"Estandares!G8","v":{"$error":"#DIV/0!"}},"Instrumento 1",null,null,"Instrumento 2",null,null,"Instrumento 3",null,null,"Instrumento 4",null,null,0,{"$f":"IF(Q13=\"SI\",(O13*B13)/Estandares!K14/Estandares!H8,(O13*B13)/Estandares!K14)","v":{"$error":"#DIV/0!"}},{"$f":"IF(Estandares!H8>1,\"SI\",\"\")","v":""},{"$f":"(O13*B13)/Estandares!K14","v":{"$error":"#DIV/0!"}}]
[{"$f":"IF(Estandares!D9=\"x\",Estandares!B9,\"BORRAR FILA\")","v":"BORRAR FILA"},{"$f":"Estandares!G9","v":{"$error":"#DIV/0!"}},"Instrumento 1",null,null,"Instrumento 2",null,null,"Instrumento 3",null,null,"Instrumento 4",null,null,0,{"$f":"IF(Q14=\"SI\",(O14*B14)/Estandares!K14/Estandares!H10,(O14*B14)/Estandares!K14)","v":{"$error":"#DIV/0!"}},{"$f":"IF(Estandares!H10>1,\"SI\",\"\")","v":""},{"$f":"(O14*B14)/Estandares!K14","v":{"$error":"#DIV/0!"}}]
[{"$f":"IF(Estandares!D10=\"x\",Estandares!B10,\"BORRAR FILA\")","v":"BORRAR FILA"},{"$f":"Estandares!G10","v":{"$error":"#DIV/0!"}},"Instrumento 1",null,null,"Instrumento 2",null,null,"Instrumento 3",null,null,"Instrumento 4",null,null,0,{"$f":"IF(Q15=\"SI\",(O15*B15)/Estandares!K14/Estandares!H11,(O15*B15)/Estandares!K14)","v":{"$error":"#DIV/0!"}},{"$f":"IF(Estandares!H11>1,\"SI\",\"\")","v":""},{"$f":"(O15*B15)/Estandares!K14","v":{"$error":"#DIV/0!"}}]
[{"$f":"IF(Estandares!D11=\"x\",Estandares!B11,\"BORRAR FILA\")","v":"BORRAR FILA"},{"$f":"Estandares!G11","v":{"$error":"#DIV/0!"}},"Instrumento 1",null,null,"Instrumento 2",null,null,"Instrumento 3",null,null,"Instrumento 4",null,null,0,{"$f":"IF(Q16=\"SI\",(O16*B16)/Estandares!K14/Estandares!H12,(O16*B16)/Estandares!K14)","v":{"$error":"#DIV/0!"}},{"$f":"IF(Estandares!H12>1,\"SI\",\"\")","v":""},{"$f":"(O16*B16)/Estandares!K14","v":{"$error":"#DIV/0!"}}]
[{"$f":"IF(Estandares!D12=\"x\",Estandares!B12,\"BORRAR FILA\")","v":"BORRAR FILA"},{"$f":"Estandares!G12","v":{"$error":"#DIV/0!"}},"Instrumento 1",null,null,"Instrumento 2",null,null,"Instrumento 3",null,null,"Instrumento 4",null,null,0,{"$f":"IF(Q17=\"SI\",(O17*B17)/Estandares!K14/Estandares!H13,(O17*B17)/Estandares!K14)","v":{"$error":"#DIV/0!"}},{"$f":"IF(Estandares!H13>1,\"SI\",\"\")","v":""},{"$f":"(O17*B17)/Estandares!K14","v":{"$error":"#DIV/0!"}}]
[{"$f":"IF(Estandares!D13=\"x\",Estandares!B13,\"BORRAR FILA\")","v":"BORRAR FILA"},{"$f":"Estandares!G13","v":{"$error":"#DIV/0!"}},"Instrumento 1",null,null,"Instrumento 2",null,null,"Instrumento 3",null,null,"Instrumento 4",null,null,0,{"$f":"IF(Q18=\"SI\",(O18*B18)/Estandares!K14/Estandares!H20,(O18*B18)/Estandares!K14)","v":{"$error":"#DIV/0!"}},{"$f":"IF(Estandares!H20>1,\"SI\",\"\")","v":""},{"$f":"(O18*B18)/Estandares!K14","v":{"$error":"#DIV/0!"}}]
[{"$f":"IF(Estandares!D14=\"x\",Estandares!B14,\"BORRAR FILA\")","v":"BORRAR FILA"},{"$f":"Estandares!G14","v":{"$error":"#DIV/0!"}},"Instrumento 1",null,null,"Instrumento 2",null,null,"Instrumento 3",null,null,"Instrumento 4",null,null,0,{"$f":"IF(Q19=\"SI\",(O19*B19)/Estandares!K14/Estandares!H21,(O19*B19)/Estandares!K14)","v":{"$error":"#DIV/0!"}},{"$f":"IF(Estandares!H21>1,\"SI\",\"\")","v":""},{"$f":"(O19*B19)/Estandares!K14","v":{"$error":"#DIV/0!"}}]
[{"$f":"IF(Estandares!D15=\"x\",Estandares!B15,\"BORRAR FILA\")","v":"BORRAR FILA"},{"$f":"Estandares!G15","v":{"$error":"#DIV/0!"}},"Instrumento 1",null,null,"Instrumento 2",null,null,"Instrumento 3",null,null,"Instrumento 4",null,null,0,{"$f":"IF(Q20=\"SI\",(O20*B20)/Estandares!K14/Estandares!H22,(O20*B20)/Estandares!K14)","v":{"$error":"#DIV/0!"}},{"$f":"IF(Estandares!H22>1,\"SI\",\"\")","v":""},{"$f":"(O20*B20)/Estandares!K14","v":{"$error":"#DIV/0!"}}]
[{"$f":"IF(Estandares!D16=\"x\",Estandares!B16,\"BORRAR FILA\")","v":"BORRAR FILA"},{"$f":"Estandares!G16","v":{"$error":"#DIV/0!"}},"Instrumento 1",null,null,"Instrumento 2",null,null,"Instrumento 3",null,null,"Instrumento 4",null,null,0,{"$f":"IF(Q21=\"SI\",(O21*B21)/Estandares!K14/Estandares!H23,(O21*B21)/Estandares!K14)","v":{"$error":"#DIV/0!"}},{"$f":"IF(Estandares!H23>1,\"SI\",\"\")","v":""},{"$f":"(O21*B21)/Estandares!K14","v":{"$error":"#DIV/0!"}}]
[{"$f":"IF(Estandares!D17=\"x\",Estandares!B17,\"BORRAR FILA\")","v":"BORRAR FILA"},{"$f":"Estandares!G17","v":{"$error":"#DIV/0!"}},"Instrumento 1",null,null,"Instrumento 2",null,null,"Instrumento 3",null,null,"Instrumento 4",null,null,0,{"$f":"IF(Q22=\"SI\",(O22*B22)/Estandares!K14/Estandares!H28,(O22*B22)/Estandares!K14)","v":{"$error":"#DIV/0!"}},{"$f":"IF(Estandares!H28>1,\"SI\",\"\")","v":""},{"$f":"(O22*B22)/Estandares!K14","v":{"$error":"#DIV/0!"}}]
[{"$f":"IF(Estandares!D18=\"x\",Estandares!B18,\"BORRAR FILA\")","v":"BORRAR FILA"},{"$f":"Estandares!G18","v":{"$error":"#DIV/0!"}},"Instrumento 1",null,null,"Instrumento 2",null,null,"Instrumento 3",null,null,"Instrumento 4",null,null,0,{"$f":"IF(Q23=\"SI\",(O23*B23)/Estandares!K14/Estandares!H29,(O23*B23)/Estandares!K14)","v":{"$error":"#DIV/0!"}},{"$f":"IF(Estandares!H29>1,\"SI\",\"\")","v":""},{"$f":"(O23*B23)/Estandares!K14","v":{"$error":"#DIV/0!"}}]
[{"$f":"IF(Estandares!D19=\"x\",Estandares!B19,\"BORRAR FILA\")","v":"BORRAR FILA"},{"$f":"Estandares!G19","v":{"$error":"#DIV/0!"}},"Instrumento 1",null,null,"Instrumento 2",null,null,"Instrumento 3",null,null,"Instrumento 4",null,null,0,{"$f":"IF(Q24=\"SI\",(O24*B24)/Estandares!K14/Estandares!H30,(O24*B24)/Estandares!K14)","v":{"$error":"#DIV/0!"}},{"$f":"IF(Estandares!H30>1,\"SI\",\"\")","v":""},{"$f":"(O24*B24)/Estandares!K14","v":{"$error":"#DIV/0!"}}]
[{"$f":"IF(Estandares!D20=\"x\",Estandares!B20,\"BORRAR FILA\")","v":"BORRAR FILA"},{"$f":"Estandares!G20","v":{"$error":"#DIV/0!"}},"Instrumento 1",null,null,"Instrumento 2",null,null,"Instrumento 3",null,null,"Instrumento 4",null,null,0,{"$f":"IF(Q25=\"SI\",(O25*B25)/Estandares!K14/Estandares!H31,(O25*B25)/Estandares!K14)","v":{"$error":"#DIV/0!"}},{"$f":"IF(Estandares!H31>1,\"SI\",\"\")","v":""},{"$f":"(O25*B25)/Estandares!K14","v":{"$error":"#DIV/0!"}}]
[{"$f":"IF(Estandares!D21=\"x\",Estandares!B21,\"BORRAR FILA\")","v":"BORRAR FILA"},{"$f":"Estandares!G21","v":{"$error":"#DIV/0!"}},"Instrumento 1",null,null,"Instrumento 2",null,null,"Instrumento 3",null,null,"Instrumento 4",null,null,0,{"$f":"IF(Q26=\"SI\",(O26*B26)/Estandares!K14/Estandares!H32,(O26*B26)/Estandares!K14)","v":{"$error":"#DIV/0!"}},{"$f":"IF(Estandares!H32>1,\"SI\",\"\")","v":""},{"$f":"(O26*B26)/Estandares!K14","v":{"$error":"#DIV/0!"}}]
[{"$f":"IF(Estandares!D22=\"x\",Estandares!B22,\"BORRAR FILA\")","v":"BORRAR FILA"},{"$f":"Estandares!G22","v":{"$error":"#DIV/0!"}},"Instrumento 1",null,null,"Instrumento 2",null,null,"Instrumento 3",null,null,"Instrumento 4",null,null,0,{"$f":"IF(Q27=\"SI\",(O27*B27)/Estandares!K14/Estandares!H33,(O27*B27)/Estandares!K14)","v":{"$error":"#DIV/0!"}},{"$f":"IF(Estandares!H33>1,\"SI\",\"\")","v":""},{"$f":"(O27*B27)/Estandares!K14","v":{"$error":"#DIV/0!"}}]
[{"$f":"IF(Estandares!D23=\"x\",Estandares!B23,\"BORRAR FILA\")","v":"BORRAR FILA"},{"$f":"Estandares!G23","v":{"$error":"#DIV/0!"}},"Instrumento 1",null,null,"Instrumento 2",null,null,"Instrumento 3",null,null,"Instrumento 4",null,null,0,{"$f":"IF(Q28=\"SI\",(O28*B28)/Estandares!K14/Estandares!H34,(O28*B28)/Estandares!K14)","v":{"$error":"#DIV/0!"}},{"$f":"IF(Estandares!H34>1,\"SI\",\"\")","v":""},{"$f":"(O28*B28)/Estandares!K14","v":{"$error":"#DIV/0!"}}]
[{"$f":"IF(Estandares!D24=\"x\",Estandares!B24,\"BORRAR FILA\")","v":"BORRAR FILA"},{"$f":"Estandares!G24","v":{"$error":"#DIV/0!"}},"Instrumento 1",null,null,"Instrumento 2",null,null,"Instrumento 3",null,null,"Instrumento 4",null,null,0,{"$f":"IF(Q29=\"SI\",(O29*B29)/Estandares!K14/Estandares!H35,(O29*B29)/Estandares!K14)","v":{"$error":"#DIV/0!"}},{"$f":"IF(Estandares!H35>1,\"SI\",\"\")","v":""},{"$f":"(O29*B29)/Estandares!K14","v":{"$error":"#DIV/0!"}}]
[{"$f":"IF(Estandares!D25=\"x\",Estandares!B25,\"BORRAR FILA\")","v":"BORRAR FILA"},{"$f":"Estandares!G25","v":{"$error":"#DIV/0!"}},"Instrumento 1",null,null,"Instrumento 2",null,null,"Instrumento 3",null,null,"Instrumento 4",null,null,0,{"$f":"IF(Q30=\"SI\",(O30*B30)/Estandares!K14/Estandares!H36,(O30*B30)/Estandares!K14)","v":{"$error":"#DIV/0!"}},{"$f":"IF(Estandares!H36>1,\"SI\",\"\")","v":""},{"$f":"(O30*B30)/Estandares!K14","v":{"$error":"#DIV/0!"}}]
[{"$f":"IF(Estandares!D26=\"x\",Estandares!B26,\"BORRAR FILA\")","v":"BORRAR FILA"},{"$f":"Estandares!G26","v":{"$error":"#DIV/0!"}},"Instrumento 1",null,null,"Instrumento 2",null,null,"Instrumento 3",null,null,"Instrumento 4",null,null,0,{"$f":"IF(Q31=\"SI\",(O31*B31)/Estandares!K14/Estandares!H37,(O31*B31)/Estandares!K14)","v":{"$error":"#DIV/0!"}},{"$f":"IF(Estandares!H37>1,\"SI\",\"\")","v":""},{"$f":"(O31*B31)/Estandares!K14","v":{"$error":"#DIV/0!"}}]
[{"$f":"IF(Estandares!D27=\"x\",Estandares!B27,\"BORRAR FILA\")","v":"BORRAR FILA"},{"$f":"Estandares!G27","v":{"$error":"#DIV/0!"}},"Instrumento 1",null,null,"Instrumento 2",null,null,"Instrumento 3",null,null,"Instrumento 4",null,null,0,{"$f":"IF(Q32=\"SI\",(O32*B32)/Estandares!K14/Estandares!H38,(O32*B32)/Estandares!K14)","v":{"$error":"#DIV/0!"}},{"$f":"IF(Estandares!H38>1,\"SI\",\"\")","v":""},{"$f":"(O32*B32)/Estandares!K14","v":{"$error":"#DIV/0!"}}]
[{"$f":"IF(Estandares!D28=\"x\",Estandares!B28,\"BORRAR FILA\")","v":"BORRAR FILA"},{"$f":"Estandares!G28","v":{"$error":"#DIV/0!"}},"Instrumento 1",null,null,"Instrumento 2",null,null,"Instrumento 3",null,null,"Instrumento 4",null,null,0,{"$f":"IF(Q33=\"SI\",(O33*B33)/Estandares!K14/Estandares!H39,(O33*B33)/Estandares!K14)","v":{"$error":"#DIV/0!"}},{"$f":"IF(Estandares!H39>1,\"SI\",\"\")","v":""},{"$f":"(O33*B33)/Estandares!K14","v":{"$error":"#DIV/0!"}}]
[{"$f":"IF(Estandares!D29=\"x\",Estandares!B29,\"BORRAR FILA\")","v":"BORRAR FILA"},{"$f":"Estandares!G29","v":{"$error":"#DIV/0!"}},"Instrumento 1",null,null,"Instrumento 2",null,null,"Instrumento 3",null,null,"Instrumento 4",null,null,0,{"$f":"IF(Q34=\"SI\",(O34*B34)/Estandares!K14/Estandares!H40,(O34*B34)/Estandares!K14)","v":{"$error":"#DIV/0!"}},{"$f":"IF(Estandares!H40>1,\"SI\",\"\")","v":""},{"$f":"(O34*B34)/Estandares!K14","v":{"$error":"#DIV/0!"}}]
[{"$f":"IF(Estandares!D30=\"x\",Estandares!B30,\"BORRAR FILA\")","v":"BORRAR FILA"},{"$f":"Estandares!G30","v":{"$error":"#DIV/0!"}},"Instrumento 1",null,null,"Instrumento 2",null,null,"Instrumento 3",null,null,"Instrumento 4",null,null,0,{"$f":"IF(Q35=\"SI\",(O35*B35)/Estandares!K14/Estandares!H41,(O35*B35)/Estandares!K14)","v":{"$error":"#DIV/0!"}},{"$f":"IF(Estandares!H41>1,\"SI\",\"\")","v":""},{"$f":"(O35*B35)/Estandares!K14","v":{"$error":"#DIV/0!"}}]
[{"$f":"IF(Estandares!D31=\"x\",Estandares!B31,\"BORRAR FILA\")","v":"BORRAR FILA"},{"$f":"Estandares!G31","v":{"$error":"#DIV/0!"}},"Instrumento 1",null,null,"Instrumento 2",null,null,"Instrumento 3",null,null,"Instrumento 4",null,null,0,{"$f":"IF(Q36=\"SI\",(O36*B36)/Estandares!K14/Estandares!H42,(O36*B36)/Estandares!K14)","v":{"$error":"#DIV/0!"}},{"$f":"IF(Estandares!H42>1,\"SI\",\"\")","v":""},{"$f":"(O36*B36)/Estandares!K14","v":{"$error":"#DIV/0!"}}]
[{"$f":"IF(Estandares!D32=\"x\",Estandares!B32,\"BORRAR FILA\")","v":"BORRAR FILA"},{"$f":"Estandares!G32","v":{"$error":"#DIV/0!"}},"Instrumento 1",null,null,"Instrumento 2",null,null,"Instrumento 3",null,null,"Instrumento 4",null,null,0,{"$f":"IF(Q37=\"SI\",(O37*B37)/Estandares!K14/Estandares!H43,(O37*B37)/Estandares!K14)","v":{"$error":"#DIV/0!"}},{"$f":"IF(Estandares!H43>1,\"SI\",\"\")","v":""},{"$f":"(O37*B37)/Estandares!K14","v":{"$error":"#DIV/0!"}}]
[{"$f":"IF(Estandares!D33=\"x\",Estandares!B33,\"BORRAR FILA\")","v":"BORRAR FILA"},{"$f":"Estandares!G33","v":{"$error":"#DIV/0!"}},"Instrumento 1",null,null,"Instrumento 2",null,null,"Instrumento 3",null,null,"Instrumento 4",null,null,0,{"$f":"IF(Q38=\"SI\",(O38*B38)/Estandares!K14/Estandares!H44,(O38*B38)/Estandares!K14)","v":{"$error":"#DIV/0!"}},{"$f":"IF(Estandares!H44>1,\"SI\",\"\")","v":""},{"$f":"(O38*B38)/Estandares!K14","v":{"$error":"#DIV/0!"}}]
[{"$f":"IF(Estandares!D34=\"x\",Estandares!B34,\"BORRAR FILA\")","v":"BORRAR FILA"},{"$f":"Estandares!G34","v":{"$error":"#DIV/0!"}},"Instrumento 1",null,null,"Instrumento 2",null,null,"Instrumento 3",null,null,"Instrumento 4",null,null,0,{"$f":"IF(Q39=\"SI\",(O39*B39)/Estandares!K14/Estandares!H45,(O39*B39)/Estandares!K14)","v":{"$error":"#DIV/0!"}},{"$f":"IF(Estandares!H45>1,\"SI\",\"\")","v":""},{"$f":"(O39*B39)/Estandares!K14","v":{"$error":"#DIV/0!"}}]
[{"$f":"IF(Estandares!D35=\"x\",Estandares!B35,\"BORRAR FILA\")","v":"BORRAR FILA"},{"$f":"Estandares!G35","v":{"$error":"#DIV/0!"}},"Instrumento 1",null,null,"Instrumento 2",null,null,"Instrumento 3",null,null,"Instrumento 4",null,null,0,{"$f":"IF(Q40=\"SI\",(O40*B40)/Estandares!K14/Estandares!H46,(O40*B40)/Estandares!K14)","v":{"$error":"#DIV/0!"}},{"$f":"IF(Estandares!H46>1,\"SI\",\"\")","v":""},{"$f":"(O40*B40)/Estandares!K14","v":{"$error":"#DIV/0!"}}]
[{"$f":"IF(Estandares!D36=\"x\",Estandares!B36,\"BORRAR FILA\")","v":"BORRAR FILA"},{"$f":"Estandares!G36","v":{"$error":"#DIV/0!"}},"Instrumento 1",null,null,"Instrumento 2",null,null,"Instrumento 3",null,null,"Instrumento 4",null,null,0,{"$f":"IF(Q41=\"SI\",(O41*B41)/Estandares!K14/Estandares!H47,(O41*B41)/Estandares!K14)","v":{"$error":"#DIV/0!"}},{"$f":"IF(Estandares!H47>1,\"SI\",\"\")","v":""},{"$f":"(O41*B41)/Estandares!K14","v":{"$error":"#DIV/0!"}}]
[{"$f":"IF(Estandares!D37=\"x\",Estandares!B37,\"BORRAR FILA\")","v":"BORRAR FILA"},{"$f":"Estandares!G37","v":{"$error":"#DIV/0!"}},"Instrumento 1",null,null,"Instrumento 2",null,null,"Instrumento 3",null,null,"Instrumento 4",null,null,0,{"$f":"IF(Q42=\"SI\",(O42*B42)/Estandares!K14/Estandares!H48,(O42*B42)/Estandares!K14)","v":{"$error":"#DIV/0!"}},{"$f":"IF(Estandares!H48>1,\"SI\",\"\")","v":""},{"$f":"(O42*B42)/Estandares!K14","v":{"$error":"#DIV/0!"}}]
[{"$f":"IF(Estandares!D38=\"x\",Estandares!B38,\"BORRAR FILA\")","v":"BORRAR FILA"},{"$f":"Estandares!G38","v":{"$error":"#DIV/0!"}},"Instrumento 1",null,null,"Instrumento 2",null,null,"Instrumento 3",null,null,"Instrumento 4",null,null,0,{"$f":"IF(Q43=\"SI\",(O43*B43)/Estandares!K14/Estandares!H49,(O43*B43)/Estandares!K14)","v":{"$error":"#DIV/0!"}},{"$f":"IF(Estandares!H49>1,\"SI\",\"\")","v":""},{"$f":"(O43*B43)/Estandares!K14","v":{"$error":"#DIV/0!"}}]
[{"$f":"IF(Estandares!D39=\"x\",Estandares!B39,\"BORRAR FILA\")","v":"BORRAR FILA"},{"$f":"Estandares!G39","v":{"$error":"#DIV/0!"}},"Instrumento 1",null,null,"Instrumento 2",null,null,"Instrumento 3",null,null,"Instrumento 4",null,null,0,{"$f":"IF(Q44=\"SI\",(O44*B44)/Estandares!K14/Estandares!H50,(O44*B44)/Estandares!K14)","v":{"$error":"#DIV/0!"}},{"$f":"IF(Estandares!H50>1,\"SI\",\"\")","v":""},{"$f":"(O44*B44)/Estandares!K14","v":{"$error":"#DIV/0!"}}]
[{"$f":"IF(Estandares!D40=\"x\",Estandares!B40,\"BORRAR FILA\")","v":"BORRAR FILA"},{"$f":"Estandares!G40","v":{"$error":"#DIV/0!"}},"Instrumento 1",null,null,"Instrumento 2",null,null,"Instrumento 3",null,null,"Instrumento 4",null,null,0,{"$f":"IF(Q45=\"SI\",(O45*B45)/Estandares!K14/Estandares!H51,(O45*B45)/Estandares!K14)","v":{"$error":"#DIV/0!"}},{"$f":"IF(Estandares!H51>1,\"SI\",\"\")","v":""},{"$f":"(O45*B45)/Estandares!K14","v":{"$error":"#DIV/0!"}}]
[{"$f":"IF(Estandares!D41=\"x\",Estandares!B41,\"BORRAR FILA\")","v":"BORRAR FILA"},{"$f":"Estandares!G41","v":{"$error":"#DIV/0!"}},"Instrumento 1",null,null,"Instrumento 2",null,null,"Instrumento 3",null,null,"Instrumento 4",null,null,0,{"$f":"IF(Q46=\"SI\",(O46*B46)/Estandares!K14/Estandares!H52,(O46*B46)/Estandares!K14)","v":{"$error":"#DIV/0!"}},{"$f":"IF(Estandares!H52>1,\"SI\",\"\")","v":""},{"$f":"(O46*B46)/Estandares!K14","v":{"$error":"#DIV/0!"}}]
[{"$f":"IF(Estandares!D42=\"x\",Estandares!B42,\"BORRAR FILA\")","v":"BORRAR FILA"},{"$f":"Estandares!G42","v":{"$error":"#DIV/0!"}},"Instrumento 1",null,null,"Instrumento 2",null,null,"Instrumento 3",null,null,"Instrumento 4",null,null,0,{"$f":"IF(Q47=\"SI\",(O47*B47)/Estandares!K14/Estandares!H53,(O47*B47)/Estandares!K14)","v":{"$error":"#DIV/0!"}},{"$f":"IF(Estandares!H53>1,\"SI\",\"\")","v":""},{"$f":"(O47*B47)/Estandares!K14","v":{"$error":"#DIV/0!"}}]
[{"$f":"IF(Estandares!D43=\"x\",Estandares!B43,\"BORRAR FILA\")","v":"BORRAR FILA"},{"$f":"Estandares!G43","v":{"$error":"#DIV/0!"}},"Instrumento 1",null,null,"Instrumento 2",null,null,"Instrumento 3",null,null,"Instrumento 4",null,null,0,{"$f":"IF(Q48=\"SI\",(O48*B48)/Estandares!K14/Estandares!H54,(O48*B48)/Estandares!K14)","v":{"$error":"#DIV/0!"}},{"$f":"IF(Estandares!H54>1,\"SI\",\"\")","v":""},{"$f":"(O48*B48)/Estandares!K14","v":{"$error":"#DIV/0!"}}]
[{"$f":"IF(Estandares!D44=\"x\",Estandares!B44,\"BORRAR FILA\")","v":"BORRAR FILA"},{"$f":"Estandares!G44","v":{"$error":"#DIV/0!"}},"Instrumento 1",null,null,"Instrumento 2",null,null,"Instrumento 3",null,null,"Instrumento 4",null,null,0,{"$f":"IF(Q49=\"SI\",(O49*B49)/Estandares!K14/Estandares!H55,(O49*B49)/Estandares!K14)","v":{"$error":"#DIV/0!"}},{"$f":"IF(Estandares!H55>1,\"SI\",\"\")","v":""},{"$f":"(O49*B49)/Estandares!K14","v":{"$error":"#DIV/0!"}}]
[{"$f":"IF(Estandares!D45=\"x\",Estandares!B45,\"BORRAR FILA\")","v":"BORRAR FILA"},{"$f":"Estandares!G45","v":{"$error":"#DIV/0!"}},"Instrumento 1",null,null,"Instrumento 2",null,null,"Instrumento 3",null,null,"Instrumento 4",null,null,0,{"$f":"IF(Q50=\"SI\",(O50*B50)/Estandares!K14/Estandares!H56,(O50*B50)/Estandares!K14)","v":{"$error":"#DIV/0!"}},{"$f":"IF(Estandares!H56>1,\"SI\",\"\")","v":""},{"$f":"(O50*B50)/Estandares!K14","v":{"$error":"#DIV/0!"}}]
[{"$f":"IF(Estandares!D46=\"x\",Estandares!B46,\"BORRAR FILA\")","v":"BORRAR FILA"},{"$f":"Estandares!G46","v":{"$error":"#DIV/0!"}},"Instrumento 1",null,null,"Instrumento 2",null,null,"Instrumento 3",null,null,"Instrumento 4",null,null,0,{"$f":"IF(Q51=\"SI\",(O51*B51)/Estandares!K14/Estandares!H57,(O51*B51)/Estandares!K14)","v":{"$error":"#DIV/0!"}},{"$f":"IF(Estandares!H57>1,\"SI\",\"\")","v":""},{"$f":"(O51*B51)/Estandares!K14","v":{"$error":"#DIV/0!"}}]
[{"$f":"IF(Estandares!D47=\"x\",Estandares!B47,\"BORRAR FILA\")","v":"BORRAR FILA"},{"$f":"Estandares!G47","v":{"$error":"#DIV/0!"}},"Instrumento 1",null,null,"Instrumento 2",null,null,"Instrumento 3",null,null,"Instrumento 4",null,null,0,{"$f":"IF(Q52=\"SI\",(O52*B52)/Estandares!K14/Estandares!H58,(O52*B52)/Estandares!K14)","v":{"$error":"#DIV/0!"}},{"$f":"IF(Estandares!H58>1,\"SI\",\"\")","v":""},{"$f":"(O52*B52)/Estandares!K14","v":{"$error":"#DIV/0!"}}]
[{"$f":"IF(Estandares!D48=\"x\",Estandares!B48,\"BORRAR FILA\")","v":"BORRAR FILA"},{"$f":"Estandares!G48","v":{"$error":"#DIV/0!"}},"Instrumento 1",null,null,"Instrumento 2",null,null,"Instrumento 3",null,null,"Instrumento 4",null,null,0,{"$f":"IF(Q53=\"SI\",(O53*B53)/Estandares!K14/Estandares!H59,(O53*B53)/Estandares!K14)","v":{"$error":"#DIV/0!"}},{"$f":"IF(Estandares!H59>1,\"SI\",\"\")","v":""},{"$f":"(O53*B53)/Estandares!K14","v":{"$error":"#DIV/0!"}}]
[{"$f":"IF(Estandares!D49=\"x\",Estandares!B49,\"BORRAR FILA\")","v":"BORRAR FILA"},{"$f":"Estandares!G49","v":{"$error":"#DIV/0!"}},"Instrumento 1",null,null,"Instrumento 2",null,null,"Instrumento 3",null,null,"Instrumento 4",null,null,0,{"$f":"IF(Q54=\"SI\",(O54*B54)/Estandares!K14/Estandares!H60,(O54*B54)/Estandares!K14)","v":{"$error":"#DIV/0!"}},{"$f":"IF(Estandares!H60>1,\"SI\",\"\")","v":""},{"$f":"(O54*B54)/Estandares!K14","v":{"$error":"#DIV/0!"}}]
[{"$f":"IF(Estandares!D50=\"x\",Estandares!B50,\"BORRAR FILA\")","v":"BORRAR FILA"},{"$f":"Estandares!G50","v":{"$error":"#DIV/0!"}},"Instrumento 1",null,null,"Instrumento 2",null,null,"Instrumento 3",null,null,"Instrumento 4",null,null,0,{"$f":"IF(Q55=\"SI\",(O55*B55)/Estandares!K14/Estandares!H61,(O55*B55)/Estandares!K14)","v":{"$error":"#DIV/0!"}},{"$f":"IF(Estandares!H61>1,\"SI\",\"\")","v":""},{"$f":"(O55*B55)/Estandares!K14","v":{"$error":"#DIV/0!"}}]
[{"$f":"IF(Estandares!D51=\"x\",Estandares!B51,\"BORRAR FILA\")","v":"BORRAR FILA"},{"$f":"Estandares!G51","v":{"$error":"#DIV/0!"}},"Instrumento 1",null,null,"Instrumento 2",null,null,"Instrumento 3",null,null,"Instrumento 4",null,null,0,{"$f":"IF(Q56=\"SI\",(O56*B56)/Estandares!K14/Estandares!H62,(O56*B56)/Estandares!K14)","v":{"$error":"#DIV/0!"}},{"$f":"IF(Estandares!H62>1,\"SI\",\"\")","v":""},{"$f":"(O56*B56)/Estandares!K14","v":{"$error":"#DIV/0!"}}]
[{"$f":"IF(Estandares!D52=\"x\",Estandares!B52,\"BORRAR FILA\")","v":"BORRAR FILA"},{"$f":"Estandares!G52","v":{"$error":"#DIV/0!"}},"Instrumento 1",null,null,"Instrumento 2",null,null,"Instrumento 3",null,null,"Instrumento 4",null,null,0,{"$f":"IF(Q57=\"SI\",(O57*B57)/Estandares!K14/Estandares!H63,(O57*B57)/Estandares!K14)","v":{"$error":"#DIV/0!"}},{"$f":"IF(Estandares!H63>1,\"SI\",\"\")","v":""},{"$f":"(O57*B57)/Estandares!K14","v":{"$error":"#DIV/0!"}}]
[{"$f":"IF(Estandares!D53=\"x\",Estandares!B53,\"BORRAR FILA\")","v":"BORRAR FILA"},{"$f":"Estandares!G53","v":{"$error":"#DIV/0!"}},"Instrumento 1",null,null,"Instrumento 2",null,null,"Instrumento 3",null,null,"Instrumento 4",null,null,0,{"$f":"IF(Q58=\"SI\",(O58*B58)/Estandares!K14/Estandares!H64,(O58*B58)/Estandares!K14)","v":{"$error":"#DIV/0!"}},{"$f":"IF(Estandares!H64>1,\"SI\",\"\")","v":""},{"$f":"(O58*B58)/Estandares!K14","v":{"$error":"#DIV/0!"}}]
[{"$f":"IF(Estandares!D54=\"x\",Estandares!B54,\"BORRAR FILA\")","v":"BORRAR FILA"},{"$f":"Estandares!G54","v":{"$error":"#DIV/0!"}},"Instrumento 1",null,null,"Instrumento 2",null,null,"Instrumento 3",null,null,"Instrumento 4",null,null,0,{"$f":"IF(Q59=\"SI\",(O59*B59)/Estandares!K14/Estandares!H65,(O59*B59)/Estandares!K14)","v":{"$error":"#DIV/0!"}},{"$f":"IF(Estandares!H65>1,\"SI\",\"\")","v":""},{"$f":"(O59*B59)/Estandares!K14","v":{"$error":"#DIV/0!"}}]
[{"$f":"IF(Estandares!D55=\"x\",Estandares!B55,\"BORRAR FILA\")","v":"BORRAR FILA"},{"$f":"Estandares!G55","v":{"$error":"#DIV/0!"}},"Instrumento 1",null,null,"Instrumento 2",null,null,"Instrumento 3",null,null,"Instrumento 4",null,null,0,{"$f":"IF(Q60=\"SI\",(O60*B60)/Estandares!K14/Estandares!H66,(O60*B60)/Estandares!K14)","v":{"$error":"#DIV/0!"}},{"$f":"IF(Estandares!H66>1,\"SI\",\"\")","v":""},{"$f":"(O60*B60)/Estandares!K14","v":{"$error":"#DIV/0!"}}]
[{"$f":"IF(Estandares!D56=\"x\",Estandares!B56,\"BORRAR FILA\")","v":"BORRAR FILA"},{"$f":"Estandares!G56","v":{"$error":"#DIV/0!"}},"Instrumento 1",null,null,"Instrumento 2",null,null,"Instrumento 3",null,null,"Instrumento 4",null,null,0,{"$f":"IF(Q61=\"SI\",(O61*B61)/Estandares!K14/Estandares!H67,(O61*B61)/Estandares!K14)","v":{"$error":"#DIV/0!"}},{"$f":"IF(Estandares!H67>1,\"SI\",\"\")","v":""},{"$f":"(O61*B61)/Estandares!K14","v":{"$error":"#DIV/0!"}}]
[{"$f":"IF(Estandares!D57=\"x\",Estandares!B57,\"BORRAR FILA\")","v":"BORRAR FILA"},{"$f":"Estandares!G57","v":{"$error":"#DIV/0!"}},"Instrumento 1",null,null,"Instrumento 2",null,null,"Instrumento 3",null,null,"Instrumento 4",null,null,0,{"$f":"IF(Q62=\"SI\",(O62*B62)/Estandares!K14/Estandares!H68,(O62*B62)/Estandares!K14)","v":{"$error":"#DIV/0!"}},{"$f":"IF(Estandares!H68>1,\"SI\",\"\")","v":""},{"$f":"(O62*B62)/Estandares!K14","v":{"$error":"#DIV/0!"}}]
[{"$f":"IF(Estandares!D58=\"x\",Estandares!B58,\"BORRAR FILA\")","v":"BORRAR FILA"},{"$f":"Estandares!G58","v":{"$error":"#DIV/0!"}},"Instrumento 1",null,null,"Instrumento 2",null,null,"Instrumento 3",null,null,"Instrumento 4",null,null,0,{"$f":"IF(Q63=\"SI\",(O63*B63)/Estandares!K14/Estandares!H69,(O63*B63)/Estandares!K14)","v":{"$error":"#DIV/0!"}},{"$f":"IF(Estandares!H69>1,\"SI\",\"\")","v":""},{"$f":"(O63*B63)/Estandares!K14","v":{"$error":"#DIV/0!"}}]
[{"$f":"IF(Estandares!D59=\"x\",Estandares!B59,\"BORRAR FILA\")","v":"BORRAR FILA"},{"$f":"Estandares!G59","v":{"$error":"#DIV/0!"}},"Instrumento 1",null,null,"Instrumento 2",null,null,"Instrumento 3",null,null,"Instrumento 4",null,null,0,{"$f":"IF(Q64=\"SI\",(O64*B64)/Estandares!K14/Estandares!H70,(O64*B64)/Estandares!K14)","v":{"$error":"#DIV/0!"}},{"$f":"IF(Estandares!H70>1,\"SI\",\"\")","v":""},{"$f":"(O64*B64)/Estandares!K14","v":{"$error":"#DIV/0!"}}]
[{"$f":"IF(Estandares!D60=\"x\",Estandares!B60,\"BORRAR FILA\")","v":"BORRAR FILA"},{"$f":"Estandares!G60","v":{"$error":"#DIV/0!"}},"Instrumento 1",null,null,"Instrumento 2",null,null,"Instrumento 3",null,null,"Instrumento 4",null,null,0,{"$f":"IF(Q65=\"SI\",(O65*B65)/Estandares!K14/Estandares!H71,(O65*B65)/Estandares!K14)","v":{"$error":"#DIV/0!"}},{"$f":"IF(Estandares!H71>1,\"SI\",\"\")","v":""},{"$f":"(O65*B65)/Estandares!K14","v":{"$error":"#DIV/0!"}}]
[{"$f":"IF(Estandares!D61=\"x\",Estandares!B61,\"BORRAR FILA\")","v":"BORRAR FILA"},{"$f":"Estandares!G61","v":{"$error":"#DIV/0!"}},"Instrumento 1",null,null,"Instrumento 2",null,null,"Instrumento 3",null,null,"Instrumento 4",null,null,0,{"$f":"IF(Q66=\"SI\",(O66*B66)/Estandares!K14/Estandares!H72,(O66*B66)/Estandares!K14)","v":{"$error":"#DIV/0!"}},{"$f":"IF(Estandares!H72>1,\"SI\",\"\")","v":""},{"$f":"(O66*B66)/Estandares!K14","v":{"$error":"#DIV/0!"}}]
[{"$f":"IF(Estandares!D62=\"x\",Estandares!B62,\"BORRAR FILA\")","v":"BORRAR FILA"},{"$f":"Estandares!G62","v":{"$error":"#DIV/0!"}},"Instrumento 1",null,null,"Instrumento 2",null,null,"Instrumento 3",null,null,"Instrumento 4",null,null,0,{"$f":"IF(Q67=\"SI\",(O67*B67)/Estandares!K14/Estandares!H73,(O67*B67)/Estandares!K14)","v":{"$error":"#DIV/0!"}},{"$f":"IF(Estandares!H73>1,\"SI\",\"\")","v":""},{"$f":"(O67*B67)/Estandares!K14","v":{"$error":"#DIV/0!"}}]
[{"$f":"IF(Estandares!D63=\"x\",Estandares!B63,\"BORRAR FILA\")","v":"BORRAR FILA"},{"$f":"Estandares!G63","v":{"$error":"#DIV/0!"}},"Instrumento 1",null,null,"Instrumento 2",null,null,"Instrumento 3",null,null,"Instrumento 4",null,null,0,{"$f":"IF(Q68=\"SI\",(O68*B68)/Estandares!K14/Estandares!H74,(O68*B68)/Estandares!K14)","v":{"$error":"#DIV/0!"}},{"$f":"IF(Estandares!H74>1,\"SI\",\"\")","v":""},{"$f":"(O68*B68)/Estandares!K14","v":{"$error":"#DIV/0!"}}]
[{"$f":"IF(Estandares!D64=\"x\",Estandares!B64,\"BORRAR FILA\")","v":"BORRAR FILA"},{"$f":"Estandares!G64","v":{"$error":"#DIV/0!"}},"Instrumento 1",null,null,"Instrumento 2",null,null,"Instrumento 3",null,null,"Instrumento 4",null,null,0,{"$f":"IF(Q69=\"SI\",(O69*B69)/Estandares!K14/Estandares!H75,(O69*B69)/Estandares!K14)","v":{"$error":"#DIV/0!"}},{"$f":"IF(Estandares!H75>1,\"SI\",\"\")","v":""},{"$f":"(O69*B69)/Estandares!K14","v":{"$error":"#DIV/0!"}}]
[{"$f":"IF(Estandares!D65=\"x\",Estandares!B65,\"BORRAR FILA\")","v":"BORRAR FILA"},{"$f":"Estandares!G65","v":{"$error":"#DIV/0!"}},"Instrumento 1",null,null,"Instrumento 2",null,null,"Instrumento 3",null,null,"Instrumento 4",null,null,0,{"$f":"IF(Q70=\"SI\",(O70*B70)/Estandares!K14/Estandares!H76,(O70*B70)/Estandares!K14)","v":{"$error":"#DIV/0!"}},{"$f":"IF(Estandares!H76>1,\"SI\",\"\")","v":""},{"$f":"(O70*B70)/Estandares!K14","v":{"$error":"#DIV/0!"}}]
[{"$f":"IF(Estandares!D66=\"x\",Estandares!B66,\"BORRAR FILA\")","v":"BORRAR FILA"},{"$f":"Estandares!G66","v":{"$error":"#DIV/0!"}},"Instrumento 1",null,null,"Instrumento 2",null,null,"Instrumento 3",null,null,"Instrumento 4",null,null,0,{"$f":"IF(Q71=\"SI\",(O71*B71)/Estandares!K14/Estandares!H77,(O71*B71)/Estandares!K14)","v":{"$error":"#DIV/0!"}},{"$f":"IF(Estandares!H77>1,\"SI\",\"\")","v":""},{"$f":"(O71*B71)/Estandares!K14","v":{"$error":"#DIV/0!"}}]
[{"$f":"IF(Estandares!D67=\"x\",Estandares!B67,\"BORRAR FILA\")","v":"BORRAR FILA"},{"$f":"Estandares!G67","v":{"$error":"#DIV/0!"}},"Instrumento 1",null,null,"Instrumento 2",null,null,"Instrumento 3",null,null,"Instrumento 4",null,null,{"$f":"(D72*E72)+(G72*H72)+(J72*K72)+(M72*N72)","v":0},{"$f":"IF(Q72=\"SI\",(O72*B72)/Estandares!K14/Estandares!H78,(O72*B72)/Estandares!K14)","v":{"$error":"#DIV/0!"}},{"$f":"IF(Estandares!H78>1,\"SI\",\"\")","v":""},{"$f":"(O72*B72)/Estandares!K14","v":{"$error":"#DIV/0!"}}]
[{"$f":"IF(Estandares!D68=\"x\",Estandares!B68,\"BORRAR FILA\")","v":"BORRAR FILA"},{"$f":"Estandares!G68","v":{"$error":"#DIV/0!"}},"Instrumento 1",null,null,"Instrumento 2",null,null,"Instrumento 3",null,null,"Instrumento 4",null,null,0,{"$f":"IF(Q73=\"SI\",(O73*B73)/Estandares!K14/Estandares!H79,(O73*B73)/Estandares!K14)","v":{"$error":"#DIV/0!"}},{"$f":"IF(Estandares!H79>1,\"SI\",\"\")","v":""},{"$f":"(O73*B73)/Estandares!K14","v":{"$error":"#DIV/0!"}}]
[{"$f":"IF(Estandares!D69=\"x\",Estandares!B69,\"BORRAR FILA\")","v":"BORRAR FILA"},{"$f":"Estandares!G69","v":{"$error":"#DIV/0!"}},"Instrumento 1",null,null,"Instrumento 2",null,null,"Instrumento 3",null,null,"Instrumento 4",null,null,0,{"$f":"IF(Q74=\"SI\",(O74*B74)/Estandares!K14/Estandares!H80,(O74*B74)/Estandares!K14)","v":{"$error":"#DIV/0!"}},{"$f":"IF(Estandares!H80>1,\"SI\",\"\")","v":""},{"$f":"(O74*B74)/Estandares!K14","v":{"$error":"#DIV/0!"}}]
[{"$f":"IF(Estandares!D70=\"x\",Estandares!B70,\"BORRAR FILA\")","v":"BORRAR FILA"},{"$f":"Estandares!G70","v":{"$error":"#DIV/0!"}},"Instrumento 1",null,null,"Instrumento 2",null,null,"Instrumento 3",null,null,"Instrumento 4",null,null,0,{"$f":"IF(Q75=\"SI\",(O75*B75)/Estandares!K14/Estandares!H81,(O75*B75)/Estandares!K14)","v":{"$error":"#DIV/0!"}},{"$f":"IF(Estandares!H81>1,\"SI\",\"\")","v":""},{"$f":"(O75*B75)/Estandares!K14","v":{"$error":"#DIV/0!"}}]
[{"$f":"IF(Estandares!D71=\"x\",Estandares!B71,\"BORRAR FILA\")","v":"BORRAR FILA"},{"$f":"Estandares!G71","v":{"$error":"#DIV/0!"}},"Instrumento 1",null,null,"Instrumento 2",null,null,"Instrumento 3",null,null,"Instrumento 4",null,null,0,{"$f":"IF(Q76=\"SI\",(O76*B76)/Estandares!K14/Estandares!H82,(O76*B76)/Estandares!K14)","v":{"$error":"#DIV/0!"}},{"$f":"IF(Estandares!H82>1,\"SI\",\"\")","v":""},{"$f":"(O76*B76)/Estandares!K14","v":{"$error":"#DIV/0!"}}]
[{"$f":"IF(Estandares!D72=\"x\",Estandares!B72,\"BORRAR FILA\")","v":"BORRAR FILA"},{"$f":"Estandares!G72","v":{"$error":"#DIV/0!"}},"Instrumento 1",null,null,"Instrumento 2",null,null,"Instrumento 3",null,null,"Instrumento 4",null,null,0,{"$f":"IF(Q77=\"SI\",(O77*B77)/Estandares!K14/Estandares!H83,(O77*B77)/Estandares!K14)","v":{"$error":"#DIV/0!"}},{"$f":"IF(Estandares!H83>1,\"SI\",\"\")","v":""},{"$f":"(O77*B77)/Estandares!K14","v":{"$error":"#DIV/0!"}}]
[{"$f":"IF(Estandares!D73=\"x\",Estandares!B73,\"BORRAR FILA\")","v":"BORRAR FILA"},{"$f":"Estandares!G73","v":{"$error":"#DIV/0!"}},"Instrumento 1",null,null,"Instrumento 2",null,null,"Instrumento 3",null,null,"Instrumento 4",null,null,0,{"$f":"IF(Q78=\"SI\",(O78*B78)/Estandares!K14/Estandares!H84,(O78*B78)/Estandares!K14)","v":{"$error":"#DIV/0!"}},{"$f":"IF(Estandares!H84>1,\"SI\",\"\")","v":""},{"$f":"(O78*B78)/Estandares!K14","v":{"$error":"#DIV/0!"}}]
[{"$f":"IF(Estandares!D74=\"x\",Estandares!B74,\"BORRAR FILA\")","v":"BORRAR FILA"},{"$f":"Estandares!G74","v":{"$error":"#DIV/0!"}},"Instrumento 1",null,null,"Instrumento 2",null,null,"Instrumento 3",null,null,"Instrumento 4",null,null,0,{"$f":"IF(Q79=\"SI\",(O79*B79)/Estandares!K14/Estandares!H85,(O79*B79)/Estandares!K14)","v":{"$error":"#DIV/0!"}},{"$f":"IF(Estandares!H85>1,\"SI\",\"\")","v":""},{"$f":"(O79*B79)/Estandares!K14","v":{"$error":"#DIV/0!"}}]
[{"$f":"IF(Estandares!D75=\"x\",Estandares!B75,\"BORRAR FILA\")","v":"BORRAR FILA"},{"$f":"Estandares!G75","v":{"$error":"#DIV/0!"}},"Instrumento 1",null,null,"Instrumento 2",null,null,"Instrumento 3",null,null,"Instrumento 4",null,null,0,{"$f":"IF(Q80=\"SI\",(O80*B80)/Estandares!K14/Estandares!H86,(O80*B80)/Estandares!K14)","v":{"$error":"#DIV/0!"}},{"$f":"IF(Estandares!H86>1,\"SI\",\"\")","v":""},{"$f":"(O80*B80)/Estandares!K14","v":{"$error":"#DIV/0!"}}]
[{"$f":"IF(Estandares!D76=\"x\",Estandares!B76,\"BORRAR FILA\")","v":"BORRAR FILA"},{"$f":"Estandares!G76","v":{"$error":"#DIV/0!"}},"Instrumento 1",null,null,"Instrumento 2",null,null,"Instrumento 3",null,null,"Instrumento 4",null,null,0,{"$f":"IF(Q81=\"SI\",(O81*B81)/Estandares!K14/Estandares!H87,(O81*B81)/Estandares!K14)","v":{"$error":"#DIV/0!"}},{"$f":"IF(Estandares!H87>1,\"SI\",\"\")","v":""},{"$f":"(O81*B81)/Estandares!K14","v":{"$error":"#DIV/0!"}}]
[{"$f":"IF(Estandares!D77=\"x\",Estandares!B77,\"BORRAR FILA\")","v":"BORRAR FILA"},{"$f":"Estandares!G77","v":{"$error":"#DIV/0!"}},"Instrumento 1",null,null,"Instrumento 2",null,null,"Instrumento 3",null,null,"Instrumento 4",null,null,0,{"$f":"IF(Q82=\"SI\",(O82*B82)/Estandares!K14/Estandares!H88,(O82*B82)/Estandares!K14)","v":{"$error":"#DIV/0!"}},{"$f":"IF(Estandares!H88>1,\"SI\",\"\")","v":""},{"$f":"(O82*B82)/Estandares!K14","v":{"$error":"#DIV/0!"}}]
[{"$f":"IF(Estandares!D78=\"x\",Estandares!B78,\"BORRAR FILA\")","v":"BORRAR FILA"},{"$f":"Estandares!G78","v":{"$error":"#DIV/0!"}},"Instrumento 1",null,null,"Instrumento 2",null,null,"Instrumento 3",null,null,"Instrumento 4",null,null,0,{"$f":"IF(Q83=\"SI\",(O83*B83)/Estandares!K14/Estandares!H89,(O83*B83)/Estandares!K14)","v":{"$error":"#DIV/0!"}},{"$f":"IF(Estandares!H89>1,\"SI\",\"\")","v":""},{"$f":"(O83*B83)/Estandares!K14","v":{"$error":"#DIV/0!"}}]
[{"$f":"IF(Estandares!D79=\"x\",Estandares!B79,\"BORRAR FILA\")","v":"BORRAR FILA"},{"$f":"Estandares!G79","v":{"$error":"#DIV/0!"}},"Instrumento 1",null,null,"Instrumento 2",null,null,"Instrumento 3",null,null,"Instrumento 4",null,null,0,{"$f":"IF(Q84=\"SI\",(O84*B84)/Estandares!K14/Estandares!H90,(O84*B84)/Estandares!K14)","v":{"$error":"#DIV/0!"}},{"$f":"IF(Estandares!H90>1,\"SI\",\"\")","v":""},{"$f":"(O84*B84)/Estandares!K14","v":{"$error":"#DIV/0!"}}]
[{"$f":"IF(Estandares!D80=\"x\",Estandares!B80,\"BORRAR FILA\")","v":"BORRAR FILA"},{"$f":"Estandares!G80","v":{"$error":"#DIV/0!"}},"Instrumento 1",null,null,"Instrumento 2",null,null,"Instrumento 3",null,null,"Instrumento 4",null,null,0,{"$f":"IF(Q85=\"SI\",(O85*B85)/Estandares!K14/Estandares!H91,(O85*B85)/Estandares!K14)","v":{"$error":"#DIV/0!"}},{"$f":"IF(Estandares!H91>1,\"SI\",\"\")","v":""},{"$f":"(O85*B85)/Estandares!K14","v":{"$error":"#DIV/0!"}}]
[{"$f":"IF(Estandares!D81=\"x\",Estandares!B81,\"BORRAR FILA\")","v":"BORRAR FILA"},{"$f":"Estandares!G81","v":{"$error":"#DIV/0!"}},"Instrumento 1",null,null,"Instrumento 2",null,null,"Instrumento 3",null,null,"Instrumento 4",null,null,0,{"$f":"IF(Q86=\"SI\",(O86*B86)/Estandares!K14/Estandares!H92,(O86*B86)/Estandares!K14)","v":{"$error":"#DIV/0!"}},{"$f":"IF(Estandares!H92>1,\"SI\",\"\")","v":""},{"$f":"(O86*B86)/Estandares!K14","v":{"$error":"#DIV/0!"}}]
[{"$f":"IF(Estandares!D82=\"x\",Estandares!B82,\"BORRAR FILA\")","v":"BORRAR FILA"},{"$f":"Estandares!G82","v":{"$error":"#DIV/0!"}},"Instrumento 1",null,null,"Instrumento 2",null,null,"Instrumento 3",null,null,"Instrumento 4",null,null,0,{"$f":"IF(Q87=\"SI\",(O87*B87)/Estandares!K14/Estandares!H93,(O87*B87)/Estandares!K14)","v":{"$error":"#DIV/0!"}},{"$f":"IF(Estandares!H93>1,\"SI\",\"\")","v":""},{"$f":"(O87*B87)/Estandares!K14","v":{"$error":"#DIV/0!"}}]
[{"$f":"IF(Estandares!D83=\"x\",Estandares!B83,\"BORRAR FILA\")","v":"BORRAR FILA"},{"$f":"Estandares!G83","v":{"$error":"#DIV/0!"}},"Instrumento 1",null,null,"Instrumento 2",null,null,"Instrumento 3",null,null,"Instrumento 4",null,null,0,{"$f":"IF(Q88=\"SI\",(O88*B88)/Estandares!K14/Estandares!H94,(O88*B88)/Estandares!K14)","v":{"$error":"#DIV/0!"}},{"$f":"IF(Estandares!H94>1,\"SI\",\"\")","v":""},{"$f":"(O88*B88)/Estandares!K14","v":{"$error":"#DIV/0!"}}]
[{"$f":"IF(Estandares!D84=\"x\",Estandares!B84,\"BORRAR FILA\")","v":"BORRAR FILA"},{"$f":"Estandares!G84","v":{"$error":"#DIV/0!"}},"Instrumento 1",null,null,"Instrumento 2",null,null,"Instrumento 3",null,null,"Instrumento 4",null,null,0,{"$f":"IF(Q89=\"SI\",(O89*B89)/Estandares!K14/Estandares!H95,(O89*B89)/Estandares!K14)","v":{"$error":"#DIV/0!"}},{"$f":"IF(Estandares!H95>1,\"SI\",\"\")","v":""},{"$f":"(O89*B89)/Estandares!K14","v":{"$error":"#DIV/0!"}}]
[{"$f":"IF(Estandares!D85=\"x\",Estandares!B85,\"BORRAR FILA\")","v":"BORRAR FILA"},{"$f":"Estandares!G85","v":{"$error":"#DIV/0!"}},"Instrumento 1",null,null,"Instrumento 2",null,null,"Instrumento 3",null,null,"Instrumento 4",null,null,0,{"$f":"IF(Q90=\"SI\",(O90*B90)/Estandares!K14/Estandares!H96,(O90*B90)/Estandares!K14)","v":{"$error":"#DIV/0!"}},{"$f":"IF(Estandares!H96>1,\"SI\",\"\")","v":""},{"$f":"(O90*B90)/Estandares!K14","v":{"$error":"#DIV/0!"}}]
[{"$f":"IF(Estandares!D86=\"x\",Estandares!B86,\"BORRAR FILA\")","v":"BORRAR FILA"},{"$f":"Estandares!G86","v":{"$error":"#DIV/0!"}},"Instrumento 1",null,null,"Instrumento 2",null,null,"Instrumento 3",null,null,"Instrumento 4",null,null,0,{"$f":"IF(Q91=\"SI\",(O91*B91)/Estandares!K14/Estandares!H97,(O91*B91)/Estandares!K14)","v":{"$error":"#DIV/0!"}},{"$f":"IF(Estandares!H97>1,\"SI\",\"\")","v":""},{"$f":"(O91*B91)/Estandares!K14","v":{"$error":"#DIV/0!"}}]
[{"$f":"IF(Estandares!D87=\"x\",Estandares!B87,\"BORRAR FILA\")","v":"BORRAR FILA"},{"$f":"Estandares!G87","v":{"$error":"#DIV/0!"}},"Instrumento 1",null,null,"Instrumento 2",null,null,"Instrumento 3",null,null,"Instrumento 4",null,null,0,{"$f":"IF(Q92=\"SI\",(O92*B92)/Estandares!K14/Estandares!H98,(O92*B92)/Estandares!K14)","v":{"$error":"#DIV/0!"}},{"$f":"IF(Estandares!H98>1,\"SI\",\"\")","v":""},{"$f":"(O92*B92)/Estandares!K14","v":{"$error":"#DIV/0!"}}]
[{"$f":"IF(Estandares!D88=\"x\",Estandares!B88,\"BORRAR FILA\")","v":"BORRAR FILA"},{"$f":"Estandares!G88","v":{"$error":"#DIV/0!"}},"Instrumento 1",null,null,"Instrumento 2",null,null,"Instrumento 3",null,null,"Instrumento 4",null,null,0,{"$f":"IF(Q93=\"SI\",(O93*B93)/Estandares!K14/Estandares!H99,(O93*B93)/Estandares!K14)","v":{"$error":"#DIV/0!"}},{"$f":"IF(Estandares!H99>1,\"SI\",\"\")","v":""},{"$f":"(O93*B93)/Estandares!K14","v":{"$error":"#DIV/0!"}}]
[{"$f":"IF(Estandares!D89=\"x\",Estandares!B89,\"BORRAR FILA\")","v":"BORRAR FILA"},{"$f":"Estandares!G89","v":{"$error":"#DIV/0!"}},"Instrumento 1",null,null,"Instrumento 2",null,null,"Instrumento 3",null,null,"Instrumento 4",null,null,0,{"$f":"IF(Q94=\"SI\",(O94*B94)/Estandares!K14/Estandares!H100,(O94*B94)/Estandares!K14)","v":{"$error":"#DIV/0!"}},{"$f":"IF(Estandares!H100>1,\"SI\",\"\")","v":""},{"$f":"(O94*B94)/Estandares!K14","v":{"$error":"#DIV/0!"}}]
[{"$f":"IF(Estandares!D90=\"x\",Estandares!B90,\"BORRAR FILA\")","v":"BORRAR FILA"},{"$f":"Estandares!G90","v":{"$error":"#DIV/0!"}},"Instrumento 1",null,null,"Instrumento 2",null,null,"Instrumento 3",null,null,"Instrumento 4",null,null,0,{"$f":"IF(Q95=\"SI\",(O95*B95)/Estandares!K14/Estandares!H101,(O95*B95)/Estandares!K14)","v":{"$error":"#DIV/0!"}},{"$f":"IF(Estandares!H101>1,\"SI\",\"\")","v":""},{"$f":"(O95*B95)/Estandares!K14","v":{"$error":"#DIV/0!"}}]
[{"$f":"IF(Estandares!D91=\"x\",Estandares!B91,\"BORRAR FILA\")","v":"BORRAR FILA"},{"$f":"Estandares!G91","v":{"$error":"#DIV/0!"}},"Instrumento 1",null,null,"Instrumento 2",null,null,"Instrumento 3",null,null,"Instrumento 4",null,null,0,{"$f":"IF(Q96=\"SI\",(O96*B96)/Estandares!K14/Estandares!H102,(O96*B96)/Estandares!K14)","v":{"$error":"#DIV/0!"}},{"$f":"IF(Estandares!H102>1,\"SI\",\"\")","v":""},{"$f":"(O96*B96)/Estandares!K14","v":{"$error":"#DIV/0!"}}]
[{"$f":"IF(Estandares!D92=\"x\",Estandares!B92,\"BORRAR FILA\")","v":"BORRAR FILA"},{"$f":"Estandares!G92","v":{"$error":"#DIV/0!"}},"Instrumento 1",null,null,"Instrumento 2",null,null,"Instrumento 3",null,null,"Instrumento 4",null,null,0,{"$f":"IF(Q97=\"SI\",(O97*B97)/Estandares!K14/Estandares!H103,(O97*B97)/Estandares!K14)","v":{"$error":"#DIV/0!"}},{"$f":"IF(Estandares!H103>1,\"SI\",\"\")","v":""},{"$f":"(O97*B97)/Estandares!K14","v":{"$error":"#DIV/0!"}}]
[{"$f":"IF(Estandares!D93=\"x\",Estandares!B93,\"BORRAR FILA\")","v":"BORRAR FILA"},{"$f":"Estandares!G93","v":{"$error":"#DIV/0!"}},"Instrumento 1",null,null,"Instrumento 2",null,null,"Instrumento 3",null,null,"Instrumento 4",null,null,0,{"$f":"IF(Q98=\"SI\",(O98*B98)/Estandares!K14/Estandares!H104,(O98*B98)/Estandares!K14)","v":{"$error":"#DIV/0!"}},{"$f":"IF(Estandares!H104>1,\"SI\",\"\")","v":""},{"$f":"(O98*B98)/Estandares!K14","v":{"$error":"#DIV/0!"}}]
[{"$f":"IF(Estandares!D94=\"x\",Estandares!B94,\"BORRAR FILA\")","v":"BORRAR FILA"},{"$f":"Estandares!G94","v":{"$error":"#DIV/0!"}},"Instrumento 1",null,null,"Instrumento 2",null,null,"Instrumento 3",null,null,"Instrumento 4",null,null,0,{"$f":"IF(Q99=\"SI\",(O99*B99)/Estandares!K14/Estandares!H105,(O99*B99)/Estandares!K14)","v":{"$error":"#DIV/0!"}},{"$f":"IF(Estandares!H105>1,\"SI\",\"\")","v":""},{"$f":"(O99*B99)/Estandares!K14","v":{"$error":"#DIV/0!"}}]
[{"$f":"IF(Estandares!D95=\"x\",Estandares!B95,\"BORRAR FILA\")","v":"BORRAR FILA"},{"$f":"Estandares!G95","v":{"$error":"#DIV/0!"}},"Instrumento 1",null,null,"Instrumento 2",null,null,"Instrumento 3",null,null,"Instrumento 4",null,null,0,{"$f":"IF(Q100=\"SI\",(O100*B100)/Estandares!K14/Estandares!H106,(O100*B100)/Estandares!K14)","v":{"$error":"#DIV/0!"}},{"$f":"IF(Estandares!H106>1,\"SI\",\"\")","v":""},{"$f":"(O100*B100)/Estandares!K14","v":{"$error":"#DIV/0!"}}]
[{"$f":"IF(Estandares!D96=\"x\",Estandares!B96,\"BORRAR FILA\")","v":"BORRAR FILA"},{"$f":"Estandares!G96","v":{"$error":"#DIV/0!"}},"Instrumento 1",null,null,"Instrumento 2",null,null,"Instrumento 3",null,null,"Instrumento 4",null,null,0,{"$f":"IF(Q101=\"SI\",(O101*B101)/Estandares!K14/Estandares!H107,(O101*B101)/Estandares!K14)","v":{"$error":"#DIV/0!"}},{"$f":"IF(Estandares!H107>1,\"SI\",\"\")","v":""},{"$f":"(O101*B101)/Estandares!K14","v":{"$error":"#DIV/0!"}}]
[{"$f":"IF(Estandares!D97=\"x\",Estandares!B97,\"BORRAR FILA\")","v":"BORRAR FILA"},{"$f":"Estandares!G97","v":{"$error":"#DIV/0!"}},"Instrumento 1",null,null,"Instrumento 2",null,null,"Instrumento 3",null,null,"Instrumento 4",null,null,0,{"$f":"IF(Q102=\"SI\",(O102*B102)/Estandares!K14/Estandares!H108,(O102*B102)/Estandares!K14)","v":{"$error":"#DIV/0!"}},{"$f":"IF(Estandares!H108>1,\"SI\",\"\")","v":""},{"$f":"(O102*B102)/Estandares!K14","v":{"$error":"#DIV/0!"}}]
[{"$f":"IF(Estandares!D98=\"x\",Estandares!B98,\"BORRAR FILA\")","v":"BORRAR FILA"},{"$f":"Estandares!G98","v":{"$error":"#DIV/0!"}},"Instrumento 1",null,null,"Instrumento 2",null,null,"Instrumento 3",null,null,"Instrumento 4",null,null,0,{"$f":"IF(Q103=\"SI\",(O103*B103)/Estandares!K14/Estandares!H109,(O103*B103)/Estandares!K14)","v":{"$error":"#DIV/0!"}},{"$f":"IF(Estandares!H109>1,\"SI\",\"\")","v":""},{"$f":"(O103*B103)/Estandares!K14","v":{"$error":"#DIV/0!"}}]
[{"$f":"IF(Estandares!D99=\"x\",Estandares!B99,\"BORRAR FILA\")","v":"BORRAR FILA"},{"$f":"Estandares!G99","v":{"$error":"#DIV/0!"}},"Instrumento 1",null,null,"Instrumento 2",null,null,"Instrumento 3",null,null,"Instrumento 4",null,null,0,{"$f":"IF(Q104=\"SI\",(O104*B104)/Estandares!K14/Estandares!H110,(O104*B104)/Estandares!K14)","v":{"$error":"#DIV/0!"}},{"$f":"IF(Estandares!H110>1,\"SI\",\"\")","v":""},{"$f":"(O104*B104)/Estandares!K14","v":{"$error":"#DIV/0!"}}]
[{"$f":"IF(Estandares!D100=\"x\",Estandares!B100,\"BORRAR FILA\")","v":"BORRAR FILA"},{"$f":"Estandares!G100","v":{"$error":"#DIV/0!"}},"Instrumento 1",null,null,"Instrumento 2",null,null,"Instrumento 3",null,null,"Instrumento 4",null,null,0,{"$f":"IF(Q105=\"SI\",(O105*B105)/Estandares!K14/Estandares!H111,(O105*B105)/Estandares!K14)","v":{"$error":"#DIV/0!"}},{"$f":"IF(Estandares!H111>1,\"SI\",\"\")","v":""},{"$f":"(O105*B105)/Estandares!K14","v":{"$error":"#DIV/0!"}}]
[{"$f":"IF(Estandares!D101=\"x\",Estandares!B101,\"BORRAR FILA\")","v":"BORRAR FILA"},{"$f":"Estandares!G101","v":{"$error":"#DIV/0!"}},"Instrumento 1",null,null,"Instrumento 2",null,null,"Instrumento 3",null,null,"Instrumento 4",null,null,0,{"$f":"IF(Q106=\"SI\",(O106*B106)/Estandares!K14/Estandares!H112,(O106*B106)/Estandares!K14)","v":{"$error":"#DIV/0!"}},{"$f":"IF(Estandares!H112>1,\"SI\",\"\")","v":""},{"$f":"(O106*B106)/Estandares!K14","v":{"$error":"#DIV/0!"}}]
[{"$f":"IF(Estandares!D102=\"x\",Estandares!B102,\"BORRAR FILA\")","v":"BORRAR FILA"},{"$f":"Estandares!G102","v":{"$error":"#DIV/0!"}},"Instrumento 1",null,null,"Instrumento 2",null,null,"Instrumento 3",null,null,"Instrumento 4",null,null,0,{"$f":"IF(Q107=\"SI\",(O107*B107)/Estandares!K14/Estandares!H113,(O107*B107)/Estandares!K14)","v":{"$error":"#DIV/0!"}},{"$f":"IF(Estandares!H113>1,\"SI\",\"\")","v":""},{"$f":"(O107*B107)/Estandares!K14","v":{"$error":"#DIV/0!"}}]
[{"$f":"IF(Estandares!D103=\"x\",Estandares!B103,\"BORRAR FILA\")","v":"BORRAR FILA"},{"$f":"Estandares!G103","v":{"$error":"#DIV/0!"}},"Instrumento 1",null,null,"Instrumento 2",null,null,"Instrumento 3",null,null,"Instrumento 4",null,null,0,{"$f":"IF(Q108=\"SI\",(O108*B108)/Estandares!K14/Estandares!H114,(O108*B108)/Estandares!K14)","v":{"$error":"#DIV/0!"}},{"$f":"IF(Estandares!H114>1,\"SI\",\"\")","v":""},{"$f":"(O108*B108)/Estandares!K14","v":{"$error":"#DIV/0!"}}]
[{"$f":"IF(Estandares!D104=\"x\",Estandares!B104,\"BORRAR FILA\")","v":"BORRAR FILA"},{"$f":"Estandares!G104","v":{"$error":"#DIV/0!"}},"Instrumento 1",null,null,"Instrumento 2",null,null,"Instrumento 3",null,null,"Instrumento 4",null,null,0,{"$f":"IF(Q109=\"SI\",(O109*B109)/Estandares!K14/Estandares!H115,(O109*B109)/Estandares!K14)","v":{"$error":"#DIV/0!"}},{"$f":"IF(Estandares!H115>1,\"SI\",\"\")","v":""},{"$f":"(O109*B109)/Estandares!K14","v":{"$error":"#DIV/0!"}}]
[{"$f":"IF(Estandares!D105=\"x\",Estandares!B105,\"BORRAR FILA\")","v":"BORRAR FILA"},{"$f":"Estandares!G105","v":{"$error":"#DIV/0!"}},"Instrumento 1",null,null,"Instrumento 2",null,null,"Instrumento 3",null,null,"Instrumento 4",null,null,0,{"$f":"IF(Q110=\"SI\",(O110*B110)/Estandares!K14/Estandares!H116,(O110*B110)/Estandares!K14)","v":{"$error":"#DIV/0!"}},{"$f":"IF(Estandares!H116>1,\"SI\",\"\")","v":""},{"$f":"(O110*B110)/Estandares!K14","v":{"$error":"#DIV/0!"}}]
[{"$f":"IF(Estandares!D106=\"x\",Estandares!B106,\"BORRAR FILA\")","v":"BORRAR FILA"},{"$f":"Estandares!G106","v":{"$error":"#DIV/0!"}},"Instrumento 1",null,null,"Instrumento 2",null,null,"Instrumento 3",null,null,"Instrumento 4",null,null,0,{"$f":"IF(Q111=\"SI\",(O111*B111)/Estandares!K14/Estandares!H117,(O111*B111)/Estandares!K14)","v":{"$error":"#DIV/0!"}},{"$f":"IF(Estandares!H117>1,\"SI\",\"\")","v":""},{"$f":"(O111*B111)/Estandares!K14","v":{"$error":"#DIV/0!"}}]
[{"$f":"IF(Estandares!D107=\"x\",Estandares!B107,\"BORRAR FILA\")","v":"BORRAR FILA"},{"$f":"Estandares!G107","v":{"$error":"#DIV/0!"}},"Instrumento 1",null,null,"Instrumento 2",null,null,"Instrumento 3",null,null,"Instrumento 4",null,null,0,{"$f":"IF(Q112=\"SI\",(O112*B112)/Estandares!K14/Estandares!H118,(O112*B112)/Estandares!K14)","v":{"$error":"#DIV/0!"}},{"$f":"IF(Estandares!H118>1,\"SI\",\"\")","v":""},{"$f":"(O112*B112)/Estandares!K14","v":{"$error":"#DIV/0!"}}]
[{"$f":"IF(Estandares!D108=\"x\",Estandares!B108,\"BORRAR FILA\")","v":"BORRAR FILA"},{"$f":"Estandares!G108","v":{"$error":"#DIV/0!"}},"Instrumento 1",null,null,"Instrumento 2",null,null,"Instrumento 3",null,null,"Instrumento 4",null,null,0,{"$f":"IF(Q113=\"SI\",(O113*B113)/Estandares!K14/Estandares!H119,(O113*B113)/Estandares!K14)","v":{"$error":"#DIV/0!"}},{"$f":"IF(Estandares!H119>1,\"SI\",\"\")","v":""},{"$f":"(O113*B113)/Estandares!K14","v":{"$error":"#DIV/0!"}}]
[{"$f":"IF(Estandares!D109=\"x\",Estandares!B109,\"BORRAR FILA\")","v":"BORRAR FILA"},{"$f":"Estandares!G109","v":{"$error":"#DIV/0!"}},"Instrumento 1",null,null,"Instrumento 2",null,null,"Instrumento 3",null,null,"Instrumento 4",null,null,0,{"$f":"IF(Q114=\"SI\",(O114*B114)/Estandares!K14/Estandares!H120,(O114*B114)/Estandares!K14)","v":{"$error":"#DIV/0!"}},{"$f":"IF(Estandares!H120>1,\"SI\",\"\")","v":""},{"$f":"(O114*B114)/Estandares!K14","v":{"$error":"#DIV/0!"}}]
[{"$f":"IF(Estandares!D110=\"x\",Estandares!B110,\"BORRAR FILA\")","v":"BORRAR FILA"},{"$f":"Estandares!G110","v":{"$error":"#DIV/0!"}},"Instrumento 1",null,null,"Instrumento 2",null,null,"Instrumento 3",null,null,"Instrumento 4",null,null,0,{"$f":"IF(Q115=\"SI\",(O115*B115)/Estandares!K14/Estandares!H121,(O115*B115)/Estandares!K14)","v":{"$error":"#DIV/0!"}},{"$f":"IF(Estandares!H121>1,\"SI\",\"\")","v":""},{"$f":"(O115*B115)/Estandares!K14","v":{"$error":"#DIV/0!"}}]
[{"$f":"IF(Estandares!D111=\"x\",Estandares!B111,\"BORRAR FILA\")","v":"BORRAR FILA"},{"$f":"Estandares!G111","v":{"$error":"#DIV/0!"}},"Instrumento 1",null,null,"Instrumento 2",null,null,"Instrumento 3",null,null,"Instrumento 4",null,null,0,{"$f":"IF(Q116=\"SI\",(O116*B116)/Estandares!K14/Estandares!H122,(O116*B116)/Estandares!K14)","v":{"$error":"#DIV/0!"}},{"$f":"IF(Estandares!H122>1,\"SI\",\"\")","v":""},{"$f":"(O116*B116)/Estandares!K14","v":{"$error":"#DIV/0!"}}]
["TOTAL",{"$f":"SUM(B7:B116)","v":{"$error":"#DIV/0!"}},null,null,{"$f":"SUM(E7:E116)/C120","v":0},null,null,null,null,null,null,null,null,null,{"$f":"SUM(O7:O116)/C120","v":0},{"$f":"SUM(P7:P116)","v":{"$error":"#DIV/0!"}},null,{"$f":"SUM(R7:R116)","v":{"$error":"#DIV/0!"}}]
[]
[]
[null,"contador estandar",{"$f":"COUNTA(A7:A116)","v":110}]
[null,"escala",{"$f":"Estandares!K14","v":5}]
[]
[null,null,null,null,null,null,null,null,null,null,null,null,null,null,null,"Sobre 10"]
[null,null,null,null,null,null,null,null,null,"NOTA EVALUACIÓN ACUMULADA",null,null,null,null,{"$f":"Estandares!S19","v":{"$error":"#DIV/0!"}},{"$f":"IF(C121=5,(O124*10)/5)","v":{"$error":"#DIV/0!"}}]
[]
[null,null,null,null,null,null,null,null,"PROFESOR:",{"$f":"Estandares!J5","v":0},null,null,null,{"$f":"Estandares!J7","v":0},null,{"$f":"CONCATENATE(Estandares!J9,Estandares!L9)","v":""}]
[]
[null,null,null,null,null,null,null,null,"Alumno:",{"$f":"Estandares!J11","v":0}]
[null,null,null,null,null,null,null,null,null,null,null,null,null,null,null,"Sobre 10"]
[null,null,null,null,null,null,null,null,"NOTA 2º EVALUACIÓN",null,null,null,null,null,{"$f":"(R117*C121)/B117","v":{"$error":"#DIV/0!"}},{"$f":"IF(C121=5,(O130*10)/5)","v":{"$error":"#DIV/0!"}}]

{"sheet":"3ºEVALUACION","index":3,"n_rows":130,"n_cols":18,"rows_kept":130,"cut":false,"hidden":false,"merged":[[2,2,2,13],[4,8,4,10],[4,11,4,13],[131,8,132,8],[125,15,127,15],[127,9,127,12],[123,9,123,13],[125,8,126,8],[125,9,126,12],[125,13,127,14],[4,2,4,4],[4,5,4,7],[129,8,129,13]]}
[]
[]
[null,null,"EVALUACIÓN"]
[]
[null,null,"INSTRUMENTO 1",null,null,"INSTRUMENTO 2",null,null,"INSTRUMENTO 3",null,null,"INSTRUMENTO 4",null,null,"Calificación","Valor Global","Estandar","Valor Global"]
["Estandar","Coeficiente","Instrumento 1","%","Nota","Instrumento 2","%","Nota","Instrumento 3","%","Nota","Instrumento 4","%","Nota",null,"Estandar","Repetido",1]
[{"$f":"IF(Estandares!E2=\"x\",Estandares!B2,\"BORRAR FILA\")","v":"BORRAR FILA"},{"$f":"Estandares!G2","v":{"$error":"#DIV/0!"}},"Instrumento 1",null,null,"Instrumento 2",null,null,"Instrumento 3",null,null,"Instrumento 4",null,null,{"$f":"(D7*E7)+(G7*H7)+(J7*K7)+(M7*N7)","v":0},{"$f":"IF(Q7=\"SI\",(O7*B7)/Estandares!K14/Estandares!H2,(O7*B7)/Estandares!K14)","v":{"$error":"#DIV/0!"}},{"$f":"IF(Estandares!H2>1,\"SI\",\"\")","v":""},{"$f":"(O7*B7)/Estandares!K14","v":{"$error":"#DIV/0!"}}]
[{"$f":"IF(Estandares!E3=\"x\",Estandares!B3,\"BORRAR FILA\")","v":"BORRAR FILA"},{"$f":"Estandares!G3","v":{"$error":"#DIV/0!"}},"Instrumento 1",null,null,"Instrumento 2",null,null,"Instrumento 3",null,null,"Instrumento 4",null,null,{"$f":"(D8*E8)+(G8*H8)+(J8*K8)+(M8*N8)","v":0},{"$f":"IF(Q8=\"SI\",(O8*B8)/Estandares!K14/Estandares!H3,(O8*B8)/Estandares!K14)","v":{"$error":"#DIV/0!"}},{"$f":"IF(Estandares!H3>1,\"SI\",\"\")","v":""},{"$f":"(O8*B8)/Estandares!K14","v":{"$error":"#DIV/0!"}}]
[{"$f":"IF(Estandares!E4=\"x\",Estandares!B4,\"BORRAR FILA\")","v":"BORRAR FILA"},{"$f":"Estandares!G4","v":{"$error":"#DIV/0!"}},"Instrumento 1",null,null,"Instrumento 2",null,null,"Instrumento 3",null,null,"Instrumento 4",null,null,0,{"$f":"IF(Q9=\"SI\",(O9*B9)/Estandares!K14/Estandares!H4,(O9*B9)/Estandares!K14)","v":{"$error":"#DIV/0!"}},{"$f":"IF(Estandares!H4>1,\"SI\",\"\")","v":""},{"$f":"(O9*B9)/Estandares!K14","v":{"$error":"#DIV/0!"}}]
[{"$f":"IF(Estandares!E5=\"x\",Estandares!B5,\"BORRAR FILA\")","v":"BORRAR FILA"},{"$f":"Estandares!G5","v":{"$error":"#DIV/0!"}},"Instrumento 1",null,null,"Instrumento 2",null,null,"Instrumento 3",null,null,"Instrumento 4",null,null,0,{"$f":"IF(Q10=\"SI\",(O10*B10)/Estandares!K14/Estandares!H5,(O10*B10)/Estandares!K14)","v":{"$error":"#DIV/0!"}},{"$f":"IF(Estandares!H5>1,\"SI\",\"\")","v":""},{"$f":"(O10*B10)/Estandares!K14","v":{"$error":"#DIV/0!"}}]
[{"$f":"IF(Estandares!E6=\"x\",Estandares!B6,\"BORRAR FILA\")","v":"BORRAR FILA"},{"$f":"Estandares!G6","v":{"$error":"#DIV/0!"}},"Instrumento 1",null,null,"Instrumento 2",null,null,"Instrumento 3",null,null,"Instrumento 4",null,null,0,{"$f":"IF(Q11=\"SI\",(O11*B11)/Estandares!K14/Estandares!H6,(O11*B11)/Estandares!K14)","v":{"$error":"#DIV/0!"}},{"$f":"IF(Estandares!H6>1,\"SI\",\"\")","v":""},{"$f":"(O11*B11)/Estandares!K14","v":{"$error":"#DIV/0!"}}]
[{"$f":"IF(Estandares!E7=\"x\",Estandares!B7,\"BORRAR FILA\")","v":"BORRAR FILA"},{"$f":"Estandares!G7","v":{"$error":"#DIV/0!"}},"Instrumento 1",null,null,"Instrumento 2",null,null,"Instrumento 3",null,null,"Instrumento 4",null,null,0,{"$f":"IF(Q12=\"SI\",(O12*B12)/Estandares!K14/Estandares!H7,(O12*B12)/Estandares!K14)","v":{"$error":"#DIV/0!"}},{"$f":"IF(Estandares!H7>1,\"SI\",\"\")","v":""},{"$f":"(O12*B12)/Estandares!K14","v":{"$error":"#DIV/0!"}}]
[{"$f":"IF(Estandares!E8=\"x\",Estandares!B8,\"BORRAR FILA\")","v":"BORRAR FILA"},{"$f":"Estandares!G8","v":{"$error":"#DIV/0!"}},"Instrumento 1",null,null,"Instrumento 2",null,null,"Instrumento 3",null,null,"Instrumento 4",null,null,0,{"$f":"IF(Q13=\"SI\",(O13*B13)/Estandares!K14/Estandares!H8,(O13*B13)/Estandares!K14)","v":{"$error":"#DIV/0!"}},{"$f":"IF(Estandares!H8>1,\"SI\",\"\")","v":""},{"$f":"(O13*B13)/Estandares!K14","v":{"$error":"#DIV/0!"}}]
[{"$f":"IF(Estandares!E9=\"x\",Estandares!B9,\"BORRAR FILA\")","v":"BORRAR FILA"},{"$f":"Estandares!G9","v":{"$error":"#DIV/0!"}},"Instrumento 1",null,null,"Instrumento 2",null,null,"Instrumento 3",null,null,"Instrumento 4",null,null,0,{"$f":"IF(Q14=\"SI\",(O14*B14)/Estandares!K14/Estandares!H10,(O14*B14)/Estandares!K14)","v":{"$error":"#DIV/0!"}},{"$f":"IF(Estandares!H10>1,\"SI\",\"\")","v":""},{"$f":"(O14*B14)/Estandares!K14","v":{"$error":"#DIV/0!"}}]
[{"$f":"IF(Estandares!E10=\"x\",Estandares!B10,\"BORRAR FILA\")","v":"BORRAR FILA"},{"$f":"Estandares!G10","v":{"$error":"#DIV/0!"}},"Instrumento 1",null,null,"Instrumento 2",null,null,"Instrumento 3",null,null,"Instrumento 4",null,null,0,{"$f":"IF(Q15=\"SI\",(O15*B15)/Estandares!K14/Estandares!H11,(O15*B15)/Estandares!K14)","v":{"$error":"#DIV/0!"}},{"$f":"IF(Estandares!H11>1,\"SI\",\"\")","v":""},{"$f":"(O15*B15)/Estandares!K14","v":{"$error":"#DIV/0!"}}]
[{"$f":"IF(Estandares!E11=\"x\",Estandares!B11,\"BORRAR FILA\")","v":"BORRAR FILA"},{"$f":"Estandares!G11","v":{"$error":"#DIV/0!"}},"Instrumento 1",null,null,"Instrumento 2",null,null,"Instrumento 3",null,null,"Instrumento 4",null,null,0,{"$f":"IF(Q16=\"SI\",(O16*B16)/Estandares!K14/Estandares!H12,(O16*B16)/Estandares!K14)","v":{"$error":"#DIV/0!"}},{"$f":"IF(Estandares!H12>1,\"SI\",\"\")","v":""},{"$f":"(O16*B16)/Estandares!K14","v":{"$error":"#DIV/0!"}}]
[{"$f":"IF(Estandares!E12=\"x\",Estandares!B12,\"BORRAR FILA\")","v":"BORRAR FILA"},{"$f":"Estandares!G12","v":{"$error":"#DIV/0!"}},"Instrumento 1",null,null,"Instrumento 2",null,null,"Instrumento 3",null,null,"Instrumento 4",null,null,0,{"$f":"IF(Q17=\"SI\",(O17*B17)/Estandares!K14/Estandares!H13,(O17*B17)/Estandares!K14)","v":{"$error":"#DIV/0!"}},{"$f":"IF(Estandares!H13>1,\"SI\",\"\")","v":""},{"$f":"(O17*B17)/Estandares!K14","v":{"$error":"#DIV/0!"}}]
[{"$f":"IF(Estandares!E13=\"x\",Estandares!B13,\"BORRAR FILA\")","v":"BORRAR FILA"},{"$f":"Estandares!G13","v":{"$error":"#DIV/0!"}},"Instrumento 1",null,null,"Instrumento 2",null,null,"Instrumento 3",null,null,"Instrumento 4",null,null,0,{"$f":"IF(Q18=\"SI\",(O18*B18)/Estandares!K14/Estandares!H20,(O18*B18)/Estandares!K14)","v":{"$error":"#DIV/0!"}},{"$f":"IF(Estandares!H20>1,\"SI\",\"\")","v":""},{"$f":"(O18*B18)/Estandares!K14","v":{"$error":"#DIV/0!"}}]
[{"$f":"IF(Estandares!E14=\"x\",Estandares!B14,\"BORRAR FILA\")","v":"BORRAR FILA"},{"$f":"Estandares!G14","v":{"$error":"#DIV/0!"}},"Instrumento 1",null,null,"Instrumento 2",null,null,"Instrumento 3",null,null,"Instrumento 4",null,null,0,{"$f":"IF(Q19=\"SI\",(O19*B19)/Estandares!K14/Estandares!H21,(O19*B19)/Estandares!K14)","v":{"$error":"#DIV/0!"}},{"$f":"IF(Estandares!H21>1,\"SI\",\"\")","v":""},{"$f":"(O19*B19)/Estandares!K14","v":{"$error":"#DIV/0!"}}]
[{"$f":"IF(Estandares!E15=\"x\",Estandares!B15,\"BORRAR FILA\")","v":"BORRAR FILA"},{"$f":"Estandares!G15","v":{"$error":"#DIV/0!"}},"Instrumento 1",null,null,"Instrumento 2",null,null,"Instrumento 3",null,null,"Instrumento 4",null,null,0,{"$f":"IF(Q20=\"SI\",(O20*B20)/Estandares!K14/Estandares!H22,(O20*B20)/Estandares!K14)","v":{"$error":"#DIV/0!"}},{"$f":"IF(Estandares!H22>1,\"SI\",\"\")","v":""},{"$f":"(O20*B20)/Estandares!K14","v":{"$error":"#DIV/0!"}}]
[{"$f":"IF(Estandares!E16=\"x\",Estandares!B16,\"BORRAR FILA\")","v":"BORRAR FILA"},{"$f":"Estandares!G16","v":{"$error":"#DIV/0!"}},"Instrumento 1",null,null,"Instrumento 2",null,null,"Instrumento 3",null,null,"Instrumento 4",null,null,0,{"$f":"IF(Q21=\"SI\",(O21*B21)/Estandares!K14/Estandares!H23,(O21*B21)/Estandares!K14)","v":{"$error":"#DIV/0!"}},{"$f":"IF(Estandares!H23>1,\"SI\",\"\")","v":""},{"$f":"(O21*B21)/Estandares!K14","v":{"$error":"#DIV/0!"}}]
[{"$f":"IF(Estandares!E17=\"x\",Estandares!B17,\"BORRAR FILA\")","v":"BORRAR FILA"},{"$f":"Estandares!G17","v":{"$error":"#DIV/0!"}},"Instrumento 1",null,null,"Instrumento 2",null,null,"Instrumento 3",null,null,"Instrumento 4",null,null,0,{"$f":"IF(Q22=\"SI\",(O22*B22)/Estandares!K14/Estandares!H28,(O22*B22)/Estandares!K14)","v":{"$error":"#DIV/0!"}},{"$f":"IF(Estandares!H28>1,\"SI\",\"\")","v":""},{"$f":"(O22*B22)/Estandares!K14","v":{"$error":"#DIV/0!"}}]
[{"$f":"IF(Estandares!E18=\"x\",Estandares!B18,\"BORRAR FILA\")","v":"BORRAR FILA"},{"$f":"Estandares!G18","v":{"$error":"#DIV/0!"}},"Instrumento 1",null,null,"Instrumento 2",null,null,"Instrumento 3",null,null,"Instrumento 4",null,null,0,{"$f":"IF(Q23=\"SI\",(O23*B23)/Estandares!K14/Estandares!H29,(O23*B23)/Estandares!K14)","v":{"$error":"#DIV/0!"}},{"$f":"IF(Estandares!H29>1,\"SI\",\"\")","v":""},{"$f":"(O23*B23)/Estandares!K14","v":{"$error":"#DIV/0!"}}]
[{"$f":"IF(Estandares!E19=\"x\",Estandares!B19,\"BORRAR FILA\")","v":"BORRAR FILA"},{"$f":"Estandares!G19","v":{"$error":"#DIV/0!"}},"Instrumento 1",null,null,"Instrumento 2",null,null,"Instrumento 3",null,null,"Instrumento 4",null,null,0,{"$f":"IF(Q24=\"SI\",(O24*B24)/Estandares!K14/Estandares!H30,(O24*B24)/Estandares!K14)","v":{"$error":"#DIV/0!"}},{"$f":"IF(Estandares!H30>1,\"SI\",\"\")","v":""},{"$f":"(O24*B24)/Estandares!K14","v":{"$error":"#DIV/0!"}}]
[{"$f":"IF(Estandares!E20=\"x\",Estandares!B20,\"BORRAR FILA\")","v":"BORRAR FILA"},{"$f":"Estandares!G20","v":{"$error":"#DIV/0!"}},"Instrumento 1",null,null,"Instrumento 2",null,null,"Instrumento 3",null,null,"Instrumento 4",null,null,0,{"$f":"IF(Q25=\"SI\",(O25*B25)/Estandares!K14/Estandares!H31,(O25*B25)/Estandares!K14)","v":{"$error":"#DIV/0!"}},{"$f":"IF(Estandares!H31>1,\"SI\",\"\")","v":""},{"$f":"(O25*B25)/Estandares!K14","v":{"$error":"#DIV/0!"}}]
[{"$f":"IF(Estandares!E21=\"x\",Estandares!B21,\"BORRAR FILA\")","v":"BORRAR FILA"},{"$f":"Estandares!G21","v":{"$error":"#DIV/0!"}},"Instrumento 1",null,null,"Instrumento 2",null,null,"Instrumento 3",null,null,"Instrumento 4",null,null,0,{"$f":"IF(Q26=\"SI\",(O26*B26)/Estandares!K14/Estandares!H32,(O26*B26)/Estandares!K14)","v":{"$error":"#DIV/0!"}},{"$f":"IF(Estandares!H32>1,\"SI\",\"\")","v":""},{"$f":"(O26*B26)/Estandares!K14","v":{"$error":"#DIV/0!"}}]
[{"$f":"IF(Estandares!E22=\"x\",Estandares!B22,\"BORRAR FILA\")","v":"BORRAR FILA"},{"$f":"Estandares!G22","v":{"$error":"#DIV/0!"}},"Instrumento 1",null,null,"Instrumento 2",null,null,"Instrumento 3",null,null,"Instrumento 4",null,null,0,{"$f":"IF(Q27=\"SI\",(O27*B27)/Estandares!K14/Estandares!H33,(O27*B27)/Estandares!K14)","v":{"$error":"#DIV/0!"}},{"$f":"IF(Estandares!H33>1,\"SI\",\"\")","v":""},{"$f":"(O27*B27)/Estandares!K14","v":{"$error":"#DIV/0!"}}]
[{"$f":"IF(Estandares!E23=\"x\",Estandares!B23,\"BORRAR FILA\")","v":"BORRAR FILA"},{"$f":"Estandares!G23","v":{"$error":"#DIV/0!"}},"Instrumento 1",null,null,"Instrumento 2",null,null,"Instrumento 3",null,null,"Instrumento 4",null,null,0,{"$f":"IF(Q28=\"SI\",(O28*B28)/Estandares!K14/Estandares!H34,(O28*B28)/Estandares!K14)","v":{"$error":"#DIV/0!"}},{"$f":"IF(Estandares!H34>1,\"SI\",\"\")","v":""},{"$f":"(O28*B28)/Estandares!K14","v":{"$error":"#DIV/0!"}}]
[{"$f":"IF(Estandares!E24=\"x\",Estandares!B24,\"BORRAR FILA\")","v":"BORRAR FILA"},{"$f":"Estandares!G24","v":{"$error":"#DIV/0!"}},"Instrumento 1",null,null,"Instrumento 2",null,null,"Instrumento 3",null,null,"Instrumento 4",null,null,0,{"$f":"IF(Q29=\"SI\",(O29*B29)/Estandares!K14/Estandares!H35,(O29*B29)/Estandares!K14)","v":{"$error":"#DIV/0!"}},{"$f":"IF(Estandares!H35>1,\"SI\",\"\")","v":""},{"$f":"(O29*B29)/Estandares!K14","v":{"$error":"#DIV/0!"}}]
[{"$f":"IF(Estandares!E25=\"x\",Estandares!B25,\"BORRAR FILA\")","v":"BORRAR FILA"},{"$f":"Estandares!G25","v":{"$error":"#DIV/0!"}},"Instrumento 1",null,null,"Instrumento 2",null,null,"Instrumento 3",null,null,"Instrumento 4",null,null,0,{"$f":"IF(Q30=\"SI\",(O30*B30)/Estandares!K14/Estandares!H36,(O30*B30)/Estandares!K14)","v":{"$error":"#DIV/0!"}},{"$f":"IF(Estandares!H36>1,\"SI\",\"\")","v":""},{"$f":"(O30*B30)/Estandares!K14","v":{"$error":"#DIV/0!"}}]
[{"$f":"IF(Estandares!E26=\"x\",Estandares!B26,\"BORRAR FILA\")","v":"BORRAR FILA"},{"$f":"Estandares!G26","v":{"$error":"#DIV/0!"}},"Instrumento 1",null,null,"Instrumento 2",null,null,"Instrumento 3",null,null,"Instrumento 4",null,null,0,{"$f":"IF(Q31=\"SI\",(O31*B31)/Estandares!K14/Estandares!H37,(O31*B31)/Estandares!K14)","v":{"$error":"#DIV/0!"}},{"$f":"IF(Estandares!H37>1,\"SI\",\"\")","v":""},{"$f":"(O31*B31)/Estandares!K14","v":{"$error":"#DIV/0!"}}]
[{"$f":"IF(Estandares!E27=\"x\",Estandares!B27,\"BORRAR FILA\")","v":"BORRAR FILA"},{"$f":"Estandares!G27","v":{"$error":"#DIV/0!"}},"Instrumento 1",null,null,"Instrumento 2",null,null,"Instrumento 3",null,null,"Instrumento 4",null,null,0,{"$f":"IF(Q32=\"SI\",(O32*B32)/Estandares!K14/Estandares!H38,(O32*B32)/Estandares!K14)","v":{"$error":"#DIV/0!"}},{"$f":"IF(Estandares!H38>1,\"SI\",\"\")","v":""},{"$f":"(O32*B32)/Estandares!K14","v":{"$error":"#DIV/0!"}}]
[{"$f":"IF(Estandares!E28=\"x\",Estandares!B28,\"BORRAR FILA\")","v":"BORRAR FILA"},{"$f":"Estandares!G28","v":{"$error":"#DIV/0!"}},"Instrumento 1",null,null,"Instrumento 2",null,null,"Instrumento 3",null,null,"Instrumento 4",null,null,0,{"$f":"IF(Q33=\"SI\",(O33*B33)/Estandares!K14/Estandares!H39,(O33*B33)/Estandares!K14)","v":{"$error":"#DIV/0!"}},{"$f":"IF(Estandares!H39>1,\"SI\",\"\")","v":""},{"$f":"(O33*B33)/Estandares!K14","v":{"$error":"#DIV/0!"}}]
[{"$f":"IF(Estandares!E29=\"x\",Estandares!B29,\"BORRAR FILA\")","v":"BORRAR FILA"},{"$f":"Estandares!G29","v":{"$error":"#DIV/0!"}},"Instrumento 1",null,null,"Instrumento 2",null,null,"Instrumento 3",null,null,"Instrumento 4",null,null,0,{"$f":"IF(Q34=\"SI\",(O34*B34)/Estandares!K14/Estandares!H40,(O34*B34)/Estandares!K14)","v":{"$error":"#DIV/0!"}},{"$f":"IF(Estandares!H40>1,\"SI\",\"\")","v":""},{"$f":"(O34*B34)/Estandares!K14","v":{"$error":"#DIV/0!"}}]
[{"$f":"IF(Estandares!E30=\"x\",Estandares!B30,\"BORRAR FILA\")","v":"BORRAR FILA"},{"$f":"Estandares!G30","v":{"$error":"#DIV/0!"}},"Instrumento 1",null,null,"Instrumento 2",null,null,"Instrumento 3",null,null,"Instrumento 4",null,null,0,{"$f":"IF(Q35=\"SI\",(O35*B35)/Estandares!K14/Estandares!H41,(O35*B35)/Estandares!K14)","v":{"$error":"#DIV/0!"}},{"$f":"IF(Estandares!H41>1,\"SI\",\"\")","v":""},{"$f":"(O35*B35)/Estandares!K14","v":{"$error":"#DIV/0!"}}]
[{"$f":"IF(Estandares!E31=\"x\",Estandares!B31,\"BORRAR FILA\")","v":"BORRAR FILA"},{"$f":"Estandares!G31","v":{"$error":"#DIV/0!"}},"Instrumento 1",null,null,"Instrumento 2",null,null,"Instrumento 3",null,null,"Instrumento 4",null,null,0,{"$f":"IF(Q36=\"SI\",(O36*B36)/Estandares!K14/Estandares!H42,(O36*B36)/Estandares!K14)","v":{"$error":"#DIV/0!"}},{"$f":"IF(Estandares!H42>1,\"SI\",\"\")","v":""},{"$f":"(O36*B36)/Estandares!K14","v":{"$error":"#DIV/0!"}}]
[{"$f":"IF(Estandares!E32=\"x\",Estandares!B32,\"BORRAR FILA\")","v":"BORRAR FILA"},{"$f":"Estandares!G32","v":{"$error":"#DIV/0!"}},"Instrumento 1",null,null,"Instrumento 2",null,null,"Instrumento 3",null,null,"Instrumento 4",null,null,0,{"$f":"IF(Q37=\"SI\",(O37*B37)/Estandares!K14/Estandares!H43,(O37*B37)/Estandares!K14)","v":{"$error":"#DIV/0!"}},{"$f":"IF(Estandares!H43>1,\"SI\",\"\")","v":""},{"$f":"(O37*B37)/Estandares!K14","v":{"$error":"#DIV/0!"}}]
[{"$f":"IF(Estandares!E33=\"x\",Estandares!B33,\"BORRAR FILA\")","v":"BORRAR FILA"},{"$f":"Estandares!G33","v":{"$error":"#DIV/0!"}},"Instrumento 1",null,null,"Instrumento 2",null,null,"Instrumento 3",null,null,"Instrumento 4",null,null,0,{"$f":"IF(Q38=\"SI\",(O38*B38)/Estandares!K14/Estandares!H44,(O38*B38)/Estandares!K14)","v":{"$error":"#DIV/0!"}},{"$f":"IF(Estandares!H44>1,\"SI\",\"\")","v":""},{"$f":"(O38*B38)/Estandares!K14","v":{"$error":"#DIV/0!"}}]
[{"$f":"IF(Estandares!E34=\"x\",Estandares!B34,\"BORRAR FILA\")","v":"BORRAR FILA"},{"$f":"Estandares!G34","v":{"$error":"#DIV/0!"}},"Instrumento 1",null,null,"Instrumento 2",null,null,"Instrumento 3",null,null,"Instrumento 4",null,null,0,{"$f":"IF(Q39=\"SI\",(O39*B39)/Estandares!K14/Estandares!H45,(O39*B39)/Estandares!K14)","v":{"$error":"#DIV/0!"}},{"$f":"IF(Estandares!H45>1,\"SI\",\"\")","v":""},{"$f":"(O39*B39)/Estandares!K14","v":{"$error":"#DIV/0!"}}]
[{"$f":"IF(Estandares!E35=\"x\",Estandares!B35,\"BORRAR FILA\")","v":"BORRAR FILA"},{"$f":"Estandares!G35","v":{"$error":"#DIV/0!"}},"Instrumento 1",null,null,"Instrumento 2",null,null,"Instrumento 3",null,null,"Instrumento 4",null,null,0,{"$f":"IF(Q40=\"SI\",(O40*B40)/Estandares!K14/Estandares!H46,(O40*B40)/Estandares!K14)","v":{"$error":"#DIV/0!"}},{"$f":"IF(Estandares!H46>1,\"SI\",\"\")","v":""},{"$f":"(O40*B40)/Estandares!K14","v":{"$error":"#DIV/0!"}}]
[{"$f":"IF(Estandares!E36=\"x\",Estandares!B36,\"BORRAR FILA\")","v":"BORRAR FILA"},{"$f":"Estandares!G36","v":{"$error":"#DIV/0!"}},"Instrumento 1",null,null,"Instrumento 2",null,null,"Instrumento 3",null,null,"Instrumento 4",null,null,0,{"$f":"IF(Q41=\"SI\",(O41*B41)/Estandares!K14/Estandares!H47,(O41*B41)/Estandares!K14)","v":{"$error":"#DIV/0!"}},{"$f":"IF(Estandares!H47>1,\"SI\",\"\")","v":""},{"$f":"(O41*B41)/Estandares!K14","v":{"$error":"#DIV/0!"}}]
[{"$f":"IF(Estandares!E37=\"x\",Estandares!B37,\"BORRAR FILA\")","v":"BORRAR FILA"},{"$f":"Estandares!G37","v":{"$error":"#DIV/0!"}},"Instrumento 1",null,null,"Instrumento 2",null,null,"Instrumento 3",null,null,"Instrumento 4",null,null,0,{"$f":"IF(Q42=\"SI\",(O42*B42)/Estandares!K14/Estandares!H48,(O42*B42)/Estandares!K14)","v":{"$error":"#DIV/0!"}},{"$f":"IF(Estandares!H48>1,\"SI\",\"\")","v":""},{"$f":"(O42*B42)/Estandares!K14","v":{"$error":"#DIV/0!"}}]
[{"$f":"IF(Estandares!E38=\"x\",Estandares!B38,\"BORRAR FILA\")","v":"BORRAR FILA"},{"$f":"Estandares!G38","v":{"$error":"#DIV/0!"}},"Instrumento 1",null,null,"Instrumento 2",null,null,"Instrumento 3",null,null,"Instrumento 4",null,null,0,{"$f":"IF(Q43=\"SI\",(O43*B43)/Estandares!K14/Estandares!H49,(O43*B43)/Estandares!K14)","v":{"$error":"#DIV/0!"}},{"$f":"IF(Estandares!H49>1,\"SI\",\"\")","v":""},{"$f":"(O43*B43)/Estandares!K14","v":{"$error":"#DIV/0!"}}]
[{"$f":"IF(Estandares!E39=\"x\",Estandares!B39,\"BORRAR FILA\")","v":"BORRAR FILA"},{"$f":"Estandares!G39","v":{"$error":"#DIV/0!"}},"Instrumento 1",null,null,"Instrumento 2",null,null,"Instrumento 3",null,null,"Instrumento 4",null,null,0,{"$f":"IF(Q44=\"SI\",(O44*B44)/Estandares!K14/Estandares!H50,(O44*B44)/Estandares!K14)","v":{"$error":"#DIV/0!"}},{"$f":"IF(Estandares!H50>1,\"SI\",\"\")","v":""},{"$f":"(O44*B44)/Estandares!K14","v":{"$error":"#DIV/0!"}}]
[{"$f":"IF(Estandares!E40=\"x\",Estandares!B40,\"BORRAR FILA\")","v":"BORRAR FILA"},{"$f":"Estandares!G40","v":{"$error":"#DIV/0!"}},"Instrumento 1",null,null,"Instrumento 2",null,null,"Instrumento 3",null,null,"Instrumento 4",null,null,0,{"$f":"IF(Q45=\"SI\",(O45*B45)/Estandares!K14/Estandares!H51,(O45*B45)/Estandares!K14)","v":{"$error":"#DIV/0!"}},{"$f":"IF(Estandares!H51>1,\"SI\",\"\")","v":""},{"$f":"(O45*B45)/Estandares!K14","v":{"$error":"#DIV/0!"}}]
[{"$f":"IF(Estandares!E41=\"x\",Estandares!B41,\"BORRAR FILA\")","v":"BORRAR FILA"},{"$f":"Estandares!G41","v":{"$error":"#DIV/0!"}},"Instrumento 1",null,null,"Instrumento 2",null,null,"Instrumento 3",null,null,"Instrumento 4",null,null,0,{"$f":"IF(Q46=\"SI\",(O46*B46)/Estandares!K14/Estandares!H52,(O46*B46)/Estandares!K14)","v":{"$error":"#DIV/0!"}},{"$f":"IF(Estandares!H52>1,\"SI\",\"\")","v":""},{"$f":"(O46*B46)/Estandares!K14","v":{"$error":"#DIV/0!"}}]
[{"$f":"IF(Estandares!E42=\"x\",Estandares!B42,\"BORRAR FILA\")","v":"BORRAR FILA"},{"$f":"Estandares!G42","v":{"$error":"#DIV/0!"}},"Instrumento 1",null,null,"Instrumento 2",null,null,"Instrumento 3",null,null,"Instrumento 4",null,null,0,{"$f":"IF(Q47=\"SI\",(O47*B47)/Estandares!K14/Estandares!H53,(O47*B47)/Estandares!K14)","v":{"$error":"#DIV/0!"}},{"$f":"IF(Estandares!H53>1,\"SI\",\"\")","v":""},{"$f":"(O47*B47)/Estandares!K14","v":{"$error":"#DIV/0!"}}]
[{"$f":"IF(Estandares!E43=\"x\",Estandares!B43,\"BORRAR FILA\")","v":"BORRAR FILA"},{"$f":"Estandares!G43","v":{"$error":"#DIV/0!"}},"Instrumento 1",null,null,"Instrumento 2",null,null,"Instrumento 3",null,null,"Instrumento 4",null,null,0,{"$f":"IF(Q48=\"SI\",(O48*B48)/Estandares!K14/Estandares!H54,(O48*B48)/Estandares!K14)","v":{"$error":"#DIV/0!"}},{"$f":"IF(Estandares!H54>1,\"SI\",\"\")","v":""},{"$f":"(O48*B48)/Estandares!K14","v":{"$error":"#DIV/0!"}}]
[{"$f":"IF(Estandares!E44=\"x\",Estandares!B44,\"BORRAR FILA\")","v":"BORRAR FILA"},{"$f":"Estandares!G44","v":{"$error":"#DIV/0!"}},"Instrumento 1",null,null,"Instrumento 2",null,null,"Instrumento 3",null,null,"Instrumento 4",null,null,0,{"$f":"IF(Q49=\"SI\",(O49*B49)/Estandares!K14/Estandares!H55,(O49*B49)/Estandares!K14)","v":{"$error":"#DIV/0!"}},{"$f":"IF(Estandares!H55>1,\"SI\",\"\")","v":""},{"$f":"(O49*B49)/Estandares!K14","v":{"$error":"#DIV/0!"}}]
[{"$f":"IF(Estandares!E45=\"x\",Estandares!B45,\"BORRAR FILA\")","v":"BORRAR FILA"},{"$f":"Estandares!G45","v":{"$error":"#DIV/0!"}},"Instrumento 1",null,null,"Instrumento 2",null,null,"Instrumento 3",null,null,"Instrumento 4",null,null,0,{"$f":"IF(Q50=\"SI\",(O50*B50)/Estandares!K14/Estandares!H56,(O50*B50)/Estandares!K14)","v":{"$error":"#DIV/0!"}},{"$f":"IF(Estandares!H56>1,\"SI\",\"\")","v":""},{"$f":"(O50*B50)/Estandares!K14","v":{"$error":"#DIV/0!"}}]
[{"$f":"IF(Estandares!E46=\"x\",Estandares!B46,\"BORRAR FILA\")","v":"BORRAR FILA"},{"$f":"Estandares!G46","v":{"$error":"#DIV/0!"}},"Instrumento 1",null,null,"Instrumento 2",null,null,"Instrumento 3",null,null,"Instrumento 4",null,null,0,{"$f":"IF(Q51=\"SI\",(O51*B51)/Estandares!K14/Estandares!H57,(O51*B51)/Estandares!K14)","v":{"$error":"#DIV/0!"}},{"$f":"IF(Estandares!H57>1,\"SI\",\"\")","v":""},{"$f":"(O51*B51)/Estandares!K14","v":{"$error":"#DIV/0!"}}]
[{"$f":"IF(Estandares!E47=\"x\",Estandares!B47,\"BORRAR FILA\")","v":"BORRAR FILA"},{"$f":"Estandares!G47","v":{"$error":"#DIV/0!"}},"Instrumento 1",null,null,"Instrumento 2",null,null,"Instrumento 3",null,null,"Instrumento 4",null,null,0,{"$f":"IF(Q52=\"SI\",(O52*B52)/Estandares!K14/Estandares!H58,(O52*B52)/Estandares!K14)","v":{"$error":"#DIV/0!"}},{"$f":"IF(Estandares!H58>1,\"SI\",\"\")","v":""},{"$f":"(O52*B52)/Estandares!K14","v":{"$error":"#DIV/0!"}}]
[{"$f":"IF(Estandares!E48=\"x\",Estandares!B48,\"BORRAR FILA\")","v":"BORRAR FILA"},{"$f":"Estandares!G48","v":{"$error":"#DIV/0!"}},"Instrumento 1",null,null,"Instrumento 2",null,null,"Instrumento 3",null,null,"Instrumento 4",null,null,0,{"$f":"IF(Q53=\"SI\",(O53*B53)/Estandares!K14/Estandares!H59,(O53*B53)/Estandares!K14)","v":{"$error":"#DIV/0!"}},{"$f":"IF(Estandares!H59>1,\"SI\",\"\")","v":""},{"$f":"(O53*B53)/Estandares!K14","v":{"$error":"#DIV/0!"}}]
[{"$f":"IF(Estandares!E49=\"x\",Estandares!B49,\"BORRAR FILA\")","v":"BORRAR FILA"},{"$f":"Estandares!G49","v":{"$error":"#DIV/0!"}},"Instrumento 1",null,null,"Instrumento 2",null,null,"Instrumento 3",null,null,"Instrumento 4",null,null,0,{"$f":"IF(Q54=\"SI\",(O54*B54)/Estandares!K14/Estandares!H60,(O54*B54)/Estandares!K14)","v":{"$error":"#DIV/0!"}},{"$f":"IF(Estandares!H60>1,\"SI\",\"\")","v":""},{"$f":"(O54*B54)/Estandares!K14","v":{"$error":"#DIV/0!"}}]
[{"$f":"IF(Estandares!E50=\"x\",Estandares!B50,\"BORRAR FILA\")","v":"BORRAR FILA"},{"$f":"Estandares!G50","v":{"$error":"#DIV/0!"}},"Instrumento 1",null,null,"Instrumento 2",null,null,"Instrumento 3",null,null,"Instrumento 4",null,null,0,{"$f":"IF(Q55=\"SI\",(O55*B55)/Estandares!K14/Estandares!H61,(O55*B55)/Estandares!K14)","v":{"$error":"#DIV/0!"}},{"$f":"IF(Estandares!H61>1,\"SI\",\"\")","v":""},{"$f":"(O55*B55)/Estandares!K14","v":{"$error":"#DIV/0!"}}]
[{"$f":"IF(Estandares!E51=\"x\",Estandares!B51,\"BORRAR FILA\")","v":"BORRAR FILA"},{"$f":"Estandares!G51","v":{"$error":"#DIV/0!"}},"Instrumento 1",null,null,"Instrumento 2",null,null,"Instrumento 3",null,null,"Instrumento 4",null,null,0,{"$f":"IF(Q56=\"SI\",(O56*B56)/Estandares!K14/Estandares!H62,(O56*B56)/Estandares!K14)","v":{"$error":"#DIV/0!"}},{"$f":"IF(Estandares!H62>1,\"SI\",\"\")","v":""},{"$f":"(O56*B56)/Estandares!K14","v":{"$error":"#DIV/0!"}}]
[{"$f":"IF(Estandares!E52=\"x\",Estandares!B52,\"BORRAR FILA\")","v":"BORRAR FILA"},{"$f":"Estandares!G52","v":{"$error":"#DIV/0!"}},"Instrumento 1",null,null,"Instrumento 2",null,null,"Instrumento 3",null,null,"Instrumento 4",null,null,0,{"$f":"IF(Q57=\"SI\",(O57*B57)/Estandares!K14/Estandares!H63,(O57*B57)/Estandares!K14)","v":{"$error":"#DIV/0!"}},{"$f":"IF(Estandares!H63>1,\"SI\",\"\")","v":""},{"$f":"(O57*B57)/Estandares!K14","v":{"$error":"#DIV/0!"}}]
[{"$f":"IF(Estandares!E53=\"x\",Estandares!B53,\"BORRAR FILA\")","v":"BORRAR FILA"},{"$f":"Estandares!G53","v":{"$error":"#DIV/0!"}},"Instrumento 1",null,null,"Instrumento 2",null,null,"Instrumento 3",null,null,"Instrumento 4",null,null,0,{"$f":"IF(Q58=\"SI\",(O58*B58)/Estandares!K14/Estandares!H64,(O58*B58)/Estandares!K14)","v":{"$error":"#DIV/0!"}},{"$f":"IF(Estandares!H64>1,\"SI\",\"\")","v":""},{"$f":"(O58*B58)/Estandares!K14","v":{"$error":"#DIV/0!"}}]
[{"$f":"IF(Estandares!E54=\"x\",Estandares!B54,\"BORRAR FILA\")","v":"BORRAR FILA"},{"$f":"Estandares!G54","v":{"$error":"#DIV/0!"}},"Instrumento 1",null,null,"Instrumento 2",null,null,"Instrumento 3",null,null,"Instrumento 4",null,null,0,{"$f":"IF(Q59=\"SI\",(O59*B59)/Estandares!K14/Estandares!H65,(O59*B59)/Estandares!K14)","v":{"$error":"#DIV/0!"}},{"$f":"IF(Estandares!H65>1,\"SI\",\"\")","v":""},{"$f":"(O59*B59)/Estandares!K14","v":{"$error":"#DIV/0!"}}]
[{"$f":"IF(Estandares!E55=\"x\",Estandares!B55,\"BORRAR FILA\")","v":"BORRAR FILA"},{"$f":"Estandares!G55","v":{"$error":"#DIV/0!"}},"Instrumento 1",null,null,"Instrumento 2",null,null,"Instrumento 3",null,null,"Instrumento 4",null,null,0,{"$f":"IF(Q60=\"SI\",(O60*B60)/Estandares!K14/Estandares!H66,(O60*B60)/Estandares!K14)","v":{"$error":"#DIV/0!"}},{"$f":"IF(Estandares!H66>1,\"SI\",\"\")","v":""},{"$f":"(O60*B60)/Estandares!K14","v":{"$error":"#DIV/0!"}}]
[{"$f":"IF(Estandares!E56=\"x\",Estandares!B56,\"BORRAR FILA\")","v":"BORRAR FILA"},{"$f":"Estandares!G56","v":{"$error":"#DIV/0!"}},"Instrumento 1",null,null,"Instrumento 2",null,null,"Instrumento 3",null,null,"Instrumento 4",null,null,0,{"$f":"IF(Q61=\"SI\",(O61*B61)/Estandares!K14/Estandares!H67,(O61*B61)/Estandares!K14)","v":{"$error":"#DIV/0!"}},{"$f":"IF(Estandares!H67>1,\"SI\",\"\")","v":""},{"$f":"(O61*B61)/Estandares!K14","v":{"$error":"#DIV/0!"}}]
[{"$f":"IF(Estandares!E57=\"x\",Estandares!B57,\"BORRAR FILA\")","v":"BORRAR FILA"},{"$f":"Estandares!G57","v":{"$error":"#DIV/0!"}},"Instrumento 1",null,null,"Instrumento 2",null,null,"Instrumento 3",null,null,"Instrumento 4",null,null,0,{"$f":"IF(Q62=\"SI\",(O62*B62)/Estandares!K14/Estandares!H68,(O62*B62)/Estandares!K14)","v":{"$error":"#DIV/0!"}},{"$f":"IF(Estandares!H68>1,\"SI\",\"\")","v":""},{"$f":"(O62*B62)/Estandares!K14","v":{"$error":"#DIV/0!"}}]
[{"$f":"IF(Estandares!E58=\"x\",Estandares!B58,\"BORRAR FILA\")","v":"BORRAR FILA"},{"$f":"Estandares!G58","v":{"$error":"#DIV/0!"}},"Instrumento 1",null,null,"Instrumento 2",null,null,"Instrumento 3",null,null,"Instrumento 4",null,null,0,{"$f":"IF(Q63=\"SI\",(O63*B63)/Estandares!K14/Estandares!H69,(O63*B63)/Estandares!K14)","v":{"$error":"#DIV/0!"}},{"$f":"IF(Estandares!H69>1,\"SI\",\"\")","v":""},{"$f":"(O63*B63)/Estandares!K14","v":{"$error":"#DIV/0!"}}]
[{"$f":"IF(Estandares!E59=\"x\",Estandares!B59,\"BORRAR FILA\")","v":"BORRAR FILA"},{"$f":"Estandares!G59","v":{"$error":"#DIV/0!"}},"Instrumento 1",null,null,"Instrumento 2",null,null,"Instrumento 3",null,null,"Instrumento 4",null,null,0,{"$f":"IF(Q64=\"SI\",(O64*B64)/Estandares!K14/Estandares!H70,(O64*B64)/Estandares!K14)","v":{"$error":"#DIV/0!"}},{"$f":"IF(Estandares!H70>1,\"SI\",\"\")","v":""},{"$f":"(O64*B64)/Estandares!K14","v":{"$error":"#DIV/0!"}}]
[{"$f":"IF(Estandares!E60=\"x\",Estandares!B60,\"BORRAR FILA\")","v":"BORRAR FILA"},{"$f":"Estandares!G60","v":{"$error":"#DIV/0!"}},"Instrumento 1",null,null,"Instrumento 2",null,null,"Instrumento 3",null,null,"Instrumento 4",null,null,0,{"$f":"IF(Q65=\"SI\",(O65*B65)/Estandares!K14/Estandares!H71,(O65*B65)/Estandares!K14)","v":{"$error":"#DIV/0!"}},{"$f":"IF(Estandares!H71>1,\"SI\",\"\")","v":""},{"$f":"(O65*B65)/Estandares!K14","v":{"$error":"#DIV/0!"}}]
[{"$f":"IF(Estandares!E61=\"x\",Estandares!B61,\"BORRAR FILA\")","v":"BORRAR FILA"},{"$f":"Estandares!G61","v":{"$error":"#DIV/0!"}},"Instrumento 1",null,null,"Instrumento 2",null,null,"Instrumento 3",null,null,"Instrumento 4",null,null,0,{"$f":"IF(Q66=\"SI\",(O66*B66)/Estandares!K14/Estandares!H72,(O66*B66)/Estandares!K14)","v":{"$error":"#DIV/0!"}},{"$f":"IF(Estandares!H72>1,\"SI\",\"\")","v":""},{"$f":"(O66*B66)/Estandares!K14","v":{"$error":"#DIV/0!"}}]
[{"$f":"IF(Estandares!E62=\"x\",Estandares!B62,\"BORRAR FILA\")","v":"BORRAR FILA"},{"$f":"Estandares!G62","v":{"$error":"#DIV/0!"}},"Instrumento 1",null,null,"Instrumento 2",null,null,"Instrumento 3",null,null,"Instrumento 4",null,null,0,{"$f":"IF(Q67=\"SI\",(O67*B67)/Estandares!K14/Estandares!H73,(O67*B67)/Estandares!K14)","v":{"$error":"#DIV/0!"}},{"$f":"IF(Estandares!H73>1,\"SI\",\"\")","v":""},{"$f":"(O67*B67)/Estandares!K14","v":{"$error":"#DIV/0!"}}]
[{"$f":"IF(Estandares!E63=\"x\",Estandares!B63,\"BORRAR FILA\")","v":"BORRAR FILA"},{"$f":"Estandares!G63","v":{"$error":"#DIV/0!"}},"Instrumento 1",null,null,"Instrumento 2",null,null,"Instrumento 3",null,null,"Instrumento 4",null,null,0,{"$f":"IF(Q68=\"SI\",(O68*B68)/Estandares!K14/Estandares!H74,(O68*B68)/Estandares!K14)","v":{"$error":"#DIV/0!"}},{"$f":"IF(Estandares!H74>1,\"SI\",\"\")","v":""},{"$f":"(O68*B68)/Estandares!K14","v":{"$error":"#DIV/0!"}}]
[{"$f":"IF(Estandares!E64=\"x\",Estandares!B64,\"BORRAR FILA\")","v":"BORRAR FILA"},{"$f":"Estandares!G64","v":{"$error":"#DIV/0!"}},"Instrumento 1",null,null,"Instrumento 2",null,null,"Instrumento 3",null,null,"Instrumento 4",null,null,0,{"$f":"IF(Q69=\"SI\",(O69*B69)/Estandares!K14/Estandares!H75,(O69*B69)/Estandares!K14)","v":{"$error":"#DIV/0!"}},{"$f":"IF(Estandares!H75>1,\"SI\",\"\")","v":""},{"$f":"(O69*B69)/Estandares!K14","v":{"$error":"#DIV/0!"}}]
[{"$f":"IF(Estandares!E65=\"x\",Estandares!B65,\"BORRAR FILA\")","v":"BORRAR FILA"},{"$f":"Estandares!G65","v":{"$error":"#DIV/0!"}},"Instrumento 1",null,null,"Instrumento 2",null,null,"Instrumento 3",null,null,"Instrumento 4",null,null,0,{"$f":"IF(Q70=\"SI\",(O70*B70)/Estandares!K14/Estandares!H76,(O70*B70)/Estandares!K14)","v":{"$error":"#DIV/0!"}},{"$f":"IF(Estandares!H76>1,\"SI\",\"\")","v":""},{"$f":"(O70*B70)/Estandares!K14","v":{"$error":"#DIV/0!"}}]
[{"$f":"IF(Estandares!E66=\"x\",Estandares!B66,\"BORRAR FILA\")","v":"BORRAR FILA"},{"$f":"Estandares!G66","v":{"$error":"#DIV/0!"}},"Instrumento 1",null,null,"Instrumento 2",null,null,"Instrumento 3",null,null,"Instrumento 4",null,null,0,{"$f":"IF(Q71=\"SI\",(O71*B71)/Estandares!K14/Estandares!H77,(O71*B71)/Estandares!K14)","v":{"$error":"#DIV/0!"}},{"$f":"IF(Estandares!H77>1,\"SI\",\"\")","v":""},{"$f":"(O71*B71)/Estandares!K14","v":{"$error":"#DIV/0!"}}]
[{"$f":"IF(Estandares!E67=\"x\",Estandares!B67,\"BORRAR FILA\")","v":"BORRAR FILA"},{"$f":"Estandares!G67","v":{"$error":"#DIV/0!"}},"Instrumento 1",null,null,"Instrumento 2",null,null,"Instrumento 3",null,null,"Instrumento 4",null,null,{"$f":"(D72*E72)+(G72*H72)+(J72*K72)+(M72*N72)","v":0},{"$f":"IF(Q72=\"SI\",(O72*B72)/Estandares!K14/Estandares!H78,(O72*B72)/Estandares!K14)","v":{"$error":"#DIV/0!"}},{"$f":"IF(Estandares!H78>1,\"SI\",\"\")","v":""},{"$f":"(O72*B72)/Estandares!K14","v":{"$error":"#DIV/0!"}}]
[{"$f":"IF(Estandares!E68=\"x\",Estandares!B68,\"BORRAR FILA\")","v":"BORRAR FILA"},{"$f":"Estandares!G68","v":{"$error":"#DIV/0!"}},"Instrumento 1",null,null,"Instrumento 2",null,null,"Instrumento 3",null,null,"Instrumento 4",null,null,0,{"$f":"IF(Q73=\"SI\",(O73*B73)/Estandares!K14/Estandares!H79,(O73*B73)/Estandares!K14)","v":{"$error":"#DIV/0!"}},{"$f":"IF(Estandares!H79>1,\"SI\",\"\")","v":""},{"$f":"(O73*B73)/Estandares!K14","v":{"$error":"#DIV/0!"}}]
[{"$f":"IF(Estandares!E69=\"x\",Estandares!B69,\"BORRAR FILA\")","v":"BORRAR FILA"},{"$f":"Estandares!G69","v":{"$error":"#DIV/0!"}},"Instrumento 1",null,null,"Instrumento 2",null,null,"Instrumento 3",null,null,"Instrumento 4",null,null,0,{"$f":"IF(Q74=\"SI\",(O74*B74)/Estandares!K14/Estandares!H80,(O74*B74)/Estandares!K14)","v":{"$error":"#DIV/0!"}},{"$f":"IF(Estandares!H80>1,\"SI\",\"\")","v":""},{"$f":"(O74*B74)/Estandares!K14","v":{"$error":"#DIV/0!"}}]
[{"$f":"IF(Estandares!E70=\"x\",Estandares!B70,\"BORRAR FILA\")","v":"BORRAR FILA"},{"$f":"Estandares!G70","v":{"$error":"#DIV/0!"}},"Instrumento 1",null,null,"Instrumento 2",null,null,"Instrumento 3",null,null,"Instrumento 4",null,null,0,{"$f":"IF(Q75=\"SI\",(O75*B75)/Estandares!K14/Estandares!H81,(O75*B75)/Estandares!K14)","v":{"$error":"#DIV/0!"}},{"$f":"IF(Estandares!H81>1,\"SI\",\"\")","v":""},{"$f":"(O75*B75)/Estandares!K14","v":{"$error":"#DIV/0!"}}]
[{"$f":"IF(Estandares!E71=\"x\",Estandares!B71,\"BORRAR FILA\")","v":"BORRAR FILA"},{"$f":"Estandares!G71","v":{"$error":"#DIV/0!"}},"Instrumento 1",null,null,"Instrumento 2",null,null,"Instrumento 3",null,null,"Instrumento 4",null,null,0,{"$f":"IF(Q76=\"SI\",(O76*B76)/Estandares!K14/Estandares!H82,(O76*B76)/Estandares!K14)","v":{"$error":"#DIV/0!"}},{"$f":"IF(Estandares!H82>1,\"SI\",\"\")","v":""},{"$f":"(O76*B76)/Estandares!K14","v":{"$error":"#DIV/0!"}}]
[{"$f":"IF(Estandares!E72=\"x\",Estandares!B72,\"BORRAR FILA\")","v":"BORRAR FILA"},{"$f":"Estandares!G72","v":{"$error":"#DIV/0!"}},"Instrumento 1",null,null,"Instrumento 2",null,null,"Instrumento 3",null,null,"Instrumento 4",null,null,0,{"$f":"IF(Q77=\"SI\",(O77*B77)/Estandares!K14/Estandares!H83,(O77*B77)/Estandares!K14)","v":{"$error":"#DIV/0!"}},{"$f":"IF(Estandares!H83>1,\"SI\",\"\")","v":""},{"$f":"(O77*B77)/Estandares!K14","v":{"$error":"#DIV/0!"}}]
[{"$f":"IF(Estandares!E73=\"x\",Estandares!B73,\"BORRAR FILA\")","v":"BORRAR FILA"},{"$f":"Estandares!G73","v":{"$error":"#DIV/0!"}},"Instrumento 1",null,null,"Instrumento 2",null,null,"Instrumento 3",null,null,"Instrumento 4",null,null,0,{"$f":"IF(Q78=\"SI\",(O78*B78)/Estandares!K14/Estandares!H84,(O78*B78)/Estandares!K14)","v":{"$error":"#DIV/0!"}},{"$f":"IF(Estandares!H84>1,\"SI\",\"\")","v":""},{"$f":"(O78*B78)/Estandares!K14","v":{"$error":"#DIV/0!"}}]
[{"$f":"IF(Estandares!E74=\"x\",Estandares!B74,\"BORRAR FILA\")","v":"BORRAR FILA"},{"$f":"Estandares!G74","v":{"$error":"#DIV/0!"}},"Instrumento 1",null,null,"Instrumento 2",null,null,"Instrumento 3",null,null,"Instrumento 4",null,null,0,{"$f":"IF(Q79=\"SI\",(O79*B79)/Estandares!K14/Estandares!H85,(O79*B79)/Estandares!K14)","v":{"$error":"#DIV/0!"}},{"$f":"IF(Estandares!H85>1,\"SI\",\"\")","v":""},{"$f":"(O79*B79)/Estandares!K14","v":{"$error":"#DIV/0!"}}]
[{"$f":"IF(Estandares!E75=\"x\",Estandares!B75,\"BORRAR FILA\")","v":"BORRAR FILA"},{"$f":"Estandares!G75","v":{"$error":"#DIV/0!"}},"Instrumento 1",null,null,"Instrumento 2",null,null,"Instrumento 3",null,null,"Instrumento 4",null,null,0,{"$f":"IF(Q80=\"SI\",(O80*B80)/Estandares!K14/Estandares!H86,(O80*B80)/Estandares!K14)","v":{"$error":"#DIV/0!"}},{"$f":"IF(Estandares!H86>1,\"SI\",\"\")","v":""},{"$f":"(O80*B80)/Estandares!K14","v":{"$error":"#DIV/0!"}}]
[{"$f":"IF(Estandares!E76=\"x\",Estandares!B76,\"BORRAR FILA\")","v":"BORRAR FILA"},{"$f":"Estandares!G76","v":{"$error":"#DIV/0!"}},"Instrumento 1",null,null,"Instrumento 2",null,null,"Instrumento 3",null,null,"Instrumento 4",null,null,0,{"$f":"IF(Q81=\"SI\",(O81*B81)/Estandares!K14/Estandares!H87,(O81*B81)/Estandares!K14)","v":{"$error":"#DIV/0!"}},{"$f":"IF(Estandares!H87>1,\"SI\",\"\")","v":""},{"$f":"(O81*B81)/Estandares!K14","v":{"$error":"#DIV/0!"}}]
[{"$f":"IF(Estandares!E77=\"x\",Estandares!B77,\"BORRAR FILA\")","v":"BORRAR FILA"},{"$f":"Estandares!G77","v":{"$error":"#DIV/0!"}},"Instrumento 1",null,null,"Instrumento 2",null,null,"Instrumento 3",null,null,"Instrumento 4",null,null,0,{"$f":"IF(Q82=\"SI\",(O82*B82)/Estandares!K14/Estandares!H88,(O82*B82)/Estandares!K14)","v":{"$error":"#DIV/0!"}},{"$f":"IF(Estandares!H88>1,\"SI\",\"\")","v":""},{"$f":"(O82*B82)/Estandares!K14","v":{"$error":"#DIV/0!"}}]
[{"$f":"IF(Estandares!E78=\"x\",Estandares!B78,\"BORRAR FILA\")","v":"BORRAR FILA"},{"$f":"Estandares!G78","v":{"$error":"#DIV/0!"}},"Instrumento 1",null,null,"Instrumento 2",null,null,"Instrumento 3",null,null,"Instrumento 4",null,null,0,{"$f":"IF(Q83=\"SI\",(O83*B83)/Estandares!K14/Estandares!H89,(O83*B83)/Estandares!K14)","v":{"$error":"#DIV/0!"}},{"$f":"IF(Estandares!H89>1,\"SI\",\"\")","v":""},{"$f":"(O83*B83)/Estandares!K14","v":{"$error":"#DIV/0!"}}]
[{"$f":"IF(Estandares!E79=\"x\",Estandares!B79,\"BORRAR FILA\")","v":"BORRAR FILA"},{"$f":"Estandares!G79","v":{"$error":"#DIV/0!"}},"Instrumento 1",null,null,"Instrumento 2",null,null,"Instrumento 3",null,null,"Instrumento 4",null,null,0,{"$f":"IF(Q84=\"SI\",(O84*B84)/Estandares!K14/Estandares!H90,(O84*B84)/Estandares!K14)","v":{"$error":"#DIV/0!"}},{"$f":"IF(Estandares!H90>1,\"SI\",\"\")","v":""},{"$f":"(O84*B84)/Estandares!K14","v":{"$error":"#DIV/0!"}}]
[{"$f":"IF(Estandares!E80=\"x\",Estandares!B80,\"BORRAR FILA\")","v":"BORRAR FILA"},{"$f":"Estandares!G80","v":{"$error":"#DIV/0!"}},"Instrumento 1",null,null,"Instrumento 2",null,null,"Instrumento 3",null,null,"Instrumento 4",null,null,0,{"$f":"IF(Q85=\"SI\",(O85*B85)/Estandares!K14/Estandares!H91,(O85*B85)/Estandares!K14)","v":{"$error":"#DIV/0!"}},{"$f":"IF(Estandares!H91>1,\"SI\",\"\")","v":""},{"$f":"(O85*B85)/Estandares!K14","v":{"$error":"#DIV/0!"}}]
[{"$f":"IF(Estandares!E81=\"x\",Estandares!B81,\"BORRAR FILA\")","v":"BORRAR FILA"},{"$f":"Estandares!G81","v":{"$error":"#DIV/0!"}},"Instrumento 1",null,null,"Instrumento 2",null,null,"Instrumento 3",null,null,"Instrumento 4",null,null,0,{"$f":"IF(Q86=\"SI\",(O86*B86)/Estandares!K14/Estandares!H92,(O86*B86)/Estandares!K14)","v":{"$error":"#DIV/0!"}},{"$f":"IF(Estandares!H92>1,\"SI\",\"\")","v":""},{"$f":"(O86*B86)/Estandares!K14","v":{"$error":"#DIV/0!"}}]
[{"$f":"IF(Estandares!E82=\"x\",Estandares!B82,\"BORRAR FILA\")","v":"BORRAR FILA"},{"$f":"Estandares!G82","v":{"$error":"#DIV/0!"}},"Instrumento 1",null,null,"Instrumento 2",null,null,"Instrumento 3",null,null,"Instrumento 4",null,null,0,{"$f":"IF(Q87=\"SI\",(O87*B87)/Estandares!K14/Estandares!H93,(O87*B87)/Estandares!K14)","v":{"$error":"#DIV/0!"}},{"$f":"IF(Estandares!H93>1,\"SI\",\"\")","v":""},{"$f":"(O87*B87)/Estandares!K14","v":{"$error":"#DIV/0!"}}]
[{"$f":"IF(Estandares!E83=\"x\",Estandares!B83,\"BORRAR FILA\")","v":"BORRAR FILA"},{"$f":"Estandares!G83","v":{"$error":"#DIV/0!"}},"Instrumento 1",null,null,"Instrumento 2",null,null,"Instrumento 3",null,null,"Instrumento 4",null,null,0,{"$f":"IF(Q88=\"SI\",(O88*B88)/Estandares!K14/Estandares!H94,(O88*B88)/Estandares!K14)","v":{"$error":"#DIV/0!"}},{"$f":"IF(Estandares!H94>1,\"SI\",\"\")","v":""},{"$f":"(O88*B88)/Estandares!K14","v":{"$error":"#DIV/0!"}}]
[{"$f":"IF(Estandares!E84=\"x\",Estandares!B84,\"BORRAR FILA\")","v":"BORRAR FILA"},{"$f":"Estandares!G84","v":{"$error":"#DIV/0!"}},"Instrumento 1",null,null,"Instrumento 2",null,null,"Instrumento 3",null,null,"Instrumento 4",null,null,0,{"$f":"IF(Q89=\"SI\",(O89*B89)/Estandares!K14/Estandares!H95,(O89*B89)/Estandares!K14)","v":{"$error":"#DIV/0!"}},{"$f":"IF(Estandares!H95>1,\"SI\",\"\")","v":""},{"$f":"(O89*B89)/Estandares!K14","v":{"$error":"#DIV/0!"}}]
[{"$f":"IF(Estandares!E85=\"x\",Estandares!B85,\"BORRAR FILA\")","v":"BORRAR FILA"},{"$f":"Estandares!G85","v":{"$error":"#DIV/0!"}},"Instrumento 1",null,null,"Instrumento 2",null,null,"Instrumento 3",null,null,"Instrumento 4",null,null,0,{"$f":"IF(Q90=\"SI\",(O90*B90)/Estandares!K14/Estandares!H96,(O90*B90)/Estandares!K14)","v":{"$error":"#DIV/0!"}},{"$f":"IF(Estandares!H96>1,\"SI\",\"\")","v":""},{"$f":"(O90*B90)/Estandares!K14","v":{"$error":"#DIV/0!"}}]
[{"$f":"IF(Estandares!E86=\"x\",Estandares!B86,\"BORRAR FILA\")","v":"BORRAR FILA"},{"$f":"Estandares!G86","v":{"$error":"#DIV/0!"}},"Instrumento 1",null,null,"Instrumento 2",null,null,"Instrumento 3",null,null,"Instrumento 4",null,null,0,{"$f":"IF(Q91=\"SI\",(O91*B91)/Estandares!K14/Estandares!H97,(O91*B91)/Estandares!K14)","v":{"$error":"#DIV/0!"}},{"$f":"IF(Estandares!H97>1,\"SI\",\"\")","v":""},{"$f":"(O91*B91)/Estandares!K14","v":{"$error":"#DIV/0!"}}]
[{"$f":"IF(Estandares!E87=\"x\",Estandares!B87,\"BORRAR FILA\")","v":"BORRAR FILA"},{"$f":"Estandares!G87","v":{"$error":"#DIV/0!"}},"Instrumento 1",null,null,"Instrumento 2",null,null,"Instrumento 3",null,null,"Instrumento 4",null,null,0,{"$f":"IF(Q92=\"SI\",(O92*B92)/Estandares!K14/Estandares!H98,(O92*B92)/Estandares!K14)","v":{"$error":"#DIV/0!"}},{"$f":"IF(Estandares!H98>1,\"SI\",\"\")","v":""},{"$f":"(O92*B92)/Estandares!K14","v":{"$error":"#DIV/0!"}}]
[{"$f":"IF(Estandares!E88=\"x\",Estandares!B88,\"BORRAR FILA\")","v":"BORRAR FILA"},{"$f":"Estandares!G88","v":{"$error":"#DIV/0!"}},"Instrumento 1",null,null,"Instrumento 2",null,null,"Instrumento 3",null,null,"Instrumento 4",null,null,0,{"$f":"IF(Q93=\"SI\",(O93*B93)/Estandares!K14/Estandares!H99,(O93*B93)/Estandares!K14)","v":{"$error":"#DIV/0!"}},{"$f":"IF(Estandares!H99>1,\"SI\",\"\")","v":""},{"$f":"(O93*B93)/Estandares!K14","v":{"$error":"#DIV/0!"}}]
[{"$f":"IF(Estandares!E89=\"x\",Estandares!B89,\"BORRAR FILA\")","v":"BORRAR FILA"},{"$f":"Estandares!G89","v":{"$error":"#DIV/0!"}},"Instrumento 1",null,null,"Instrumento 2",null,null,"Instrumento 3",null,null,"Instrumento 4",null,null,0,{"$f":"IF(Q94=\"SI\",(O94*B94)/Estandares!K14/Estandares!H100,(O94*B94)/Estandares!K14)","v":{"$error":"#DIV/0!"}},{"$f":"IF(Estandares!H100>1,\"SI\",\"\")","v":""},{"$f":"(O94*B94)/Estandares!K14","v":{"$error":"#DIV/0!"}}]
[{"$f":"IF(Estandares!E90=\"x\",Estandares!B90,\"BORRAR FILA\")","v":"BORRAR FILA"},{"$f":"Estandares!G90","v":{"$error":"#DIV/0!"}},"Instrumento 1",null,null,"Instrumento 2",null,null,"Instrumento 3",null,null,"Instrumento 4",null,null,0,{"$f":"IF(Q95=\"SI\",(O95*B95)/Estandares!K14/Estandares!H101,(O95*B95)/Estandares!K14)","v":{"$error":"#DIV/0!"}},{"$f":"IF(Estandares!H101>1,\"SI\",\"\")","v":""},{"$f":"(O95*B95)/Estandares!K14","v":{"$error":"#DIV/0!"}}]
[{"$f":"IF(Estandares!E91=\"x\",Estandares!B91,\"BORRAR FILA\")","v":"BORRAR FILA"},{"$f":"Estandares!G91","v":{"$error":"#DIV/0!"}},"Instrumento 1",null,null,"Instrumento 2",null,null,"Instrumento 3",null,null,"Instrumento 4",null,null,0,{"$f":"IF(Q96=\"SI\",(O96*B96)/Estandares!K14/Estandares!H102,(O96*B96)/Estandares!K14)","v":{"$error":"#DIV/0!"}},{"$f":"IF(Estandares!H102>1,\"SI\",\"\")","v":""},{"$f":"(O96*B96)/Estandares!K14","v":{"$error":"#DIV/0!"}}]
[{"$f":"IF(Estandares!E92=\"x\",Estandares!B92,\"BORRAR FILA\")","v":"BORRAR FILA"},{"$f":"Estandares!G92","v":{"$error":"#DIV/0!"}},"Instrumento 1",null,null,"Instrumento 2",null,null,"Instrumento 3",null,null,"Instrumento 4",null,null,0,{"$f":"IF(Q97=\"SI\",(O97*B97)/Estandares!K14/Estandares!H103,(O97*B97)/Estandares!K14)","v":{"$error":"#DIV/0!"}},{"$f":"IF(Estandares!H103>1,\"SI\",\"\")","v":""},{"$f":"(O97*B97)/Estandares!K14","v":{"$error":"#DIV/0!"}}]
[{"$f":"IF(Estandares!E93=\"x\",Estandares!B93,\"BORRAR FILA\")","v":"BORRAR FILA"},{"$f":"Estandares!G93","v":{"$error":"#DIV/0!"}},"Instrumento 1",null,null,"Instrumento 2",null,null,"Instrumento 3",null,null,"Instrumento 4",null,null,0,{"$f":"IF(Q98=\"SI\",(O98*B98)/Estandares!K14/Estandares!H104,(O98*B98)/Estandares!K14)","v":{"$error":"#DIV/0!"}},{"$f":"IF(Estandares!H104>1,\"SI\",\"\")","v":""},{"$f":"(O98*B98)/Estandares!K14","v":{"$error":"#DIV/0!"}}]
[{"$f":"IF(Estandares!E94=\"x\",Estandares!B94,\"BORRAR FILA\")","v":"BORRAR FILA"},{"$f":"Estandares!G94","v":{"$error":"#DIV/0!"}},"Instrumento 1",null,null,"Instrumento 2",null,null,"Instrumento 3",null,null,"Instrumento 4",null,null,0,{"$f":"IF(Q99=\"SI\",(O99*B99)/Estandares!K14/Estandares!H105,(O99*B99)/Estandares!K14)","v":{"$error":"#DIV/0!"}},{"$f":"IF(Estandares!H105>1,\"SI\",\"\")","v":""},{"$f":"(O99*B99)/Estandares!K14","v":{"$error":"#DIV/0!"}}]
[{"$f":"IF(Estandares!E95=\"x\",Estandares!B95,\"BORRAR FILA\")","v":"BORRAR FILA"},{"$f":"Estandares!G95","v":{"$error":"#DIV/0!"}},"Instrumento 1",null,null,"Instrumento 2",null,null,"Instrumento 3",null,null,"Instrumento 4",null,null,0,{"$f":"IF(Q100=\"SI\",(O100*B100)/Estandares!K14/Estandares!H106,(O100*B100)/Estandares!K14)","v":{"$error":"#DIV/0!"}},{"$f":"IF(Estandares!H106>1,\"SI\",\"\")","v":""},{"$f":"(O100*B100)/Estandares!K14","v":{"$error":"#DIV/0!"}}]
[{"$f":"IF(Estandares!E96=\"x\",Estandares!B96,\"BORRAR FILA\")","v":"BORRAR FILA"},{"$f":"Estandares!G96","v":{"$error":"#DIV/0!"}},"Instrumento 1",null,null,"Instrumento 2",null,null,"Instrumento 3",null,null,"Instrumento 4",null,null,0,{"$f":"IF(Q101=\"SI\",(O101*B101)/Estandares!K14/Estandares!H107,(O101*B101)/Estandares!K14)","v":{"$error":"#DIV/0!"}},{"$f":"IF(Estandares!H107>1,\"SI\",\"\")","v":""},{"$f":"(O101*B101)/Estandares!K14","v":{"$error":"#DIV/0!"}}]
[{"$f":"IF(Estandares!E97=\"x\",Estandares!B97,\"BORRAR FILA\")","v":"BORRAR FILA"},{"$f":"Estandares!G97","v":{"$error":"#DIV/0!"}},"Instrumento 1",null,null,"Instrumento 2",null,null,"Instrumento 3",null,null,"Instrumento 4",null,null,0,{"$f":"IF(Q102=\"SI\",(O102*B102)/Estandares!K14/Estandares!H108,(O102*B102)/Estandares!K14)","v":{"$error":"#DIV/0!"}},{"$f":"IF(Estandares!H108>1,\"SI\",\"\")","v":""},{"$f":"(O102*B102)/Estandares!K14","v":{"$error":"#DIV/0!"}}]
[{"$f":"IF(Estandares!E98=\"x\",Estandares!B98,\"BORRAR FILA\")","v":"BORRAR FILA"},{"$f":"Estandares!G98","v":{"$error":"#DIV/0!"}},"Instrumento 1",null,null,"Instrumento 2",null,null,"Instrumento 3",null,null,"Instrumento 4",null,null,0,{"$f":"IF(Q103=\"SI\",(O103*B103)/Estandares!K14/Estandares!H109,(O103*B103)/Estandares!K14)","v":{"$error":"#DIV/0!"}},{"$f":"IF(Estandares!H109>1,\"SI\",\"\")","v":""},{"$f":"(O103*B103)/Estandares!K14","v":{"$error":"#DIV/0!"}}]
[{"$f":"IF(Estandares!E99=\"x\",Estandares!B99,\"BORRAR FILA\")","v":"BORRAR FILA"},{"$f":"Estandares!G99","v":{"$error":"#DIV/0!"}},"Instrumento 1",null,null,"Instrumento 2",null,null,"Instrumento 3",null,null,"Instrumento 4",null,null,0,{"$f":"IF(Q104=\"SI\",(O104*B104)/Estandares!K14/Estandares!H110,(O104*B104)/Estandares!K14)","v":{"$error":"#DIV/0!"}},{"$f":"IF(Estandares!H110>1,\"SI\",\"\")","v":""},{"$f":"(O104*B104)/Estandares!K14","v":{"$error":"#DIV/0!"}}]
[{"$f":"IF(Estandares!E100=\"x\",Estandares!B100,\"BORRAR FILA\")","v":"BORRAR FILA"},{"$f":"Estandares!G100","v":{"$error":"#DIV/0!"}},"Instrumento 1",null,null,"Instrumento 2",null,null,"Instrumento 3",null,null,"Instrumento 4",null,null,0,{"$f":"IF(Q105=\"SI\",(O105*B105)/Estandares!K14/Estandares!H111,(O105*B105)/Estandares!K14)","v":{"$error":"#DIV/0!"}},{"$f":"IF(Estandares!H111>1,\"SI\",\"\")","v":""},{"$f":"(O105*B105)/Estandares!K14","v":{"$error":"#DIV/0!"}}]
[{"$f":"IF(Estandares!E101=\"x\",Estandares!B101,\"BORRAR FILA\")","v":"BORRAR FILA"},{"$f":"Estandares!G101","v":{"$error":"#DIV/0!"}},"Instrumento 1",null,null,"Instrumento 2",null,null,"Instrumento 3",null,null,"Instrumento 4",null,null,0,{"$f":"IF(Q106=\"SI\",(O106*B106)/Estandares!K14/Estandares!H112,(O106*B106)/Estandares!K14)","v":{"$error":"#DIV/0!"}},{"$f":"IF(Estandares!H112>1,\"SI\",\"\")","v":""},{"$f":"(O106*B106)/Estandares!K14","v":{"$error":"#DIV/0!"}}]
[{"$f":"IF(Estandares!E102=\"x\",Estandares!B102,\"BORRAR FILA\")","v":"BORRAR FILA"},{"$f":"Estandares!G102","v":{"$error":"#DIV/0!"}},"Instrumento 1",null,null,"Instrumento 2",null,null,"Instrumento 3",null,null,"Instrumento 4",null,null,0,{"$f":"IF(Q107=\"SI\",(O107*B107)/Estandares!K14/Estandares!H113,(O107*B107)/Estandares!K14)","v":{"$error":"#DIV/0!"}},{"$f":"IF(Estandares!H113>1,\"SI\",\"\")","v":""},{"$f":"(O107*B107)/Estandares!K14","v":{"$error":"#DIV/0!"}}]
[{"$f":"IF(Estandares!E103=\"x\",Estandares!B103,\"BORRAR FILA\")","v":"BORRAR FILA"},{"$f":"Estandares!G103","v":{"$error":"#DIV/0!"}},"Instrumento 1",null,null,"Instrumento 2",null,null,"Instrumento 3",null,null,"Instrumento 4",null,null,0,{"$f":"IF(Q108=\"SI\",(O108*B108)/Estandares!K14/Estandares!H114,(O108*B108)/Estandares!K14)","v":{"$error":"#DIV/0!"}},{"$f":"IF(Estandares!H114>1,\"SI\",\"\")","v":""},{"$f":"(O108*B108)/Estandares!K14","v":{"$error":"#DIV/0!"}}]
[{"$f":"IF(Estandares!E104=\"x\",Estandares!B104,\"BORRAR FILA\")","v":"BORRAR FILA"},{"$f":"Estandares!G104","v":{"$error":"#DIV/0!"}},"Instrumento 1",null,null,"Instrumento 2",null,null,"Instrumento 3",null,null,"Instrumento 4",null,null,0,{"$f":"IF(Q109=\"SI\",(O109*B109)/Estandares!K14/Estandares!H115,(O109*B109)/Estandares!K14)","v":{"$error":"#DIV/0!"}},{"$f":"IF(Estandares!H115>1,\"SI\",\"\")","v":""},{"$f":"(O109*B109)/Estandares!K14","v":{"$error":"#DIV/0!"}}]
[{"$f":"IF(Estandares!E105=\"x\",Estandares!B105,\"BORRAR FILA\")","v":"BORRAR FILA"},{"$f":"Estandares!G105","v":{"$error":"#DIV/0!"}},"Instrumento 1",null,null,"Instrumento 2",null,null,"Instrumento 3",null,null,"Instrumento 4",null,null,0,{"$f":"IF(Q110=\"SI\",(O110*B110)/Estandares!K14/Estandares!H116,(O110*B110)/Estandares!K14)","v":{"$error":"#DIV/0!"}},{"$f":"IF(Estandares!H116>1,\"SI\",\"\")","v":""},{"$f":"(O110*B110)/Estandares!K14","v":{"$error":"#DIV/0!"}}]
[{"$f":"IF(Estandares!E106=\"x\",Estandares!B106,\"BORRAR FILA\")","v":"BORRAR FILA"},{"$f":"Estandares!G106","v":{"$error":"#DIV/0!"}},"Instrumento 1",null,null,"Instrumento 2",null,null,"Instrumento 3",null,null,"Instrumento 4",null,null,0,{"$f":"IF(Q111=\"SI\",(O111*B111)/Estandares!K14/Estandares!H117,(O111*B111)/Estandares!K14)","v":{"$error":"#DIV/0!"}},{"$f":"IF(Estandares!H117>1,\"SI\",\"\")","v":""},{"$f":"(O111*B111)/Estandares!K14","v":{"$error":"#DIV/0!"}}]
[{"$f":"IF(Estandares!E107=\"x\",Estandares!B107,\"BORRAR FILA\")","v":"BORRAR FILA"},{"$f":"Estandares!G107","v":{"$error":"#DIV/0!"}},"Instrumento 1",null,null,"Instrumento 2",null,null,"Instrumento 3",null,null,"Instrumento 4",null,null,0,{"$f":"IF(Q112=\"SI\",(O112*B112)/Estandares!K14/Estandares!H118,(O112*B112)/Estandares!K14)","v":{"$error":"#DIV/0!"}},{"$f":"IF(Estandares!H118>1,\"SI\",\"\")","v":""},{"$f":"(O112*B112)/Estandares!K14","v":{"$error":"#DIV/0!"}}]
[{"$f":"IF(Estandares!E108=\"x\",Estandares!B108,\"BORRAR FILA\")","v":"BORRAR FILA"},{"$f":"Estandares!G108","v":{"$error":"#DIV/0!"}},"Instrumento 1",null,null,"Instrumento 2",null,null,"Instrumento 3",null,null,"Instrumento 4",null,null,0,{"$f":"IF(Q113=\"SI\",(O113*B113)/Estandares!K14/Estandares!H119,(O113*B113)/Estandares!K14)","v":{"$error":"#DIV/0!"}},{"$f":"IF(Estandares!H119>1,\"SI\",\"\")","v":""},{"$f":"(O113*B113)/Estandares!K14","v":{"$error":"#DIV/0!"}}]
[{"$f":"IF(Estandares!E109=\"x\",Estandares!B109,\"BORRAR FILA\")","v":"BORRAR FILA"},{"$f":"Estandares!G109","v":{"$error":"#DIV/0!"}},"Instrumento 1",null,null,"Instrumento 2",null,null,"Instrumento 3",null,null,"Instrumento 4",null,null,0,{"$f":"IF(Q114=\"SI\",(O114*B114)/Estandares!K14/Estandares!H120,(O114*B114)/Estandares!K14)","v":{"$error":"#DIV/0!"}},{"$f":"IF(Estandares!H120>1,\"SI\",\"\")","v":""},{"$f":"(O114*B114)/Estandares!K14","v":{"$error":"#DIV/0!"}}]
[{"$f":"IF(Estandares!E110=\"x\",Estandares!B110,\"BORRAR FILA\")","v":"BORRAR FILA"},{"$f":"Estandares!G110","v":{"$error":"#DIV/0!"}},"Instrumento 1",null,null,"Instrumento 2",null,null,"Instrumento 3",null,null,"Instrumento 4",null,null,0,{"$f":"IF(Q115=\"SI\",(O115*B115)/Estandares!K14/Estandares!H121,(O115*B115)/Estandares!K14)","v":{"$error":"#DIV/0!"}},{"$f":"IF(Estandares!H121>1,\"SI\",\"\")","v":""},{"$f":"(O115*B115)/Estandares!K14","v":{"$error":"#DIV/0!"}}]
[{"$f":"IF(Estandares!E111=\"x\",Estandares!B111,\"BORRAR FILA\")","v":"BORRAR FILA"},{"$f":"Estandares!G111","v":{"$error":"#DIV/0!"}},"Instrumento 1",null,null,"Instrumento 2",null,null,"Instrumento 3",null,null,"Instrumento 4",null,null,0,{"$f":"IF(Q116=\"SI\",(O116*B116)/Estandares!K14/Estandares!H122,(O116*B116)/Estandares!K14)","v":{"$error":"#DIV/0!"}},{"$f":"IF(Estandares!H122>1,\"SI\",\"\")","v":""},{"$f":"(O116*B116)/Estandares!K14","v":{"$error":"#DIV/0!"}}]
["TOTAL",{"$f":"SUM(B7:B116)","v":{"$error":"#DIV/0!"}},null,null,{"$f":"SUM(E7:E116)/C120","v":0},null,null,null,null,null,null,null,null,null,{"$f":"SUM(O7:O116)/C120","v":0},{"$f":"SUM(P7:P116)","v":{"$error":"#DIV/0!"}},null,{"$f":"SUM(R7:R116)","v":{"$error":"#DIV/0!"}}]
[]
[]
[null,"contador estandar",{"$f":"COUNTA(A7:A116)","v":110}]
[null,"escala",{"$f":"Estandares!K14","v":5}]
[]
[null,null,null,null,null,null,null,null,null,null,null,null,null,null,null,"Sobre 10"]
[null,null,null,null,null,null,null,null,null,"NOTA EVALUACIÓN ACUMULADA",null,null,null,null,{"$f":"Estandares!S19","v":{"$error":"#DIV/0!"}},{"$f":"IF(C121=5,(O124*10)/5)","v":{"$error":"#DIV/0!"}}]
[]
[null,null,null,null,null,null,null,null,"PROFESOR:",{"$f":"Estandares!J5","v":0},null,null,null,{"$f":"Estandares!J7","v":0},null,{"$f":"CONCATENATE(Estandares!J9,Estandares!L9)","v":""}]
[]
[null,null,null,null,null,null,null,null,"Alumno:",{"$f":"Estandares!J11","v":0}]
[null,null,null,null,null,null,null,null,null,null,null,null,null,null,null,"Sobre 10"]
[null,null,null,null,null,null,null,null,"NOTA 3º EVALUACIÓN",null,null,null,null,null,{"$f":"(R117*C121)/B117","v":{"$error":"#DIV/0!"}},{"$f":"IF(C121=5,(O130*10)/5)","v":{"$error":"#DIV/0!"}}]

{"sheet":"RESUMEN","index":4,"n_rows":14,"n_cols":9,"rows_kept":14,"cut":false,"hidden":false,"merged":[[3,1,4,1],[7,1,8,6],[7,7,8,7],[7,8,8,8],[3,2,4,5],[3,6,5,7],[3,8,5,8],[5,2,5,5],[13,3,14,6],[13,7,14,7],[13,8,14,8],[9,1,10,6],[9,7,10,7],[9,8,10,8],[11,1,12,6],[11,7,12,7],[11,8,12,8]]}
[]
[]
[]
[null,"PROFESOR:",{"$f":"Estandares!J5","v":0},null,null,null,{"$f":"Estandares!J7","v":0},null,{"$f":"CONCATENATE(Estandares!J9,Estandares!L9)","v":""}]
[]
[null,"Alumno:",{"$f":"Estandares!J11","v":0}]
[null,null,null,null,null,null,null,null,"Sobre 10"]
[null,"NOTA 1º EVALUACIÓN",null,null,null,null,null,{"$f":"'1ºEVALUACION'!O130","v":{"$error":"#DIV/0!"}},{"$f":"'1ºEVALUACION'!P130","v":{"$error":"#DIV/0!"}}]
[]
[null,"NOTA 2º EVALUACIÓN",null,null,null,null,null,{"$f":"'2ºEVALUACION'!O130","v":{"$error":"#DIV/0!"}},{"$f":"'2ºEVALUACION'!P130","v":{"$error":"#DIV/0!"}}]
[]
[null,"NOTA 3º EVALUACIÓN",null,null,null,null,null,{"$f":"'3ºEVALUACION'!O130","v":{"$error":"#DIV/0!"}},{"$f":"'3ºEVALUACION'!P130","v":{"$error":"#DIV/0!"}}]
[]
[null,null,null,"EVALUACIÓN FINAL",null,null,null,{"$f":"'3ºEVALUACION'!O124","v":{"$error":"#DIV/0!"}},{"$f":"'3ºEVALUACION'!P124","v":{"$error":"#DIV/0!"}}]